Workbook

Sheet Cover

Sheet General Inputs
A1: General Inputs
A3: WACC calculation
A4: Inflation rate (forecast) | B4: 0.030481278
A5: Real Vanilla WACC | B5: 0.02021683159
A6: Nominal Vanilla WACC | B6: 0.05131434446
A8: Inflation index
B9: 2018 | C9: 2019 | D9: 2020 | E9: 2021 | F9: 2022 | G9: 2023 | H9: 2024 | I9: 2025 | J9: 2026 | K9: 2027 | L9: 2028
A10: March | B10: 112.6 | C10: 114.1 | D10: 116.6 | E10: 117.9 | F10: =E13*1.0305^0.25 -> 122.2145182 | G10: 125.942061 | H10: 129.7832938 | I10: 133.7416843 | J10: 137.8208057 | K10: 142.0243402 | L10: 146.3560826
A11: June | B11: 113 | C11: 114.8 | D11: 114.4 | E11: 118.8 | F11: =F10*1.0305^0.25 -> 123.1359312 | G11: 126.8915771 | H11: 130.7617702 | I11: 134.7500042 | J11: 138.8598793 | K11: 143.0951056 | L11: 147.4595063
A12: September | B12: 113.5 | C12: 115.4 | D12: 116.2 | E12: 119.7 | F12: 124.064291 | G12: 127.8482519 | H12: 131.7476235 | I12: 135.7659261 | J12: 139.9067868 | K12: 144.1739438 | L12: 148.5712491
A13: December | B13: 114.1 | C13: 116.2 | D13: 117.2 | E13: 121.3 | F13: 124.99965 | G13: 128.8121393 | H13: 132.7409096 | I13: 136.7895073 | J13: 140.9615873 | K13: 145.2609157 | L13: 149.6913736
A14: Annual CPI | B14: 0.01900452489 | C14: =C10/B10-1 -> 0.01332149201 | D14: 0.02191060473 | E14: =E10/D10-1 -> 0.01114922813 | F14: =F10/E10-1 -> 0.03659472576 | G14: =G10/F10-1 -> 0.0305 | H14: =H10/G10-1 -> 0.0305 | I14: 0.0305 | J14: 0.0305 | K14: 0.0305 | L14: 0.0305
A16: Cost Pools
A17: Tariff class | B17: Short Name | C17: Tariff type | D17: Description of cost centre | E17: Description of tariff
A18: 1 | B18: Residential (Metro) | C18: Non-demand | D18: Tariff V - Residential (Metro) | E18: Residential tariff
A19: 2 | B19: Residential (YV) | C19: Non-demand | D19: Tariff V - Residential (YV) | E19: Residential tariff
A20: 3 | B20: Residential (SG) | C20: Non-demand | D20: Tariff V - Residential (SG) | E20: Residential tariff
A21: 4 | B21: Non res (Metro) | C21: Non-demand | D21: Tariff V - Non res (Metro) | E21: Non- Residential tariff
A22: 5 | B22: Non res (YV) | C22: Non-demand | D22: Tariff V - Non res (YV) | E22: Non- Residential tariff
A23: 6 | B23: Non res (SG) | C23: Non-demand | D23: Tariff V - Non res (SG) | E23: Non- Residential tariff
A24: 7 | B24: Tariff L | C24: Non-demand | D24: Tariff V - Tariff L | E24: Non- Residential tariff
A25: 8 | B25: Tariff D (Metro) | C25: Demand | D25: Tariff D - MHQ (GJ/h) Tariff D Zone - (Metro) | E25: Demand customers in region 1
A26: 9 | B26: Tariff D (SG) | C26: Demand | D26: Tariff D - MHQ (GJ/h) Tariff D Zone - (SG) | E26: Demand customers in region 3

Sheet Inflation - Input (hidden)
B1: ="ENVESTRA - Cost allocation model for "&'General Inputs'!#REF!&" ("&'General Inputs'!#REF!&")" -> 
B2: Inflation - inputs
B3: Back to table of contents
B4: This sheet provide inputs for inflation values based on Envestra financial model
B5: Updating the 2000 to 2004 Depreciation Allowance
B7: Period Ending 30 June | J7: 2005 | K7: =J7+1 -> 2006 | L7: 2007 | M7: 2008 | N7: 2009 | O7: 2010 | P7: 2011
B9: SAIPAR Inflation
B10: Quarterly inflation values up until December 2002 are the assumed values of SAIPAR.
B11: Quartley CPI values at and before September 2002 are baqck calculated from SAIPAR's inflation values.
B13: Quarterly CPI
B15: March | J15: 147.5 | K15: 151.9 | L15: 155.6 | M15: 162.2 | N15: 166.2 | O15: 170.355 | P15: 174.613875
B16: June | J16: 148.4 | K16: 154.3 | L16: 157.5 | M16: 164.6 | N16: 167.2291513 | O16: 171.4098801 | P16: 175.6951271
B17: September | J17: 149.8 | K17: 155.7 | L17: 158.6 | M17: 166.5 | N17: 168.2646754 | O17: 172.4712923 | P17: 176.7830746
B18: December | J18: 150.6 | K18: 155.5 | L18: 160.1 | M18: 166 | N18: 169.3066118 | O18: 173.539277 | P18: 177.877759
B20: Quarterly Inflation
J21: 2005 | K21: 2006 | L21: 2007 | M21: 2008 | N21: 2009 | O21: 2010 | P21: 2011
B22: March | J22: 0.006825938567 | K22: 0.008632138114 | L22: 0.0006430868167 | M22: 0.013116802 | N22: 0.001204819277 | O22: 0.006192246326 | P22: 0.006192246326
B23: June | J23: 0.006101694915 | K23: 0.01579986833 | L23: 0.01221079692 | M23: 0.01479654747 | N23: 0.006192246326 | O23: 0.006192246326 | P23: 0.006192246326
B24: September | J24: 0.009433962264 | K24: 0.00907323396 | L24: 0.006984126984 | M24: 0.01154313487 | N24: 0.006192246326 | O24: 0.006192246326 | P24: 0.006192246326
B25: December | J25: 0.005340453939 | K25: -0.001284521516 | L25: 0.009457755359 | M25: -0.003003003003 | N25: 0.006192246326 | O25: 0.006192246326 | P25: 0.006192246326
B27: Six Month Inflation
J28: 2005 | K28: 2006 | L28: 2007 | M28: 2008 | N28: 2009 | O28: 2010 | P28: 2011
B29: March | J29: 0.01444291609 | K29: 0.01401869159 | L29: -0.0006422607579 | M29: 0.02269861286 | N29: -0.001801801802 | O29: 0.01242283657 | P29: 0.01242283657
B30: June | J30: 0.01296928328 | K30: 0.02456839309 | L30: 0.01286173633 | M30: 0.02810743285 | N30: 0.00740452614 | O30: 0.01242283657 | P30: 0.01242283657
B31: September | J31: 0.01559322034 | K31: 0.0250164582 | L31: 0.01928020566 | M31: 0.02651048089 | N31: 0.01242283657 | O31: 0.01242283657 | P31: 0.01242283657
B32: December | J32: 0.01482479784 | K32: 0.00777705768 | L32: 0.01650793651 | M32: 0.008505467801 | N32: 0.01242283657 | O32: 0.01242283657 | P32: 0.01242283657
B34: Annual Inflation
J35: 2005 | K35: 2006 | L35: 2007 | M35: 2008 | N35: 2009 | O35: 2010 | P35: 2011
B36: March | J36: 0.02359472588 | K36: 0.02983050847 | L36: 0.02435813035 | M36: 0.04241645244 | N36: 0.02466091245 | O36: 0.025 | P36: 0.025
B37: June | J37: 0.02486187845 | K37: 0.0397574124 | L37: 0.02073882048 | M37: 0.04507936508 | N37: 0.0159729729 | O37: 0.025 | P37: 0.025
B38: September | J38: 0.03026134801 | K38: 0.0393858478 | L38: 0.01862556198 | M38: 0.04981084489 | N38: 0.01059865127 | O38: 0.025 | P38: 0.025
B39: December | J39: 0.02798634812 | K39: 0.03253652058 | L39: 0.02958199357 | M39: 0.03685196752 | N39: 0.01991934792 | O39: 0.025 | P39: 0.025
B41: Inflation factor to 31 December 2005
J42: 2005 | K42: 2006 | L42: 2007 | M42: 2008 | N42: 2009 | O42: 2010 | P42: 2011
B43: March | J43: 1 | K43: 1.029830508 | L43: 1.054915254 | M43: 1.099661017 | N43: 1.126779661 | O43: 1.154949153 | P43: 1.183822881
B44: June | J44: 1.006101695 | K44: 1.046101695 | L44: 1.06779661 | M44: 1.115932203 | N44: 1.133756958 | O44: 1.162100882 | P44: 1.191153404
B45: September | J45: 1.01559322 | K45: 1.05559322 | L45: 1.075254237 | M45: 1.128813559 | N45: 1.140777461 | O45: 1.169296897 | P45: 1.19852932
B46: December | J46: 1.021016949 | K46: 1.054237288 | L46: 1.085423729 | M46: 1.125423729 | N46: 1.147841436 | O46: 1.176537472 | P46: 1.205950908
B48: Actual Inlfation
B50: Quarterly CPI
J51: 2005 | K51: 2006 | L51: 2007 | M51: 2008 | N51: 2009 | O51: 2010 | P51: 2011
B52: March | J52: 147.5 | K52: 151.6609409 | L52: 155.4524644 | M52: 159.3387761 | N52: 163.3222455 | O52: 167.4053016 | P52: 171.5904341
B53: June | J53: 148.4 | K53: 152.6000628 | L53: 156.4150644 | M53: 160.325441 | N53: 164.333577 | O53: 168.4419165 | P53: 172.6529644
B54: September | J54: 149.8 | K54: 153.545 | L54: 157.383625 | M54: 161.3182156 | N54: 165.351171 | O54: 169.4849503 | P54: 173.722074
B55: December | J55: 150.7275985 | K55: 154.4957885 | L55: 158.3581832 | M55: 162.3171378 | N55: 166.3750662 | O55: 170.5344429 | P55: 174.7978039
B57: Quarterly Inflation
J58: 2005 | K58: 2006 | L58: 2007 | M58: 2008 | N58: 2009 | O58: 2010 | P58: 2011
B59: March | J59: 0.006825938567 | K59: 0.006192246326 | L59: 0.006192246326 | M59: 0.006192246326 | N59: 0.006192246326 | O59: 0.006192246326 | P59: 0.006192246326
B60: June | J60: 0.006101694915 | K60: 0.006192246326 | L60: 0.006192246326 | M60: 0.006192246326 | N60: 0.006192246326 | O60: 0.006192246326 | P60: 0.006192246326
B61: September | J61: 0.009433962264 | K61: 0.006192246326 | L61: 0.006192246326 | M61: 0.006192246326 | N61: 0.006192246326 | O61: 0.006192246326 | P61: 0.006192246326
B62: December | J62: 0.006192246326 | K62: 0.006192246326 | L62: 0.006192246326 | M62: 0.006192246326 | N62: 0.006192246326 | O62: 0.006192246326 | P62: 0.006192246326
B64: Six Month Inflation
J65: 2005 | K65: 2006 | L65: 2007 | M65: 2008 | N65: 2009 | O65: 2010 | P65: 2011
B66: March | J66: 0.01444291609 | K66: 0.01242283657 | L66: 0.01242283657 | M66: 0.01242283657 | N66: 0.01242283657 | O66: 0.01242283657 | P66: 0.01242283657
B67: June | J67: 0.01296928328 | K67: 0.01242283657 | L67: 0.01242283657 | M67: 0.01242283657 | N67: 0.01242283657 | O67: 0.01242283657 | P67: 0.01242283657
B68: September | J68: 0.01559322034 | K68: 0.01242283657 | L68: 0.01242283657 | M68: 0.01242283657 | N68: 0.01242283657 | O68: 0.01242283657 | P68: 0.01242283657
B69: December | J69: 0.01568462601 | K69: 0.01242283657 | L69: 0.01242283657 | M69: 0.01242283657 | N69: 0.01242283657 | O69: 0.01242283657 | P69: 0.01242283657
B71: Annual Inflation
J72: 2005 | K72: 2006 | L72: 2007 | M72: 2008 | N72: 2009 | O72: 2010 | P72: 2011
B73: March | J73: 0.02359472588 | K73: 0.02820976893 | L73: 0.025 | M73: 0.025 | N73: 0.025 | O73: 0.025 | P73: 0.025
B74: June | J74: 0.02486187845 | K74: 0.02830231012 | L74: 0.025 | M74: 0.025 | N74: 0.025 | O74: 0.025 | P74: 0.025
B75: September | J75: 0.03026134801 | K75: 0.025 | L75: 0.025 | M75: 0.025 | N75: 0.025 | O75: 0.025 | P75: 0.025
B76: December | J76: 0.02885732764 | K76: 0.025 | L76: 0.025 | M76: 0.025 | N76: 0.025 | O76: 0.025 | P76: 0.025
B78: Inflation factor to 31 December 2005
J79: 2005 | K79: 2006 | L79: 2007 | M79: 2008 | N79: 2009 | O79: 2010 | P79: 2011
B80: March | J80: 1 | K80: 1.028209769 | L80: 1.053915013 | M80: 1.080262888 | N80: 1.107269461 | O80: 1.134951197 | P80: 1.163324977
B81: June | J81: 1.006101695 | K81: 1.034576697 | L81: 1.060441115 | M81: 1.086952142 | N81: 1.114125946 | O81: 1.141979095 | P81: 1.170528572
B82: September | J82: 1.01559322 | K82: 1.040983051 | L82: 1.067007627 | M82: 1.093682818 | N82: 1.121024888 | O82: 1.14905051 | P82: 1.177776773
B83: December | J83: 1.021882024 | K83: 1.047429074 | L83: 1.073614801 | M83: 1.100455171 | N83: 1.12796655 | O83: 1.156165714 | P83: 1.185069857
B85: Model Inflation
B87: Quarterly CPI
J88: 2005 | K88: 2006 | L88: 2007 | M88: 2008 | N88: 2009 | O88: 2010 | P88: 2011
B89: March | J89: 147.5 | K89: 151.9 | L89: 155.6 | M89: 162.2 | N89: 166.2 | O89: 170.355 | P89: 174.613875
B90: June | J90: 148.4 | K90: 154.3 | L90: 157.5 | M90: 164.6 | N90: 167.2291513 | O90: 171.4098801 | P90: 175.6951271
B91: September | J91: 149.8 | K91: 155.7 | L91: 158.6 | M91: 166.5 | N91: 168.2646754 | O91: 172.4712923 | P91: 176.7830746
B92: December | J92: 150.6 | K92: 155.5 | L92: 160.1 | M92: 166 | N92: 169.3066118 | O92: 173.539277 | P92: 177.877759
B94: Quarterly Inflation
J95: 2005 | K95: 2006 | L95: 2007 | M95: 2008 | N95: 2009 | O95: 2010 | P95: 2011
B96: March | J96: 0.006825938567 | K96: 0.008632138114 | L96: 0.0006430868167 | M96: 0.013116802 | N96: 0.001204819277 | O96: 0.006192246326 | P96: 0.006192246326
B97: June | J97: 0.006101694915 | K97: 0.01579986833 | L97: 0.01221079692 | M97: 0.01479654747 | N97: 0.006192246326 | O97: 0.006192246326 | P97: 0.006192246326
B98: September | J98: 0.009433962264 | K98: 0.00907323396 | L98: 0.006984126984 | M98: 0.01154313487 | N98: 0.006192246326 | O98: 0.006192246326 | P98: 0.006192246326
B99: December | J99: 0.005340453939 | K99: -0.001284521516 | L99: 0.009457755359 | M99: -0.003003003003 | N99: 0.006192246326 | O99: 0.006192246326 | P99: 0.006192246326
B101: Six Month Inflation
J102: 2005 | K102: 2006 | L102: 2007 | M102: 2008 | N102: 2009 | O102: 2010 | P102: 2011
B103: March | J103: 0.01444291609 | K103: 0.01401869159 | L103: -0.0006422607579 | M103: 0.02269861286 | N103: -0.001801801802 | O103: 0.01242283657 | P103: 0.01242283657
B104: June | J104: 0.01296928328 | K104: 0.02456839309 | L104: 0.01286173633 | M104: 0.02810743285 | N104: 0.00740452614 | O104: 0.01242283657 | P104: 0.01242283657
B105: September | J105: 0.01559322034 | K105: 0.0250164582 | L105: 0.01928020566 | M105: 0.02651048089 | N105: 0.01242283657 | O105: 0.01242283657 | P105: 0.01242283657
B106: December | J106: 0.01482479784 | K106: 0.00777705768 | L106: 0.01650793651 | M106: 0.008505467801 | N106: 0.01242283657 | O106: 0.01242283657 | P106: 0.01242283657
B108: Annual Inflation | J108: 2005 | K108: 2006 | L108: 2007 | M108: 2008 | N108: 2009 | O108: 2010 | P108: 2011
B110: March | J110: 0.02359472588 | K110: 0.02983050847 | L110: 0.02435813035 | M110: 0.04241645244 | N110: 0.02466091245 | O110: 0.025 | P110: 0.025
B111: June | J111: 0.02486187845 | K111: 0.0397574124 | L111: 0.02073882048 | M111: 0.04507936508 | N111: 0.0159729729 | O111: 0.025 | P111: 0.025
B112: September | J112: 0.03026134801 | K112: 0.0393858478 | L112: 0.01862556198 | M112: 0.04981084489 | N112: 0.01059865127 | O112: 0.025 | P112: 0.025
B113: December | J113: 0.02798634812 | K113: 0.03253652058 | L113: 0.02958199357 | M113: 0.03685196752 | N113: 0.01991934792 | O113: 0.025 | P113: 0.025
B115: Inflation factor to 31 December 2005
J116: 2005 | K116: 2006 | L116: 2007 | M116: 2008 | N116: 2009 | O116: 2010 | P116: 2011
B117: March | J117: 1 | K117: 1.029830508 | L117: 1.054915254 | M117: 1.099661017 | N117: 1.126779661 | O117: 1.154949153 | P117: 1.183822881
B118: June | J118: 1.006101695 | K118: 1.046101695 | L118: 1.06779661 | M118: 1.115932203 | N118: 1.133756958 | O118: 1.162100882 | P118: 1.191153404
B119: September | J119: 1.01559322 | K119: 1.05559322 | L119: 1.075254237 | M119: 1.128813559 | N119: 1.140777461 | O119: 1.169296897 | P119: 1.19852932
B120: December | J120: 1.021016949 | K120: 1.054237288 | L120: 1.085423729 | M120: 1.125423729 | N120: 1.147841436 | O120: 1.176537472 | P120: 1.205950908

Sheet Connection Numbers Inputs
A1: Connection Numbers Inputs
A3: Peak Price Band 1 | B3: Residential (Metro) | C3: Residential (YV) | D3: Residential (SG) | E3: Non res (Metro) | F3: Non res (YV) | G3: Non res (SG) | H3: Tariff L | I3: Tariff D (Metro) | J3: Tariff D (SG)
A4: 2018/19 | B4: 680632 | C4: 5492 | D4: 5511 | E4: 16029 | F4: 71 | G4: 114 | H4: 13 | I4: 270 | J4: 3
A5: 2019/20 | B5: 686776 | C5: 5592 | D5: 5875 | E5: 15996 | F5: 70 | G5: 118 | H5: 12 | I5: 270 | J5: 3
A6: 2020/21 | B6: 689317 | C6: 5682 | D6: 6268 | E6: 15957 | F6: 74 | G6: 119 | H6: 12 | I6: 269 | J6: 3
A7: 2021-22 | B7: 689949.7446 | C7: 5752.479713 | D7: 6643.974192 | E7: 15914.83083 | F7: 77.14085939 | G7: 124.0508415 | H7: 11 | I7: 269 | J7: 3
A8: 2022-23 | B8: 689045.1243 | C8: 5811.339839 | D8: 7024.52095 | E8: 15033.75346 | F8: 79.57302957 | G8: 126.7900611 | H8: 11 | I8: 269 | J8: 3
A9: 2023-24 | B9: 686906.6567 | C9: 5872.317731 | D9: 7436.814703 | E9: 14155.29539 | F9: 82.10943089 | G9: 129.6485442 | H9: 11 | I9: 269 | J9: 3
A10: 2024-25 | B10: 688763.0469 | C10: 5986.003988 | D10: 7948.826947 | E10: 14116.08114 | F10: 85.59448734 | G10: 135.151353 | H10: 11 | I10: 269 | J10: 3
A11: 2025-26 | B11: 690282.3805 | C11: 6101.879991 | D11: 8497.246629 | E11: 14076.549 | F11: 89.22746369 | G11: 140.8877232 | H11: 11 | I11: 269 | J11: 3
A12: 2026-27 | B12: 691780.7401 | C12: 6219.987915 | D12: 9084.662557 | E12: 14036.68265 | F12: 93.01463825 | G12: 146.8675682 | H12: 11 | I12: 269 | J12: 3
A13: 2027-28 | B13: 693224.9286 | C13: 6340.370752 | D13: 9713.847622 | E13: 13996.46508 | F13: 96.96255582 | G13: 153.101222 | H13: 11 | I13: 269 | J13: 3
A15: Peak Price Band 2 | B15: Residential (Metro) | C15: Residential (YV) | D15: Residential (SG) | E15: Non res (Metro) | F15: Non res (YV) | G15: Non res (SG) | H15: Tarif L | I15: Tariff D (Metro) | J15: Tariff D (SG)
A16: 2018/19 | B16: 0 | C16: 0 | D16: 0 | E16: 0 | F16: 0 | G16: 0 | H16: 0 | I16: 0 | J16: 0
A17: 2019/20 | B17: 0 | C17: 0 | D17: 0 | E17: 0 | F17: 0 | G17: 0 | H17: 0 | I17: 0 | J17: 0
A18: 2020/21 | B18: 0 | C18: 0 | D18: 0 | E18: 0 | F18: 0 | G18: 0 | H18: 0 | I18: 0 | J18: 0
A19: 2021-22 | B19: 0 | C19: 0 | D19: 0 | E19: 0 | F19: 0 | G19: 0 | H19: 0 | I19: 0 | J19: 0
A20: 2022-23 | B20: 0 | C20: 0 | D20: 0 | E20: 0 | F20: 0 | G20: 0 | H20: 0 | I20: 0 | J20: 0
A21: 2023-24 | B21: 0 | C21: 0 | D21: 0 | E21: 0 | F21: 0 | G21: 0 | H21: 0 | I21: 0 | J21: 0
A22: 2024-25 | B22: 0 | C22: 0 | D22: 0 | E22: 0 | F22: 0 | G22: 0 | H22: 0 | I22: 0 | J22: 0
A23: 2025-26 | B23: 0 | C23: 0 | D23: 0 | E23: 0 | F23: 0 | G23: 0 | H23: 0 | I23: 0 | J23: 0
A24: 2026-27 | B24: 0 | C24: 0 | D24: 0 | E24: 0 | F24: 0 | G24: 0 | H24: 0 | I24: 0 | J24: 0
A25: 2027-28 | B25: 0 | C25: 0 | D25: 0 | E25: 0 | F25: 0 | G25: 0 | H25: 0 | I25: 0 | J25: 0
A27: Peak Price Band 3 | B27: Residential (Metro) | C27: Residential (YV) | D27: Residential (SG) | E27: Non res (Metro) | F27: Non res (YV) | G27: Non res (SG) | H27: Tarif L | I27: Tariff D (Metro) | J27: Tariff D (SG)
A28: 2018/19 | B28: 0 | C28: 0 | D28: 0 | E28: 0 | F28: 0 | G28: 0 | H28: 0 | I28: 0 | J28: 0
A29: 2019/20 | B29: 0 | C29: 0 | D29: 0 | E29: 0 | F29: 0 | G29: 0 | H29: 0 | I29: 0 | J29: 0
A30: 2020/21 | B30: 0 | C30: 0 | D30: 0 | E30: 0 | F30: 0 | G30: 0 | H30: 0 | I30: 0 | J30: 0
A31: 2021-22 | B31: 0 | C31: 0 | D31: 0 | E31: 0 | F31: 0 | G31: 0 | H31: 0 | I31: 0 | J31: 0
A32: 2022-23 | B32: 0 | C32: 0 | D32: 0 | E32: 0 | F32: 0 | G32: 0 | H32: 0 | I32: 0 | J32: 0
A33: 2023-24 | B33: 0 | C33: 0 | D33: 0 | E33: 0 | F33: 0 | G33: 0 | H33: 0 | I33: 0 | J33: 0
A34: 2024-25 | B34: 0 | C34: 0 | D34: 0 | E34: 0 | F34: 0 | G34: 0 | H34: 0 | I34: 0 | J34: 0
A35: 2025-26 | B35: 0 | C35: 0 | D35: 0 | E35: 0 | F35: 0 | G35: 0 | H35: 0 | I35: 0 | J35: 0
A36: 2026-27 | B36: 0 | C36: 0 | D36: 0 | E36: 0 | F36: 0 | G36: 0 | H36: 0 | I36: 0 | J36: 0
A37: 2027-28 | B37: 0 | C37: 0 | D37: 0 | E37: 0 | F37: 0 | G37: 0 | H37: 0 | I37: 0 | J37: 0
A39: Peak Price Band 4 | B39: Residential (Metro) | C39: Residential (YV) | D39: Residential (SG) | E39: Non res (Metro) | F39: Non res (YV) | G39: Non res (SG) | H39: Tarif L | I39: Tariff D (Metro) | J39: Tariff D (SG)
A40: 2018/19 | B40: 0 | C40: 0 | D40: 0 | E40: 0 | F40: 0 | G40: 0 | H40: 0 | I40: 0 | J40: 0
A41: 2019/20 | B41: 0 | C41: 0 | D41: 0 | E41: 0 | F41: 0 | G41: 0 | H41: 0 | I41: 0 | J41: 0
A42: 2020/21 | B42: 0 | C42: 0 | D42: 0 | E42: 0 | F42: 0 | G42: 0 | H42: 0 | I42: 0 | J42: 0
A43: 2021-22 | B43: 0 | C43: 0 | D43: 0 | E43: 0 | F43: 0 | G43: 0 | H43: 0 | I43: 0 | J43: 0
A44: 2022-23 | B44: 0 | C44: 0 | D44: 0 | E44: 0 | F44: 0 | G44: 0 | H44: 0 | I44: 0 | J44: 0
A45: 2023-24 | B45: 0 | C45: 0 | D45: 0 | E45: 0 | F45: 0 | G45: 0 | H45: 0 | I45: 0 | J45: 0
A46: 2024-25 | B46: 0 | C46: 0 | D46: 0 | E46: 0 | F46: 0 | G46: 0 | H46: 0 | I46: 0 | J46: 0
A47: 2025-26 | B47: 0 | C47: 0 | D47: 0 | E47: 0 | F47: 0 | G47: 0 | H47: 0 | I47: 0 | J47: 0
A48: 2026-27 | B48: 0 | C48: 0 | D48: 0 | E48: 0 | F48: 0 | G48: 0 | H48: 0 | I48: 0 | J48: 0
A49: 2027-28 | B49: 0 | C49: 0 | D49: 0 | E49: 0 | F49: 0 | G49: 0 | H49: 0 | I49: 0 | J49: 0
A51: Peak Price Band 5 | B51: Residential (Metro) | C51: Residential (YV) | D51: Residential (SG) | E51: Non res (Metro) | F51: Non res (YV) | G51: Non res (SG) | H51: Tarif L | I51: Tariff D (Metro) | J51: Tariff D (SG)
A52: 2018/19 | B52: 0 | C52: 0 | D52: 0 | E52: 0 | F52: 0 | G52: 0 | H52: 0 | I52: 0 | J52: 0
A53: 2019/20 | B53: 0 | C53: 0 | D53: 0 | E53: 0 | F53: 0 | G53: 0 | H53: 0 | I53: 0 | J53: 0
A54: 2020/21 | B54: 0 | C54: 0 | D54: 0 | E54: 0 | F54: 0 | G54: 0 | H54: 0 | I54: 0 | J54: 0
A55: 2021-22 | B55: 0 | C55: 0 | D55: 0 | E55: 0 | F55: 0 | G55: 0 | H55: 0 | I55: 0 | J55: 0
A56: 2022-23 | B56: 0 | C56: 0 | D56: 0 | E56: 0 | F56: 0 | G56: 0 | H56: 0 | I56: 0 | J56: 0
A57: 2023-24 | B57: 0 | C57: 0 | D57: 0 | E57: 0 | F57: 0 | G57: 0 | H57: 0 | I57: 0 | J57: 0
A58: 2024-25 | B58: 0 | C58: 0 | D58: 0 | E58: 0 | F58: 0 | G58: 0 | H58: 0 | I58: 0 | J58: 0
A59: 2025-26 | B59: 0 | C59: 0 | D59: 0 | E59: 0 | F59: 0 | G59: 0 | H59: 0 | I59: 0 | J59: 0
A60: 2026-27 | B60: 0 | C60: 0 | D60: 0 | E60: 0 | F60: 0 | G60: 0 | H60: 0 | I60: 0 | J60: 0
A61: 2027-28 | B61: 0 | C61: 0 | D61: 0 | E61: 0 | F61: 0 | G61: 0 | H61: 0 | I61: 0 | J61: 0
A63: Peak Price Band 6 | B63: Residential (Metro) | C63: Residential (YV) | D63: Residential (SG) | E63: Non res (Metro) | F63: Non res (YV) | G63: Non res (SG) | H63: Tarif L | I63: Tariff D (Metro) | J63: Tariff D (SG)
A64: 2018/19 | B64: 0 | C64: 0 | D64: 0 | E64: 0 | F64: 0 | G64: 0 | H64: 0 | I64: 0 | J64: 0
A65: 2019/20 | B65: 0 | C65: 0 | D65: 0 | E65: 0 | F65: 0 | G65: 0 | H65: 0 | I65: 0 | J65: 0
A66: 2020/21 | B66: 0 | C66: 0 | D66: 0 | E66: 0 | F66: 0 | G66: 0 | H66: 0 | I66: 0 | J66: 0
A67: 2021-22 | B67: 0 | C67: 0 | D67: 0 | E67: 0 | F67: 0 | G67: 0 | H67: 0 | I67: 0 | J67: 0
A68: 2022-23 | B68: 0 | C68: 0 | D68: 0 | E68: 0 | F68: 0 | G68: 0 | H68: 0 | I68: 0 | J68: 0
A69: 2023-24 | B69: 0 | C69: 0 | D69: 0 | E69: 0 | F69: 0 | G69: 0 | H69: 0 | I69: 0 | J69: 0
A70: 2024-25 | B70: 0 | C70: 0 | D70: 0 | E70: 0 | F70: 0 | G70: 0 | H70: 0 | I70: 0 | J70: 0
A71: 2025-26 | B71: 0 | C71: 0 | D71: 0 | E71: 0 | F71: 0 | G71: 0 | H71: 0 | I71: 0 | J71: 0
A72: 2026-27 | B72: 0 | C72: 0 | D72: 0 | E72: 0 | F72: 0 | G72: 0 | H72: 0 | I72: 0 | J72: 0
A73: 2027-28 | B73: 0 | C73: 0 | D73: 0 | E73: 0 | F73: 0 | G73: 0 | H73: 0 | I73: 0 | J73: 0
A75: Peak Price Band 7 | B75: Residential (Metro) | C75: Residential (YV) | D75: Residential (SG) | E75: Non res (Metro) | F75: Non res (YV) | G75: Non res (SG) | H75: Tarif L | I75: Tariff D (Metro) | J75: Tariff D (SG)
A76: 2018/19 | B76: 0 | C76: 0 | D76: 0 | E76: 0 | F76: 0 | G76: 0 | H76: 0 | I76: 0 | J76: 0
A77: 2019/20 | B77: 0 | C77: 0 | D77: 0 | E77: 0 | F77: 0 | G77: 0 | H77: 0 | I77: 0 | J77: 0
A78: 2020/21 | B78: 0 | C78: 0 | D78: 0 | E78: 0 | F78: 0 | G78: 0 | H78: 0 | I78: 0 | J78: 0
A79: 2021-22 | B79: 0 | C79: 0 | D79: 0 | E79: 0 | F79: 0 | G79: 0 | H79: 0 | I79: 0 | J79: 0
A80: 2022-23 | B80: 0 | C80: 0 | D80: 0 | E80: 0 | F80: 0 | G80: 0 | H80: 0 | I80: 0 | J80: 0
A81: 2023-24 | B81: 0 | C81: 0 | D81: 0 | E81: 0 | F81: 0 | G81: 0 | H81: 0 | I81: 0 | J81: 0
A82: 2024-25 | B82: 0 | C82: 0 | D82: 0 | E82: 0 | F82: 0 | G82: 0 | H82: 0 | I82: 0 | J82: 0
A83: 2025-26 | B83: 0 | C83: 0 | D83: 0 | E83: 0 | F83: 0 | G83: 0 | H83: 0 | I83: 0 | J83: 0
A84: 2026-27 | B84: 0 | C84: 0 | D84: 0 | E84: 0 | F84: 0 | G84: 0 | H84: 0 | I84: 0 | J84: 0
A85: 2027-28 | B85: 0 | C85: 0 | D85: 0 | E85: 0 | F85: 0 | G85: 0 | H85: 0 | I85: 0 | J85: 0
A87: Off Peak Price Band 1 | B87: Residential (Metro) | C87: Residential (YV) | D87: Residential (SG) | E87: Non res (Metro) | F87: Non res (YV) | G87: Non res (SG) | H87: Tarif L | I87: Tariff D (Metro) | J87: Tariff D (SG)
A88: 2008 | B88: 0 | C88: 0 | D88: 0 | E88: 0 | F88: 0 | G88: 0 | H88: 0 | I88: 0 | J88: 0
A89: 2009 | B89: 0 | C89: 0 | D89: 0 | E89: 0 | F89: 0 | G89: 0 | H89: 0 | I89: 0 | J89: 0
A90: 2010 | B90: 0 | C90: 0 | D90: 0 | E90: 0 | F90: 0 | G90: 0 | H90: 0 | I90: 0 | J90: 0
A91: 2011 | B91: 0 | C91: 0 | D91: 0 | E91: 0 | F91: 0 | G91: 0 | H91: 0 | I91: 0 | J91: 0
A92: 2012 | B92: 0 | C92: 0 | D92: 0 | E92: 0 | F92: 0 | G92: 0 | H92: 0 | I92: 0 | J92: 0
A93: 2013 | B93: 0 | C93: 0 | D93: 0 | E93: 0 | F93: 0 | G93: 0 | H93: 0 | I93: 0 | J93: 0
A94: 2014 | B94: 0 | C94: 0 | D94: 0 | E94: 0 | F94: 0 | G94: 0 | H94: 0 | I94: 0 | J94: 0
A95: 2015 | B95: 0 | C95: 0 | D95: 0 | E95: 0 | F95: 0 | G95: 0 | H95: 0 | I95: 0 | J95: 0
A96: 2016 | B96: 0 | C96: 0 | D96: 0 | E96: 0 | F96: 0 | G96: 0 | H96: 0 | I96: 0 | J96: 0
A97: 2017 | B97: 0 | C97: 0 | D97: 0 | E97: 0 | F97: 0 | G97: 0 | H97: 0 | I97: 0 | J97: 0
A99: Off Peak Price Band 2 | B99: Residential (Metro) | C99: Residential (YV) | D99: Residential (SG) | E99: Non res (Metro) | F99: Non res (YV) | G99: Non res (SG) | H99: Tarif L | I99: Tariff D (Metro) | J99: Tariff D (SG)
A100: 2008 | B100: 0 | C100: 0 | D100: 0 | E100: 0 | F100: 0 | G100: 0 | H100: 0 | I100: 0 | J100: 0
A101: 2009 | B101: 0 | C101: 0 | D101: 0 | E101: 0 | F101: 0 | G101: 0 | H101: 0 | I101: 0 | J101: 0
A102: 2010 | B102: 0 | C102: 0 | D102: 0 | E102: 0 | F102: 0 | G102: 0 | H102: 0 | I102: 0 | J102: 0
A103: 2011 | B103: 0 | C103: 0 | D103: 0 | E103: 0 | F103: 0 | G103: 0 | H103: 0 | I103: 0 | J103: 0
A104: 2012 | B104: 0 | C104: 0 | D104: 0 | E104: 0 | F104: 0 | G104: 0 | H104: 0 | I104: 0 | J104: 0
A105: 2013 | B105: 0 | C105: 0 | D105: 0 | E105: 0 | F105: 0 | G105: 0 | H105: 0 | I105: 0 | J105: 0
A106: 2014 | B106: 0 | C106: 0 | D106: 0 | E106: 0 | F106: 0 | G106: 0 | H106: 0 | I106: 0 | J106: 0
A107: 2015 | B107: 0 | C107: 0 | D107: 0 | E107: 0 | F107: 0 | G107: 0 | H107: 0 | I107: 0 | J107: 0
A108: 2016 | B108: 0 | C108: 0 | D108: 0 | E108: 0 | F108: 0 | G108: 0 | H108: 0 | I108: 0 | J108: 0
A109: 2017 | B109: 0 | C109: 0 | D109: 0 | E109: 0 | F109: 0 | G109: 0 | H109: 0 | I109: 0 | J109: 0
A111: Off Peak Price Band 3 | B111: Residential (Metro) | C111: Residential (YV) | D111: Residential (SG) | E111: Non res (Metro) | F111: Non res (YV) | G111: Non res (SG) | H111: Tarif L | I111: Tariff D (Metro) | J111: Tariff D (SG)
A112: 2008 | B112: 0 | C112: 0 | D112: 0 | E112: 0 | F112: 0 | G112: 0 | H112: 0 | I112: 0 | J112: 0
A113: 2009 | B113: 0 | C113: 0 | D113: 0 | E113: 0 | F113: 0 | G113: 0 | H113: 0 | I113: 0 | J113: 0
A114: 2010 | B114: 0 | C114: 0 | D114: 0 | E114: 0 | F114: 0 | G114: 0 | H114: 0 | I114: 0 | J114: 0
A115: 2011 | B115: 0 | C115: 0 | D115: 0 | E115: 0 | F115: 0 | G115: 0 | H115: 0 | I115: 0 | J115: 0
A116: 2012 | B116: 0 | C116: 0 | D116: 0 | E116: 0 | F116: 0 | G116: 0 | H116: 0 | I116: 0 | J116: 0
A117: 2013 | B117: 0 | C117: 0 | D117: 0 | E117: 0 | F117: 0 | G117: 0 | H117: 0 | I117: 0 | J117: 0
A118: 2014 | B118: 0 | C118: 0 | D118: 0 | E118: 0 | F118: 0 | G118: 0 | H118: 0 | I118: 0 | J118: 0
A119: 2015 | B119: 0 | C119: 0 | D119: 0 | E119: 0 | F119: 0 | G119: 0 | H119: 0 | I119: 0 | J119: 0
A120: 2016 | B120: 0 | C120: 0 | D120: 0 | E120: 0 | F120: 0 | G120: 0 | H120: 0 | I120: 0 | J120: 0
A121: 2017 | B121: 0 | C121: 0 | D121: 0 | E121: 0 | F121: 0 | G121: 0 | H121: 0 | I121: 0 | J121: 0
A123: Off Peak Price Band 4 | B123: Residential (Metro) | C123: Residential (YV) | D123: Residential (SG) | E123: Non res (Metro) | F123: Non res (YV) | G123: Non res (SG) | H123: Tarif L | I123: Tariff D (Metro) | J123: Tariff D (SG)
A124: 2008 | B124: 0 | C124: 0 | D124: 0 | E124: 0 | F124: 0 | G124: 0 | H124: 0 | I124: 0 | J124: 0
A125: 2009 | B125: 0 | C125: 0 | D125: 0 | E125: 0 | F125: 0 | G125: 0 | H125: 0 | I125: 0 | J125: 0
A126: 2010 | B126: 0 | C126: 0 | D126: 0 | E126: 0 | F126: 0 | G126: 0 | H126: 0 | I126: 0 | J126: 0
A127: 2011 | B127: 0 | C127: 0 | D127: 0 | E127: 0 | F127: 0 | G127: 0 | H127: 0 | I127: 0 | J127: 0
A128: 2012 | B128: 0 | C128: 0 | D128: 0 | E128: 0 | F128: 0 | G128: 0 | H128: 0 | I128: 0 | J128: 0
A129: 2013 | B129: 0 | C129: 0 | D129: 0 | E129: 0 | F129: 0 | G129: 0 | H129: 0 | I129: 0 | J129: 0
A130: 2014 | B130: 0 | C130: 0 | D130: 0 | E130: 0 | F130: 0 | G130: 0 | H130: 0 | I130: 0 | J130: 0
A131: 2015 | B131: 0 | C131: 0 | D131: 0 | E131: 0 | F131: 0 | G131: 0 | H131: 0 | I131: 0 | J131: 0
A132: 2016 | B132: 0 | C132: 0 | D132: 0 | E132: 0 | F132: 0 | G132: 0 | H132: 0 | I132: 0 | J132: 0
A133: 2017 | B133: 0 | C133: 0 | D133: 0 | E133: 0 | F133: 0 | G133: 0 | H133: 0 | I133: 0 | J133: 0
A135: Off Peak Price Band 5 | B135: Residential (Metro) | C135: Residential (YV) | D135: Residential (SG) | E135: Non res (Metro) | F135: Non res (YV) | G135: Non res (SG) | H135: Tarif L | I135: Tariff D (Metro) | J135: Tariff D (SG)
A136: 2008 | B136: 0 | C136: 0 | D136: 0 | E136: 0 | F136: 0 | G136: 0 | H136: 0 | I136: 0 | J136: 0
A137: 2009 | B137: 0 | C137: 0 | D137: 0 | E137: 0 | F137: 0 | G137: 0 | H137: 0 | I137: 0 | J137: 0
A138: 2010 | B138: 0 | C138: 0 | D138: 0 | E138: 0 | F138: 0 | G138: 0 | H138: 0 | I138: 0 | J138: 0
A139: 2011 | B139: 0 | C139: 0 | D139: 0 | E139: 0 | F139: 0 | G139: 0 | H139: 0 | I139: 0 | J139: 0
A140: 2012 | B140: 0 | C140: 0 | D140: 0 | E140: 0 | F140: 0 | G140: 0 | H140: 0 | I140: 0 | J140: 0
A141: 2013 | B141: 0 | C141: 0 | D141: 0 | E141: 0 | F141: 0 | G141: 0 | H141: 0 | I141: 0 | J141: 0
A142: 2014 | B142: 0 | C142: 0 | D142: 0 | E142: 0 | F142: 0 | G142: 0 | H142: 0 | I142: 0 | J142: 0
A143: 2015 | B143: 0 | C143: 0 | D143: 0 | E143: 0 | F143: 0 | G143: 0 | H143: 0 | I143: 0 | J143: 0
A144: 2016 | B144: 0 | C144: 0 | D144: 0 | E144: 0 | F144: 0 | G144: 0 | H144: 0 | I144: 0 | J144: 0
A145: 2017 | B145: 0 | C145: 0 | D145: 0 | E145: 0 | F145: 0 | G145: 0 | H145: 0 | I145: 0 | J145: 0
A147: Off Peak Price Band 6 | B147: Residential (Metro) | C147: Residential (YV) | D147: Residential (SG) | E147: Non res (Metro) | F147: Non res (YV) | G147: Non res (SG) | H147: Tarif L | I147: Tariff D (Metro) | J147: Tariff D (SG)
A148: 2008 | B148: 0 | C148: 0 | D148: 0 | E148: 0 | F148: 0 | G148: 0 | H148: 0 | I148: 0 | J148: 0
A149: 2009 | B149: 0 | C149: 0 | D149: 0 | E149: 0 | F149: 0 | G149: 0 | H149: 0 | I149: 0 | J149: 0
A150: 2010 | B150: 0 | C150: 0 | D150: 0 | E150: 0 | F150: 0 | G150: 0 | H150: 0 | I150: 0 | J150: 0
A151: 2011 | B151: 0 | C151: 0 | D151: 0 | E151: 0 | F151: 0 | G151: 0 | H151: 0 | I151: 0 | J151: 0
A152: 2012 | B152: 0 | C152: 0 | D152: 0 | E152: 0 | F152: 0 | G152: 0 | H152: 0 | I152: 0 | J152: 0
A153: 2013 | B153: 0 | C153: 0 | D153: 0 | E153: 0 | F153: 0 | G153: 0 | H153: 0 | I153: 0 | J153: 0
A154: 2014 | B154: 0 | C154: 0 | D154: 0 | E154: 0 | F154: 0 | G154: 0 | H154: 0 | I154: 0 | J154: 0
A155: 2015 | B155: 0 | C155: 0 | D155: 0 | E155: 0 | F155: 0 | G155: 0 | H155: 0 | I155: 0 | J155: 0
A156: 2016 | B156: 0 | C156: 0 | D156: 0 | E156: 0 | F156: 0 | G156: 0 | H156: 0 | I156: 0 | J156: 0
A157: 2017 | B157: 0 | C157: 0 | D157: 0 | E157: 0 | F157: 0 | G157: 0 | H157: 0 | I157: 0 | J157: 0
A159: Off Peak Price Band 7 | B159: Residential (Metro) | C159: Residential (YV) | D159: Residential (SG) | E159: Non res (Metro) | F159: Non res (YV) | G159: Non res (SG) | H159: Tarif L | I159: Tariff D (Metro) | J159: Tariff D (SG)
A160: 2008 | B160: 0 | C160: 0 | D160: 0 | E160: 0 | F160: 0 | G160: 0 | H160: 0 | I160: 0 | J160: 0
A161: 2009 | B161: 0 | C161: 0 | D161: 0 | E161: 0 | F161: 0 | G161: 0 | H161: 0 | I161: 0 | J161: 0
A162: 2010 | B162: 0 | C162: 0 | D162: 0 | E162: 0 | F162: 0 | G162: 0 | H162: 0 | I162: 0 | J162: 0
A163: 2011 | B163: 0 | C163: 0 | D163: 0 | E163: 0 | F163: 0 | G163: 0 | H163: 0 | I163: 0 | J163: 0
A164: 2012 | B164: 0 | C164: 0 | D164: 0 | E164: 0 | F164: 0 | G164: 0 | H164: 0 | I164: 0 | J164: 0
A165: 2013 | B165: 0 | C165: 0 | D165: 0 | E165: 0 | F165: 0 | G165: 0 | H165: 0 | I165: 0 | J165: 0
A166: 2014 | B166: 0 | C166: 0 | D166: 0 | E166: 0 | F166: 0 | G166: 0 | H166: 0 | I166: 0 | J166: 0
A167: 2015 | B167: 0 | C167: 0 | D167: 0 | E167: 0 | F167: 0 | G167: 0 | H167: 0 | I167: 0 | J167: 0
A168: 2016 | B168: 0 | C168: 0 | D168: 0 | E168: 0 | F168: 0 | G168: 0 | H168: 0 | I168: 0 | J168: 0
A169: 2017 | B169: 0 | C169: 0 | D169: 0 | E169: 0 | F169: 0 | G169: 0 | H169: 0 | I169: 0 | J169: 0
A171: Summary | B171: Residential (Metro) | C171: Residential (YV) | D171: Residential (SG) | E171: Non res (Metro) | F171: Non res (YV) | G171: Non res (SG) | H171: Tarif L | I171: Tariff D (Metro) | J171: Tariff D (SG)
A172: 2018/19 | B172: =B4 -> 680632 | C172: =C4 -> 5492 | D172: 5511 | E172: 16029 | F172: 71 | G172: 114 | H172: 13 | I172: 270 | J172: 3
A173: 2019/20 | B173: =B5 -> 686776 | C173: 5592 | D173: 5875 | E173: 15996 | F173: 70 | G173: 118 | H173: 12 | I173: 270 | J173: 3
A174: 2020/21 | B174: =B6 -> 689317 | C174: 5682 | D174: 6268 | E174: 15957 | F174: 74 | G174: 119 | H174: 12 | I174: 269 | J174: 3
A175: 2021-22 | B175: =B7 -> 689949.7446 | C175: 5752.479713 | D175: 6643.974192 | E175: 15914.83083 | F175: 77.14085939 | G175: 124.0508415 | H175: 11 | I175: 269 | J175: 3
A176: 2022-23 | B176: =B8 -> 689045.1243 | C176: 5811.339839 | D176: 7024.52095 | E176: 15033.75346 | F176: 79.57302957 | G176: 126.7900611 | H176: 11 | I176: 269 | J176: 3
A177: 2023-24 | B177: =B9 -> 686906.6567 | C177: 5872.317731 | D177: 7436.814703 | E177: 14155.29539 | F177: 82.10943089 | G177: 129.6485442 | H177: 11 | I177: 269 | J177: 3
A178: 2024-25 | B178: =B10 -> 688763.0469 | C178: 5986.003988 | D178: 7948.826947 | E178: 14116.08114 | F178: 85.59448734 | G178: 135.151353 | H178: 11 | I178: 269 | J178: 3
A179: 2025-26 | B179: =B11 -> 690282.3805 | C179: 6101.879991 | D179: 8497.246629 | E179: 14076.549 | F179: 89.22746369 | G179: 140.8877232 | H179: 11 | I179: 269 | J179: 3
A180: 2026-27 | B180: =B12 -> 691780.7401 | C180: 6219.987915 | D180: 9084.662557 | E180: 14036.68265 | F180: 93.01463825 | G180: 146.8675682 | H180: 11 | I180: 269 | J180: 3
A181: 2027-28 | B181: =B13 -> 693224.9286 | C181: 6340.370752 | D181: 9713.847622 | E181: 13996.46508 | F181: 96.96255582 | G181: 153.101222 | H181: 11 | I181: 269 | J181: 3

Sheet No of Connections Summ (hidden)
B1: ="ENVESTRA - Tariff model for "&'General Inputs'!#REF!&" ("&'General Inputs'!#REF!&")" -> 
B2: Number of connections - Summary
B3: Back to table of contents
B4: This page summarises the total number of connections input for each cost pools
B7: Period Ending 30 June | J7: 2005 | K7: =J7+1 -> 2006 | L7: 2007 | M7: 2008 | N7: 2009 | O7: 2010 | P7: 2011
B11: Connections data
C13: Number of connections
C16: Total number of connections
C17: in connections units
F18: Short name | G18: Price bands
C20: ='General Inputs'!#REF! ->  | F20: ='General Inputs'!B18 -> Residential (Metro) | G20: Total | L20: =MAX('Connection Numbers Inputs'!B4,SUM('Connection Numbers Inputs'!B16,'Connection Numbers Inputs'!B28,'Connection Numbers Inputs'!B40,'Connection Numbers Inputs'!B52,'Connection Numbers Inputs'!B64)) -> 680632 | M20: =MAX('Connection Numbers Inputs'!B5,SUM('Connection Numbers Inputs'!B17,'Connection Numbers Inputs'!B29,'Connection Numbers Inputs'!B41,'Connection Numbers Inputs'!B53,'Connection Numbers Inputs'!B65)) -> 686776 | N20: =MAX('Connection Numbers Inputs'!B6,SUM('Connection Numbers Inputs'!B18,'Connection Numbers Inputs'!B30,'Connection Numbers Inputs'!B42,'Connection Numbers Inputs'!B54,'Connection Numbers Inputs'!B66)) -> 689317 | O20: =MAX('Connection Numbers Inputs'!B7,SUM('Connection Numbers Inputs'!B19,'Connection Numbers Inputs'!B31,'Connection Numbers Inputs'!B43,'Connection Numbers Inputs'!B55,'Connection Numbers Inputs'!B67)) -> 689949.7446 | P20: =MAX('Connection Numbers Inputs'!B8,SUM('Connection Numbers Inputs'!B20,'Connection Numbers Inputs'!B32,'Connection Numbers Inputs'!B44,'Connection Numbers Inputs'!B56,'Connection Numbers Inputs'!B68)) -> 689045.1243
C21: ='General Inputs'!#REF! ->  | F21: ='General Inputs'!B19 -> Residential (YV) | G21: Total | L21: =MAX('Connection Numbers Inputs'!C4,SUM('Connection Numbers Inputs'!C16,'Connection Numbers Inputs'!C28,'Connection Numbers Inputs'!C40,'Connection Numbers Inputs'!C52,'Connection Numbers Inputs'!C64)) -> 5492 | M21: =MAX('Connection Numbers Inputs'!C5,SUM('Connection Numbers Inputs'!C17,'Connection Numbers Inputs'!C29,'Connection Numbers Inputs'!C41,'Connection Numbers Inputs'!C53,'Connection Numbers Inputs'!C65)) -> 5592 | N21: =MAX('Connection Numbers Inputs'!C6,SUM('Connection Numbers Inputs'!C18,'Connection Numbers Inputs'!C30,'Connection Numbers Inputs'!C42,'Connection Numbers Inputs'!C54,'Connection Numbers Inputs'!C66)) -> 5682 | O21: =MAX('Connection Numbers Inputs'!C7,SUM('Connection Numbers Inputs'!C19,'Connection Numbers Inputs'!C31,'Connection Numbers Inputs'!C43,'Connection Numbers Inputs'!C55,'Connection Numbers Inputs'!C67)) -> 5752.479713 | P21: =MAX('Connection Numbers Inputs'!C8,SUM('Connection Numbers Inputs'!C20,'Connection Numbers Inputs'!C32,'Connection Numbers Inputs'!C44,'Connection Numbers Inputs'!C56,'Connection Numbers Inputs'!C68)) -> 5811.339839
C22: ='General Inputs'!#REF! ->  | F22: ='General Inputs'!B26 -> Tariff D (SG) | G22: Total | L22: =MAX('Connection Numbers Inputs'!J4,SUM('Connection Numbers Inputs'!J16,'Connection Numbers Inputs'!J28,'Connection Numbers Inputs'!J40,'Connection Numbers Inputs'!J52,'Connection Numbers Inputs'!J64)) -> 3 | M22: =MAX('Connection Numbers Inputs'!J5,SUM('Connection Numbers Inputs'!J17,'Connection Numbers Inputs'!J29,'Connection Numbers Inputs'!J41,'Connection Numbers Inputs'!J53,'Connection Numbers Inputs'!J65)) -> 3 | N22: =MAX('Connection Numbers Inputs'!J6,SUM('Connection Numbers Inputs'!J18,'Connection Numbers Inputs'!J30,'Connection Numbers Inputs'!J42,'Connection Numbers Inputs'!J54,'Connection Numbers Inputs'!J66)) -> 3 | O22: =MAX('Connection Numbers Inputs'!J7,SUM('Connection Numbers Inputs'!J19,'Connection Numbers Inputs'!J31,'Connection Numbers Inputs'!J43,'Connection Numbers Inputs'!J55,'Connection Numbers Inputs'!J67)) -> 3 | P22: =MAX('Connection Numbers Inputs'!J8,SUM('Connection Numbers Inputs'!J20,'Connection Numbers Inputs'!J32,'Connection Numbers Inputs'!J44,'Connection Numbers Inputs'!J56,'Connection Numbers Inputs'!J68)) -> 3
C23: ='General Inputs'!#REF! ->  | F23: ='General Inputs'!#REF! ->  | G23: Total | L23: =MAX('Connection Numbers Inputs'!#REF!,SUM('Connection Numbers Inputs'!#REF!,'Connection Numbers Inputs'!#REF!,'Connection Numbers Inputs'!#REF!,'Connection Numbers Inputs'!#REF!,'Connection Numbers Inputs'!#REF!)) ->  | M23: =MAX('Connection Numbers Inputs'!#REF!,SUM('Connection Numbers Inputs'!#REF!,'Connection Numbers Inputs'!#REF!,'Connection Numbers Inputs'!#REF!,'Connection Numbers Inputs'!#REF!,'Connection Numbers Inputs'!#REF!)) ->  | N23: =MAX('Connection Numbers Inputs'!#REF!,SUM('Connection Numbers Inputs'!#REF!,'Connection Numbers Inputs'!#REF!,'Connection Numbers Inputs'!#REF!,'Connection Numbers Inputs'!#REF!,'Connection Numbers Inputs'!#REF!)) ->  | O23: =MAX('Connection Numbers Inputs'!#REF!,SUM('Connection Numbers Inputs'!#REF!,'Connection Numbers Inputs'!#REF!,'Connection Numbers Inputs'!#REF!,'Connection Numbers Inputs'!#REF!,'Connection Numbers Inputs'!#REF!)) ->  | P23: =MAX('Connection Numbers Inputs'!#REF!,SUM('Connection Numbers Inputs'!#REF!,'Connection Numbers Inputs'!#REF!,'Connection Numbers Inputs'!#REF!,'Connection Numbers Inputs'!#REF!,'Connection Numbers Inputs'!#REF!)) -> 
C24: ='General Inputs'!#REF! ->  | F24: ='General Inputs'!#REF! ->  | G24: Total | L24: =MAX('Connection Numbers Inputs'!#REF!,SUM('Connection Numbers Inputs'!#REF!,'Connection Numbers Inputs'!#REF!,'Connection Numbers Inputs'!#REF!,'Connection Numbers Inputs'!#REF!,'Connection Numbers Inputs'!#REF!)) ->  | M24: =MAX('Connection Numbers Inputs'!#REF!,SUM('Connection Numbers Inputs'!#REF!,'Connection Numbers Inputs'!#REF!,'Connection Numbers Inputs'!#REF!,'Connection Numbers Inputs'!#REF!,'Connection Numbers Inputs'!#REF!)) ->  | N24: =MAX('Connection Numbers Inputs'!#REF!,SUM('Connection Numbers Inputs'!#REF!,'Connection Numbers Inputs'!#REF!,'Connection Numbers Inputs'!#REF!,'Connection Numbers Inputs'!#REF!,'Connection Numbers Inputs'!#REF!)) ->  | O24: =MAX('Connection Numbers Inputs'!#REF!,SUM('Connection Numbers Inputs'!#REF!,'Connection Numbers Inputs'!#REF!,'Connection Numbers Inputs'!#REF!,'Connection Numbers Inputs'!#REF!,'Connection Numbers Inputs'!#REF!)) ->  | P24: =MAX('Connection Numbers Inputs'!#REF!,SUM('Connection Numbers Inputs'!#REF!,'Connection Numbers Inputs'!#REF!,'Connection Numbers Inputs'!#REF!,'Connection Numbers Inputs'!#REF!,'Connection Numbers Inputs'!#REF!)) -> 
C25: ='General Inputs'!#REF! ->  | F25: ='General Inputs'!B27 -> 0 | G25: Total | L25: =MAX('Connection Numbers Inputs'!#REF!,SUM('Connection Numbers Inputs'!#REF!,'Connection Numbers Inputs'!#REF!,'Connection Numbers Inputs'!#REF!,'Connection Numbers Inputs'!#REF!,'Connection Numbers Inputs'!#REF!)) ->  | M25: =MAX('Connection Numbers Inputs'!#REF!,SUM('Connection Numbers Inputs'!#REF!,'Connection Numbers Inputs'!#REF!,'Connection Numbers Inputs'!#REF!,'Connection Numbers Inputs'!#REF!,'Connection Numbers Inputs'!#REF!)) ->  | N25: =MAX('Connection Numbers Inputs'!#REF!,SUM('Connection Numbers Inputs'!#REF!,'Connection Numbers Inputs'!#REF!,'Connection Numbers Inputs'!#REF!,'Connection Numbers Inputs'!#REF!,'Connection Numbers Inputs'!#REF!)) ->  | O25: =MAX('Connection Numbers Inputs'!#REF!,SUM('Connection Numbers Inputs'!#REF!,'Connection Numbers Inputs'!#REF!,'Connection Numbers Inputs'!#REF!,'Connection Numbers Inputs'!#REF!,'Connection Numbers Inputs'!#REF!)) ->  | P25: =MAX('Connection Numbers Inputs'!#REF!,SUM('Connection Numbers Inputs'!#REF!,'Connection Numbers Inputs'!#REF!,'Connection Numbers Inputs'!#REF!,'Connection Numbers Inputs'!#REF!,'Connection Numbers Inputs'!#REF!)) -> 
C26: ='General Inputs'!#REF! ->  | F26: ='General Inputs'!B28 -> 0 | G26: Total | L26: =MAX('Connection Numbers Inputs'!#REF!,SUM('Connection Numbers Inputs'!#REF!,'Connection Numbers Inputs'!#REF!,'Connection Numbers Inputs'!#REF!,'Connection Numbers Inputs'!#REF!,'Connection Numbers Inputs'!#REF!)) ->  | M26: =MAX('Connection Numbers Inputs'!#REF!,SUM('Connection Numbers Inputs'!#REF!,'Connection Numbers Inputs'!#REF!,'Connection Numbers Inputs'!#REF!,'Connection Numbers Inputs'!#REF!,'Connection Numbers Inputs'!#REF!)) ->  | N26: =MAX('Connection Numbers Inputs'!#REF!,SUM('Connection Numbers Inputs'!#REF!,'Connection Numbers Inputs'!#REF!,'Connection Numbers Inputs'!#REF!,'Connection Numbers Inputs'!#REF!,'Connection Numbers Inputs'!#REF!)) ->  | O26: =MAX('Connection Numbers Inputs'!#REF!,SUM('Connection Numbers Inputs'!#REF!,'Connection Numbers Inputs'!#REF!,'Connection Numbers Inputs'!#REF!,'Connection Numbers Inputs'!#REF!,'Connection Numbers Inputs'!#REF!)) ->  | P26: =MAX('Connection Numbers Inputs'!#REF!,SUM('Connection Numbers Inputs'!#REF!,'Connection Numbers Inputs'!#REF!,'Connection Numbers Inputs'!#REF!,'Connection Numbers Inputs'!#REF!,'Connection Numbers Inputs'!#REF!)) -> 
C27: ='General Inputs'!#REF! ->  | F27: ='General Inputs'!B29 -> 0 | G27: Total | L27: =MAX('Connection Numbers Inputs'!#REF!,SUM('Connection Numbers Inputs'!#REF!,'Connection Numbers Inputs'!#REF!,'Connection Numbers Inputs'!#REF!,'Connection Numbers Inputs'!#REF!,'Connection Numbers Inputs'!#REF!)) ->  | M27: =MAX('Connection Numbers Inputs'!#REF!,SUM('Connection Numbers Inputs'!#REF!,'Connection Numbers Inputs'!#REF!,'Connection Numbers Inputs'!#REF!,'Connection Numbers Inputs'!#REF!,'Connection Numbers Inputs'!#REF!)) ->  | N27: =MAX('Connection Numbers Inputs'!#REF!,SUM('Connection Numbers Inputs'!#REF!,'Connection Numbers Inputs'!#REF!,'Connection Numbers Inputs'!#REF!,'Connection Numbers Inputs'!#REF!,'Connection Numbers Inputs'!#REF!)) ->  | O27: =MAX('Connection Numbers Inputs'!#REF!,SUM('Connection Numbers Inputs'!#REF!,'Connection Numbers Inputs'!#REF!,'Connection Numbers Inputs'!#REF!,'Connection Numbers Inputs'!#REF!,'Connection Numbers Inputs'!#REF!)) ->  | P27: =MAX('Connection Numbers Inputs'!#REF!,SUM('Connection Numbers Inputs'!#REF!,'Connection Numbers Inputs'!#REF!,'Connection Numbers Inputs'!#REF!,'Connection Numbers Inputs'!#REF!,'Connection Numbers Inputs'!#REF!)) -> 
C28: ='General Inputs'!#REF! ->  | F28: ='General Inputs'!B30 -> 0 | G28: Total | L28: =MAX('Connection Numbers Inputs'!#REF!,SUM('Connection Numbers Inputs'!#REF!,'Connection Numbers Inputs'!#REF!,'Connection Numbers Inputs'!#REF!,'Connection Numbers Inputs'!#REF!,'Connection Numbers Inputs'!#REF!)) ->  | M28: =MAX('Connection Numbers Inputs'!#REF!,SUM('Connection Numbers Inputs'!#REF!,'Connection Numbers Inputs'!#REF!,'Connection Numbers Inputs'!#REF!,'Connection Numbers Inputs'!#REF!,'Connection Numbers Inputs'!#REF!)) ->  | N28: =MAX('Connection Numbers Inputs'!#REF!,SUM('Connection Numbers Inputs'!#REF!,'Connection Numbers Inputs'!#REF!,'Connection Numbers Inputs'!#REF!,'Connection Numbers Inputs'!#REF!,'Connection Numbers Inputs'!#REF!)) ->  | O28: =MAX('Connection Numbers Inputs'!#REF!,SUM('Connection Numbers Inputs'!#REF!,'Connection Numbers Inputs'!#REF!,'Connection Numbers Inputs'!#REF!,'Connection Numbers Inputs'!#REF!,'Connection Numbers Inputs'!#REF!)) ->  | P28: =MAX('Connection Numbers Inputs'!#REF!,SUM('Connection Numbers Inputs'!#REF!,'Connection Numbers Inputs'!#REF!,'Connection Numbers Inputs'!#REF!,'Connection Numbers Inputs'!#REF!,'Connection Numbers Inputs'!#REF!)) -> 
C29: ='General Inputs'!#REF! ->  | F29: ='General Inputs'!B31 -> 0 | G29: Total | L29: =MAX('Connection Numbers Inputs'!#REF!,SUM('Connection Numbers Inputs'!#REF!,'Connection Numbers Inputs'!#REF!,'Connection Numbers Inputs'!#REF!,'Connection Numbers Inputs'!#REF!,'Connection Numbers Inputs'!#REF!)) ->  | M29: =MAX('Connection Numbers Inputs'!#REF!,SUM('Connection Numbers Inputs'!#REF!,'Connection Numbers Inputs'!#REF!,'Connection Numbers Inputs'!#REF!,'Connection Numbers Inputs'!#REF!,'Connection Numbers Inputs'!#REF!)) ->  | N29: =MAX('Connection Numbers Inputs'!#REF!,SUM('Connection Numbers Inputs'!#REF!,'Connection Numbers Inputs'!#REF!,'Connection Numbers Inputs'!#REF!,'Connection Numbers Inputs'!#REF!,'Connection Numbers Inputs'!#REF!)) ->  | O29: =MAX('Connection Numbers Inputs'!#REF!,SUM('Connection Numbers Inputs'!#REF!,'Connection Numbers Inputs'!#REF!,'Connection Numbers Inputs'!#REF!,'Connection Numbers Inputs'!#REF!,'Connection Numbers Inputs'!#REF!)) ->  | P29: =MAX('Connection Numbers Inputs'!#REF!,SUM('Connection Numbers Inputs'!#REF!,'Connection Numbers Inputs'!#REF!,'Connection Numbers Inputs'!#REF!,'Connection Numbers Inputs'!#REF!,'Connection Numbers Inputs'!#REF!)) -> 
C30: ='General Inputs'!#REF! ->  | F30: ='General Inputs'!B32 -> 0 | G30: Total | L30: =MAX('Connection Numbers Inputs'!K4,SUM('Connection Numbers Inputs'!K16,'Connection Numbers Inputs'!K28,'Connection Numbers Inputs'!K40,'Connection Numbers Inputs'!K52,'Connection Numbers Inputs'!K64)) -> 0 | M30: =MAX('Connection Numbers Inputs'!K5,SUM('Connection Numbers Inputs'!K17,'Connection Numbers Inputs'!K29,'Connection Numbers Inputs'!K41,'Connection Numbers Inputs'!K53,'Connection Numbers Inputs'!K65)) -> 0 | N30: =MAX('Connection Numbers Inputs'!K6,SUM('Connection Numbers Inputs'!K18,'Connection Numbers Inputs'!K30,'Connection Numbers Inputs'!K42,'Connection Numbers Inputs'!K54,'Connection Numbers Inputs'!K66)) -> 0 | O30: =MAX('Connection Numbers Inputs'!K7,SUM('Connection Numbers Inputs'!K19,'Connection Numbers Inputs'!K31,'Connection Numbers Inputs'!K43,'Connection Numbers Inputs'!K55,'Connection Numbers Inputs'!K67)) -> 0 | P30: =MAX('Connection Numbers Inputs'!K8,SUM('Connection Numbers Inputs'!K20,'Connection Numbers Inputs'!K32,'Connection Numbers Inputs'!K44,'Connection Numbers Inputs'!K56,'Connection Numbers Inputs'!K68)) -> 0
C31: ='General Inputs'!#REF! ->  | F31: ='General Inputs'!B33 -> 0 | G31: Total | L31: =MAX('Connection Numbers Inputs'!L4,SUM('Connection Numbers Inputs'!L16,'Connection Numbers Inputs'!L28,'Connection Numbers Inputs'!L40,'Connection Numbers Inputs'!L52,'Connection Numbers Inputs'!L64)) -> 0 | M31: =MAX('Connection Numbers Inputs'!L5,SUM('Connection Numbers Inputs'!L17,'Connection Numbers Inputs'!L29,'Connection Numbers Inputs'!L41,'Connection Numbers Inputs'!L53,'Connection Numbers Inputs'!L65)) -> 0 | N31: =MAX('Connection Numbers Inputs'!L6,SUM('Connection Numbers Inputs'!L18,'Connection Numbers Inputs'!L30,'Connection Numbers Inputs'!L42,'Connection Numbers Inputs'!L54,'Connection Numbers Inputs'!L66)) -> 0 | O31: =MAX('Connection Numbers Inputs'!L7,SUM('Connection Numbers Inputs'!L19,'Connection Numbers Inputs'!L31,'Connection Numbers Inputs'!L43,'Connection Numbers Inputs'!L55,'Connection Numbers Inputs'!L67)) -> 0 | P31: =MAX('Connection Numbers Inputs'!L8,SUM('Connection Numbers Inputs'!L20,'Connection Numbers Inputs'!L32,'Connection Numbers Inputs'!L44,'Connection Numbers Inputs'!L56,'Connection Numbers Inputs'!L68)) -> 0
C32: ='General Inputs'!#REF! ->  | F32: ='General Inputs'!B34 -> 0 | G32: Total | L32: =MAX('Connection Numbers Inputs'!N4,SUM('Connection Numbers Inputs'!N16,'Connection Numbers Inputs'!N28,'Connection Numbers Inputs'!N40,'Connection Numbers Inputs'!N52,'Connection Numbers Inputs'!N64)) -> 0 | M32: =MAX('Connection Numbers Inputs'!N5,SUM('Connection Numbers Inputs'!N17,'Connection Numbers Inputs'!N29,'Connection Numbers Inputs'!N41,'Connection Numbers Inputs'!N53,'Connection Numbers Inputs'!N65)) -> 0 | N32: =MAX('Connection Numbers Inputs'!N6,SUM('Connection Numbers Inputs'!N18,'Connection Numbers Inputs'!N30,'Connection Numbers Inputs'!N42,'Connection Numbers Inputs'!N54,'Connection Numbers Inputs'!N66)) -> 0 | O32: =MAX('Connection Numbers Inputs'!N7,SUM('Connection Numbers Inputs'!N19,'Connection Numbers Inputs'!N31,'Connection Numbers Inputs'!N43,'Connection Numbers Inputs'!N55,'Connection Numbers Inputs'!N67)) -> 0 | P32: =MAX('Connection Numbers Inputs'!N8,SUM('Connection Numbers Inputs'!N20,'Connection Numbers Inputs'!N32,'Connection Numbers Inputs'!N44,'Connection Numbers Inputs'!N56,'Connection Numbers Inputs'!N68)) -> 0
C33: ='General Inputs'!#REF! ->  | F33: ='General Inputs'!B35 -> 0 | G33: Total | L33: =MAX('Connection Numbers Inputs'!M4,SUM('Connection Numbers Inputs'!M16,'Connection Numbers Inputs'!M28,'Connection Numbers Inputs'!M40,'Connection Numbers Inputs'!M52,'Connection Numbers Inputs'!M64)) -> 0 | M33: =MAX('Connection Numbers Inputs'!M5,SUM('Connection Numbers Inputs'!M17,'Connection Numbers Inputs'!M29,'Connection Numbers Inputs'!M41,'Connection Numbers Inputs'!M53,'Connection Numbers Inputs'!M65)) -> 0 | N33: =MAX('Connection Numbers Inputs'!M6,SUM('Connection Numbers Inputs'!M18,'Connection Numbers Inputs'!M30,'Connection Numbers Inputs'!M42,'Connection Numbers Inputs'!M54,'Connection Numbers Inputs'!M66)) -> 0 | O33: =MAX('Connection Numbers Inputs'!M7,SUM('Connection Numbers Inputs'!M19,'Connection Numbers Inputs'!M31,'Connection Numbers Inputs'!M43,'Connection Numbers Inputs'!M55,'Connection Numbers Inputs'!M67)) -> 0 | P33: =MAX('Connection Numbers Inputs'!M8,SUM('Connection Numbers Inputs'!M20,'Connection Numbers Inputs'!M32,'Connection Numbers Inputs'!M44,'Connection Numbers Inputs'!M56,'Connection Numbers Inputs'!M68)) -> 0
C34: ='General Inputs'!#REF! ->  | F34: ='General Inputs'!#REF! ->  | G34: Total | L34: =MAX('Connection Numbers Inputs'!#REF!,SUM('Connection Numbers Inputs'!#REF!,'Connection Numbers Inputs'!#REF!,'Connection Numbers Inputs'!#REF!,'Connection Numbers Inputs'!#REF!,'Connection Numbers Inputs'!#REF!)) ->  | M34: =MAX('Connection Numbers Inputs'!#REF!,SUM('Connection Numbers Inputs'!#REF!,'Connection Numbers Inputs'!#REF!,'Connection Numbers Inputs'!#REF!,'Connection Numbers Inputs'!#REF!,'Connection Numbers Inputs'!#REF!)) ->  | N34: =MAX('Connection Numbers Inputs'!#REF!,SUM('Connection Numbers Inputs'!#REF!,'Connection Numbers Inputs'!#REF!,'Connection Numbers Inputs'!#REF!,'Connection Numbers Inputs'!#REF!,'Connection Numbers Inputs'!#REF!)) ->  | O34: =MAX('Connection Numbers Inputs'!#REF!,SUM('Connection Numbers Inputs'!#REF!,'Connection Numbers Inputs'!#REF!,'Connection Numbers Inputs'!#REF!,'Connection Numbers Inputs'!#REF!,'Connection Numbers Inputs'!#REF!)) ->  | P34: =MAX('Connection Numbers Inputs'!#REF!,SUM('Connection Numbers Inputs'!#REF!,'Connection Numbers Inputs'!#REF!,'Connection Numbers Inputs'!#REF!,'Connection Numbers Inputs'!#REF!,'Connection Numbers Inputs'!#REF!)) -> 
C35: ='General Inputs'!#REF! ->  | F35: ='General Inputs'!#REF! ->  | G35: Total | L35: =MAX('Connection Numbers Inputs'!#REF!,SUM('Connection Numbers Inputs'!#REF!,'Connection Numbers Inputs'!#REF!,'Connection Numbers Inputs'!#REF!,'Connection Numbers Inputs'!#REF!,'Connection Numbers Inputs'!#REF!)) ->  | M35: =MAX('Connection Numbers Inputs'!#REF!,SUM('Connection Numbers Inputs'!#REF!,'Connection Numbers Inputs'!#REF!,'Connection Numbers Inputs'!#REF!,'Connection Numbers Inputs'!#REF!,'Connection Numbers Inputs'!#REF!)) ->  | N35: =MAX('Connection Numbers Inputs'!#REF!,SUM('Connection Numbers Inputs'!#REF!,'Connection Numbers Inputs'!#REF!,'Connection Numbers Inputs'!#REF!,'Connection Numbers Inputs'!#REF!,'Connection Numbers Inputs'!#REF!)) ->  | O35: =MAX('Connection Numbers Inputs'!#REF!,SUM('Connection Numbers Inputs'!#REF!,'Connection Numbers Inputs'!#REF!,'Connection Numbers Inputs'!#REF!,'Connection Numbers Inputs'!#REF!,'Connection Numbers Inputs'!#REF!)) ->  | P35: =MAX('Connection Numbers Inputs'!#REF!,SUM('Connection Numbers Inputs'!#REF!,'Connection Numbers Inputs'!#REF!,'Connection Numbers Inputs'!#REF!,'Connection Numbers Inputs'!#REF!,'Connection Numbers Inputs'!#REF!)) -> 
C36: ='General Inputs'!#REF! ->  | F36: ='General Inputs'!#REF! ->  | G36: Total | L36: =MAX('Connection Numbers Inputs'!#REF!,SUM('Connection Numbers Inputs'!#REF!,'Connection Numbers Inputs'!#REF!,'Connection Numbers Inputs'!#REF!,'Connection Numbers Inputs'!#REF!,'Connection Numbers Inputs'!#REF!)) ->  | M36: =MAX('Connection Numbers Inputs'!#REF!,SUM('Connection Numbers Inputs'!#REF!,'Connection Numbers Inputs'!#REF!,'Connection Numbers Inputs'!#REF!,'Connection Numbers Inputs'!#REF!,'Connection Numbers Inputs'!#REF!)) ->  | N36: =MAX('Connection Numbers Inputs'!#REF!,SUM('Connection Numbers Inputs'!#REF!,'Connection Numbers Inputs'!#REF!,'Connection Numbers Inputs'!#REF!,'Connection Numbers Inputs'!#REF!,'Connection Numbers Inputs'!#REF!)) ->  | O36: =MAX('Connection Numbers Inputs'!#REF!,SUM('Connection Numbers Inputs'!#REF!,'Connection Numbers Inputs'!#REF!,'Connection Numbers Inputs'!#REF!,'Connection Numbers Inputs'!#REF!,'Connection Numbers Inputs'!#REF!)) ->  | P36: =MAX('Connection Numbers Inputs'!#REF!,SUM('Connection Numbers Inputs'!#REF!,'Connection Numbers Inputs'!#REF!,'Connection Numbers Inputs'!#REF!,'Connection Numbers Inputs'!#REF!,'Connection Numbers Inputs'!#REF!)) -> 
C37: ='General Inputs'!#REF! ->  | F37: ='General Inputs'!#REF! ->  | G37: Total | L37: =MAX('Connection Numbers Inputs'!#REF!,SUM('Connection Numbers Inputs'!#REF!,'Connection Numbers Inputs'!#REF!,'Connection Numbers Inputs'!#REF!,'Connection Numbers Inputs'!#REF!,'Connection Numbers Inputs'!#REF!)) ->  | M37: =MAX('Connection Numbers Inputs'!#REF!,SUM('Connection Numbers Inputs'!#REF!,'Connection Numbers Inputs'!#REF!,'Connection Numbers Inputs'!#REF!,'Connection Numbers Inputs'!#REF!,'Connection Numbers Inputs'!#REF!)) ->  | N37: =MAX('Connection Numbers Inputs'!#REF!,SUM('Connection Numbers Inputs'!#REF!,'Connection Numbers Inputs'!#REF!,'Connection Numbers Inputs'!#REF!,'Connection Numbers Inputs'!#REF!,'Connection Numbers Inputs'!#REF!)) ->  | O37: =MAX('Connection Numbers Inputs'!#REF!,SUM('Connection Numbers Inputs'!#REF!,'Connection Numbers Inputs'!#REF!,'Connection Numbers Inputs'!#REF!,'Connection Numbers Inputs'!#REF!,'Connection Numbers Inputs'!#REF!)) ->  | P37: =MAX('Connection Numbers Inputs'!#REF!,SUM('Connection Numbers Inputs'!#REF!,'Connection Numbers Inputs'!#REF!,'Connection Numbers Inputs'!#REF!,'Connection Numbers Inputs'!#REF!,'Connection Numbers Inputs'!#REF!)) -> 
C38: ='General Inputs'!#REF! ->  | F38: ='General Inputs'!#REF! ->  | G38: Total | L38: =MAX('Connection Numbers Inputs'!#REF!,SUM('Connection Numbers Inputs'!#REF!,'Connection Numbers Inputs'!#REF!,'Connection Numbers Inputs'!#REF!,'Connection Numbers Inputs'!#REF!,'Connection Numbers Inputs'!#REF!)) ->  | M38: =MAX('Connection Numbers Inputs'!#REF!,SUM('Connection Numbers Inputs'!#REF!,'Connection Numbers Inputs'!#REF!,'Connection Numbers Inputs'!#REF!,'Connection Numbers Inputs'!#REF!,'Connection Numbers Inputs'!#REF!)) ->  | N38: =MAX('Connection Numbers Inputs'!#REF!,SUM('Connection Numbers Inputs'!#REF!,'Connection Numbers Inputs'!#REF!,'Connection Numbers Inputs'!#REF!,'Connection Numbers Inputs'!#REF!,'Connection Numbers Inputs'!#REF!)) ->  | O38: =MAX('Connection Numbers Inputs'!#REF!,SUM('Connection Numbers Inputs'!#REF!,'Connection Numbers Inputs'!#REF!,'Connection Numbers Inputs'!#REF!,'Connection Numbers Inputs'!#REF!,'Connection Numbers Inputs'!#REF!)) ->  | P38: =MAX('Connection Numbers Inputs'!#REF!,SUM('Connection Numbers Inputs'!#REF!,'Connection Numbers Inputs'!#REF!,'Connection Numbers Inputs'!#REF!,'Connection Numbers Inputs'!#REF!,'Connection Numbers Inputs'!#REF!)) -> 
C39: ='General Inputs'!#REF! ->  | F39: ='General Inputs'!#REF! ->  | G39: Total | L39: =MAX('Connection Numbers Inputs'!#REF!,SUM('Connection Numbers Inputs'!#REF!,'Connection Numbers Inputs'!#REF!,'Connection Numbers Inputs'!#REF!,'Connection Numbers Inputs'!#REF!,'Connection Numbers Inputs'!#REF!)) ->  | M39: =MAX('Connection Numbers Inputs'!#REF!,SUM('Connection Numbers Inputs'!#REF!,'Connection Numbers Inputs'!#REF!,'Connection Numbers Inputs'!#REF!,'Connection Numbers Inputs'!#REF!,'Connection Numbers Inputs'!#REF!)) ->  | N39: =MAX('Connection Numbers Inputs'!#REF!,SUM('Connection Numbers Inputs'!#REF!,'Connection Numbers Inputs'!#REF!,'Connection Numbers Inputs'!#REF!,'Connection Numbers Inputs'!#REF!,'Connection Numbers Inputs'!#REF!)) ->  | O39: =MAX('Connection Numbers Inputs'!#REF!,SUM('Connection Numbers Inputs'!#REF!,'Connection Numbers Inputs'!#REF!,'Connection Numbers Inputs'!#REF!,'Connection Numbers Inputs'!#REF!,'Connection Numbers Inputs'!#REF!)) ->  | P39: =MAX('Connection Numbers Inputs'!#REF!,SUM('Connection Numbers Inputs'!#REF!,'Connection Numbers Inputs'!#REF!,'Connection Numbers Inputs'!#REF!,'Connection Numbers Inputs'!#REF!,'Connection Numbers Inputs'!#REF!)) -> 
C40: ='General Inputs'!#REF! ->  | F40: ='General Inputs'!#REF! ->  | G40: Total | L40: =MAX('Connection Numbers Inputs'!#REF!,SUM('Connection Numbers Inputs'!#REF!,'Connection Numbers Inputs'!#REF!,'Connection Numbers Inputs'!#REF!,'Connection Numbers Inputs'!#REF!,'Connection Numbers Inputs'!#REF!)) ->  | M40: =MAX('Connection Numbers Inputs'!#REF!,SUM('Connection Numbers Inputs'!#REF!,'Connection Numbers Inputs'!#REF!,'Connection Numbers Inputs'!#REF!,'Connection Numbers Inputs'!#REF!,'Connection Numbers Inputs'!#REF!)) ->  | N40: =MAX('Connection Numbers Inputs'!#REF!,SUM('Connection Numbers Inputs'!#REF!,'Connection Numbers Inputs'!#REF!,'Connection Numbers Inputs'!#REF!,'Connection Numbers Inputs'!#REF!,'Connection Numbers Inputs'!#REF!)) ->  | O40: =MAX('Connection Numbers Inputs'!#REF!,SUM('Connection Numbers Inputs'!#REF!,'Connection Numbers Inputs'!#REF!,'Connection Numbers Inputs'!#REF!,'Connection Numbers Inputs'!#REF!,'Connection Numbers Inputs'!#REF!)) ->  | P40: =MAX('Connection Numbers Inputs'!#REF!,SUM('Connection Numbers Inputs'!#REF!,'Connection Numbers Inputs'!#REF!,'Connection Numbers Inputs'!#REF!,'Connection Numbers Inputs'!#REF!,'Connection Numbers Inputs'!#REF!)) -> 
C41: ='General Inputs'!#REF! ->  | F41: ='General Inputs'!#REF! ->  | G41: Total | L41: =MAX('Connection Numbers Inputs'!#REF!,SUM('Connection Numbers Inputs'!#REF!,'Connection Numbers Inputs'!#REF!,'Connection Numbers Inputs'!#REF!,'Connection Numbers Inputs'!#REF!,'Connection Numbers Inputs'!#REF!)) ->  | M41: =MAX('Connection Numbers Inputs'!#REF!,SUM('Connection Numbers Inputs'!#REF!,'Connection Numbers Inputs'!#REF!,'Connection Numbers Inputs'!#REF!,'Connection Numbers Inputs'!#REF!,'Connection Numbers Inputs'!#REF!)) ->  | N41: =MAX('Connection Numbers Inputs'!#REF!,SUM('Connection Numbers Inputs'!#REF!,'Connection Numbers Inputs'!#REF!,'Connection Numbers Inputs'!#REF!,'Connection Numbers Inputs'!#REF!,'Connection Numbers Inputs'!#REF!)) ->  | O41: =MAX('Connection Numbers Inputs'!#REF!,SUM('Connection Numbers Inputs'!#REF!,'Connection Numbers Inputs'!#REF!,'Connection Numbers Inputs'!#REF!,'Connection Numbers Inputs'!#REF!,'Connection Numbers Inputs'!#REF!)) ->  | P41: =MAX('Connection Numbers Inputs'!#REF!,SUM('Connection Numbers Inputs'!#REF!,'Connection Numbers Inputs'!#REF!,'Connection Numbers Inputs'!#REF!,'Connection Numbers Inputs'!#REF!,'Connection Numbers Inputs'!#REF!)) -> 
C42: ='General Inputs'!#REF! ->  | F42: ='General Inputs'!#REF! ->  | G42: Total | L42: =MAX('Connection Numbers Inputs'!#REF!,SUM('Connection Numbers Inputs'!#REF!,'Connection Numbers Inputs'!#REF!,'Connection Numbers Inputs'!#REF!,'Connection Numbers Inputs'!#REF!,'Connection Numbers Inputs'!#REF!)) ->  | M42: =MAX('Connection Numbers Inputs'!#REF!,SUM('Connection Numbers Inputs'!#REF!,'Connection Numbers Inputs'!#REF!,'Connection Numbers Inputs'!#REF!,'Connection Numbers Inputs'!#REF!,'Connection Numbers Inputs'!#REF!)) ->  | N42: =MAX('Connection Numbers Inputs'!#REF!,SUM('Connection Numbers Inputs'!#REF!,'Connection Numbers Inputs'!#REF!,'Connection Numbers Inputs'!#REF!,'Connection Numbers Inputs'!#REF!,'Connection Numbers Inputs'!#REF!)) ->  | O42: =MAX('Connection Numbers Inputs'!#REF!,SUM('Connection Numbers Inputs'!#REF!,'Connection Numbers Inputs'!#REF!,'Connection Numbers Inputs'!#REF!,'Connection Numbers Inputs'!#REF!,'Connection Numbers Inputs'!#REF!)) ->  | P42: =MAX('Connection Numbers Inputs'!#REF!,SUM('Connection Numbers Inputs'!#REF!,'Connection Numbers Inputs'!#REF!,'Connection Numbers Inputs'!#REF!,'Connection Numbers Inputs'!#REF!,'Connection Numbers Inputs'!#REF!)) -> 
C43: ='General Inputs'!#REF! ->  | F43: ='General Inputs'!#REF! ->  | G43: Total | L43: =MAX('Connection Numbers Inputs'!#REF!,SUM('Connection Numbers Inputs'!#REF!,'Connection Numbers Inputs'!#REF!,'Connection Numbers Inputs'!#REF!,'Connection Numbers Inputs'!#REF!,'Connection Numbers Inputs'!#REF!)) ->  | M43: =MAX('Connection Numbers Inputs'!#REF!,SUM('Connection Numbers Inputs'!#REF!,'Connection Numbers Inputs'!#REF!,'Connection Numbers Inputs'!#REF!,'Connection Numbers Inputs'!#REF!,'Connection Numbers Inputs'!#REF!)) ->  | N43: =MAX('Connection Numbers Inputs'!#REF!,SUM('Connection Numbers Inputs'!#REF!,'Connection Numbers Inputs'!#REF!,'Connection Numbers Inputs'!#REF!,'Connection Numbers Inputs'!#REF!,'Connection Numbers Inputs'!#REF!)) ->  | O43: =MAX('Connection Numbers Inputs'!#REF!,SUM('Connection Numbers Inputs'!#REF!,'Connection Numbers Inputs'!#REF!,'Connection Numbers Inputs'!#REF!,'Connection Numbers Inputs'!#REF!,'Connection Numbers Inputs'!#REF!)) ->  | P43: =MAX('Connection Numbers Inputs'!#REF!,SUM('Connection Numbers Inputs'!#REF!,'Connection Numbers Inputs'!#REF!,'Connection Numbers Inputs'!#REF!,'Connection Numbers Inputs'!#REF!,'Connection Numbers Inputs'!#REF!)) -> 
C44: ='General Inputs'!#REF! ->  | F44: ='General Inputs'!#REF! ->  | G44: Total | L44: =MAX('Connection Numbers Inputs'!#REF!,SUM('Connection Numbers Inputs'!#REF!,'Connection Numbers Inputs'!#REF!,'Connection Numbers Inputs'!#REF!,'Connection Numbers Inputs'!#REF!,'Connection Numbers Inputs'!#REF!)) ->  | M44: =MAX('Connection Numbers Inputs'!#REF!,SUM('Connection Numbers Inputs'!#REF!,'Connection Numbers Inputs'!#REF!,'Connection Numbers Inputs'!#REF!,'Connection Numbers Inputs'!#REF!,'Connection Numbers Inputs'!#REF!)) ->  | N44: =MAX('Connection Numbers Inputs'!#REF!,SUM('Connection Numbers Inputs'!#REF!,'Connection Numbers Inputs'!#REF!,'Connection Numbers Inputs'!#REF!,'Connection Numbers Inputs'!#REF!,'Connection Numbers Inputs'!#REF!)) ->  | O44: =MAX('Connection Numbers Inputs'!#REF!,SUM('Connection Numbers Inputs'!#REF!,'Connection Numbers Inputs'!#REF!,'Connection Numbers Inputs'!#REF!,'Connection Numbers Inputs'!#REF!,'Connection Numbers Inputs'!#REF!)) ->  | P44: =MAX('Connection Numbers Inputs'!#REF!,SUM('Connection Numbers Inputs'!#REF!,'Connection Numbers Inputs'!#REF!,'Connection Numbers Inputs'!#REF!,'Connection Numbers Inputs'!#REF!,'Connection Numbers Inputs'!#REF!)) -> 
C45: ='General Inputs'!#REF! ->  | F45: ='General Inputs'!#REF! ->  | G45: Total | L45: =MAX('Connection Numbers Inputs'!#REF!,SUM('Connection Numbers Inputs'!#REF!,'Connection Numbers Inputs'!#REF!,'Connection Numbers Inputs'!#REF!,'Connection Numbers Inputs'!#REF!,'Connection Numbers Inputs'!#REF!)) ->  | M45: =MAX('Connection Numbers Inputs'!#REF!,SUM('Connection Numbers Inputs'!#REF!,'Connection Numbers Inputs'!#REF!,'Connection Numbers Inputs'!#REF!,'Connection Numbers Inputs'!#REF!,'Connection Numbers Inputs'!#REF!)) ->  | N45: =MAX('Connection Numbers Inputs'!#REF!,SUM('Connection Numbers Inputs'!#REF!,'Connection Numbers Inputs'!#REF!,'Connection Numbers Inputs'!#REF!,'Connection Numbers Inputs'!#REF!,'Connection Numbers Inputs'!#REF!)) ->  | O45: =MAX('Connection Numbers Inputs'!#REF!,SUM('Connection Numbers Inputs'!#REF!,'Connection Numbers Inputs'!#REF!,'Connection Numbers Inputs'!#REF!,'Connection Numbers Inputs'!#REF!,'Connection Numbers Inputs'!#REF!)) ->  | P45: =MAX('Connection Numbers Inputs'!#REF!,SUM('Connection Numbers Inputs'!#REF!,'Connection Numbers Inputs'!#REF!,'Connection Numbers Inputs'!#REF!,'Connection Numbers Inputs'!#REF!,'Connection Numbers Inputs'!#REF!)) -> 
C46: ='General Inputs'!#REF! ->  | F46: ='General Inputs'!#REF! ->  | G46: Total | L46: =MAX('Connection Numbers Inputs'!#REF!,SUM('Connection Numbers Inputs'!#REF!,'Connection Numbers Inputs'!#REF!,'Connection Numbers Inputs'!#REF!,'Connection Numbers Inputs'!#REF!,'Connection Numbers Inputs'!#REF!)) ->  | M46: =MAX('Connection Numbers Inputs'!#REF!,SUM('Connection Numbers Inputs'!#REF!,'Connection Numbers Inputs'!#REF!,'Connection Numbers Inputs'!#REF!,'Connection Numbers Inputs'!#REF!,'Connection Numbers Inputs'!#REF!)) ->  | N46: =MAX('Connection Numbers Inputs'!#REF!,SUM('Connection Numbers Inputs'!#REF!,'Connection Numbers Inputs'!#REF!,'Connection Numbers Inputs'!#REF!,'Connection Numbers Inputs'!#REF!,'Connection Numbers Inputs'!#REF!)) ->  | O46: =MAX('Connection Numbers Inputs'!#REF!,SUM('Connection Numbers Inputs'!#REF!,'Connection Numbers Inputs'!#REF!,'Connection Numbers Inputs'!#REF!,'Connection Numbers Inputs'!#REF!,'Connection Numbers Inputs'!#REF!)) ->  | P46: =MAX('Connection Numbers Inputs'!#REF!,SUM('Connection Numbers Inputs'!#REF!,'Connection Numbers Inputs'!#REF!,'Connection Numbers Inputs'!#REF!,'Connection Numbers Inputs'!#REF!,'Connection Numbers Inputs'!#REF!)) -> 
C47: ='General Inputs'!#REF! ->  | F47: ='General Inputs'!#REF! ->  | G47: Total | L47: =MAX('Connection Numbers Inputs'!#REF!,SUM('Connection Numbers Inputs'!#REF!,'Connection Numbers Inputs'!#REF!,'Connection Numbers Inputs'!#REF!,'Connection Numbers Inputs'!#REF!,'Connection Numbers Inputs'!#REF!)) ->  | M47: =MAX('Connection Numbers Inputs'!#REF!,SUM('Connection Numbers Inputs'!#REF!,'Connection Numbers Inputs'!#REF!,'Connection Numbers Inputs'!#REF!,'Connection Numbers Inputs'!#REF!,'Connection Numbers Inputs'!#REF!)) ->  | N47: =MAX('Connection Numbers Inputs'!#REF!,SUM('Connection Numbers Inputs'!#REF!,'Connection Numbers Inputs'!#REF!,'Connection Numbers Inputs'!#REF!,'Connection Numbers Inputs'!#REF!,'Connection Numbers Inputs'!#REF!)) ->  | O47: =MAX('Connection Numbers Inputs'!#REF!,SUM('Connection Numbers Inputs'!#REF!,'Connection Numbers Inputs'!#REF!,'Connection Numbers Inputs'!#REF!,'Connection Numbers Inputs'!#REF!,'Connection Numbers Inputs'!#REF!)) ->  | P47: =MAX('Connection Numbers Inputs'!#REF!,SUM('Connection Numbers Inputs'!#REF!,'Connection Numbers Inputs'!#REF!,'Connection Numbers Inputs'!#REF!,'Connection Numbers Inputs'!#REF!,'Connection Numbers Inputs'!#REF!)) -> 
C48: ='General Inputs'!#REF! ->  | F48: ='General Inputs'!#REF! ->  | G48: Total | L48: =MAX('Connection Numbers Inputs'!#REF!,SUM('Connection Numbers Inputs'!#REF!,'Connection Numbers Inputs'!#REF!,'Connection Numbers Inputs'!#REF!,'Connection Numbers Inputs'!#REF!,'Connection Numbers Inputs'!#REF!)) ->  | M48: =MAX('Connection Numbers Inputs'!#REF!,SUM('Connection Numbers Inputs'!#REF!,'Connection Numbers Inputs'!#REF!,'Connection Numbers Inputs'!#REF!,'Connection Numbers Inputs'!#REF!,'Connection Numbers Inputs'!#REF!)) ->  | N48: =MAX('Connection Numbers Inputs'!#REF!,SUM('Connection Numbers Inputs'!#REF!,'Connection Numbers Inputs'!#REF!,'Connection Numbers Inputs'!#REF!,'Connection Numbers Inputs'!#REF!,'Connection Numbers Inputs'!#REF!)) ->  | O48: =MAX('Connection Numbers Inputs'!#REF!,SUM('Connection Numbers Inputs'!#REF!,'Connection Numbers Inputs'!#REF!,'Connection Numbers Inputs'!#REF!,'Connection Numbers Inputs'!#REF!,'Connection Numbers Inputs'!#REF!)) ->  | P48: =MAX('Connection Numbers Inputs'!#REF!,SUM('Connection Numbers Inputs'!#REF!,'Connection Numbers Inputs'!#REF!,'Connection Numbers Inputs'!#REF!,'Connection Numbers Inputs'!#REF!,'Connection Numbers Inputs'!#REF!)) -> 
C49: ='General Inputs'!#REF! ->  | F49: ='General Inputs'!#REF! ->  | G49: Total | L49: =MAX('Connection Numbers Inputs'!#REF!,SUM('Connection Numbers Inputs'!#REF!,'Connection Numbers Inputs'!#REF!,'Connection Numbers Inputs'!#REF!,'Connection Numbers Inputs'!#REF!,'Connection Numbers Inputs'!#REF!)) ->  | M49: =MAX('Connection Numbers Inputs'!#REF!,SUM('Connection Numbers Inputs'!#REF!,'Connection Numbers Inputs'!#REF!,'Connection Numbers Inputs'!#REF!,'Connection Numbers Inputs'!#REF!,'Connection Numbers Inputs'!#REF!)) ->  | N49: =MAX('Connection Numbers Inputs'!#REF!,SUM('Connection Numbers Inputs'!#REF!,'Connection Numbers Inputs'!#REF!,'Connection Numbers Inputs'!#REF!,'Connection Numbers Inputs'!#REF!,'Connection Numbers Inputs'!#REF!)) ->  | O49: =MAX('Connection Numbers Inputs'!#REF!,SUM('Connection Numbers Inputs'!#REF!,'Connection Numbers Inputs'!#REF!,'Connection Numbers Inputs'!#REF!,'Connection Numbers Inputs'!#REF!,'Connection Numbers Inputs'!#REF!)) ->  | P49: =MAX('Connection Numbers Inputs'!#REF!,SUM('Connection Numbers Inputs'!#REF!,'Connection Numbers Inputs'!#REF!,'Connection Numbers Inputs'!#REF!,'Connection Numbers Inputs'!#REF!,'Connection Numbers Inputs'!#REF!)) -> 
C50: Total | L50: =SUM(L20:L49) ->  | M50: =SUM(M20:M49) ->  | N50: =SUM(N20:N49) ->  | O50: =SUM(O20:O49) ->  | P50: =SUM(P20:P49) -> 

Sheet Volume Inputs
A1: Volume Inputs
B3: GJ/day | J3: MHQ(GJ)
A4: Peak Price Band 1 | B4: ='Connection Numbers Inputs'!B3 -> Residential (Metro) | C4: ='Connection Numbers Inputs'!C3 -> Residential (YV) | D4: ='Connection Numbers Inputs'!D3 -> Residential (SG) | E4: ='Connection Numbers Inputs'!E3 -> Non res (Metro) | F4: ='Connection Numbers Inputs'!F3 -> Non res (YV) | G4: ='Connection Numbers Inputs'!G3 -> Non res (SG) | H4: ='Connection Numbers Inputs'!H3 -> Tariff L | I4: ='Connection Numbers Inputs'!I3 -> Tariff D (Metro) | J4: ='Connection Numbers Inputs'!J3 -> Tariff D (SG)
A5: ='Connection Numbers Inputs'!A4 -> 2018/19 | B5: =B287*B365 -> 9748546.225 | C5: =C287*C365 -> 73232.55444 | D5: 59402.29724 | E5: 778879.777 | F5: 4045.278096 | G5: 6425.715674 | H5: 18296.30811 | I5: 3030.934693 | J5: 106.2644447
A6: ='Connection Numbers Inputs'!A5 -> 2019/20 | B6: =B288*B366 -> 9863978.631 | C6: 76186.57215 | D6: 65612.44328 | E6: 815936.1723 | F6: 4226.266677 | G6: 6891.481207 | H6: 20904.28988 | I6: 2851.17738 | J6: 98.2339018
A7: ='Connection Numbers Inputs'!A6 -> 2020/21 | B7: =B289*B367 -> 9550654.527 | C7: 75734.35309 | D7: 68224.76582 | E7: 749592.7716 | F7: 3965.12613 | G7: 6851.095904 | H7: 16411.49851 | I7: 2753.826215 | J7: 106.0725152
A8: ='Connection Numbers Inputs'!A7 -> 2021-22 | B8: =B290*B368 -> 9586339.61 | C8: 73962.3036 | D8: 70278.02564 | E8: 789908.1001 | F8: 4928.663225 | G8: 7009.666678 | H8: 16401.38067 | I8: 2748.952689 | J8: 108.6394907
A9: ='Connection Numbers Inputs'!A8 -> 2022-23 | B9: =B291*B369 -> 9583854.976 | C9: 71426.30179 | D9: 71449.67553 | E9: 807370.9082 | F9: 5365.918149 | G9: 7523.708001 | H9: 17976.09288 | I9: 2935.25199 | J9: 112.36282
A10: ='Connection Numbers Inputs'!A9 -> 2023-24 | B10: =B292*B370 -> 9310100.223 | C10: 68758.93666 | D10: 72600.66853 | E10: 806777.3639 | F10: 5508.362918 | G10: 7499.315056 | H10: 18912.73984 | I10: 2897.680765 | J10: 111.6125644
A11: ='Connection Numbers Inputs'!A10 -> 2024-25 | B11: =B293*B371 -> 9095598.459 | C11: 66328.33386 | D11: 74182.33202 | E11: 782849.8336 | F11: 5684.940541 | G11: 7550.237638 | H11: 18912.73984 | I11: 2860.590451 | J11: 110.9407109
A12: ='Connection Numbers Inputs'!A11 -> 2025-26 | B12: =B294*B372 -> 8890862.216 | C12: 64086.90445 | D12: 81277.61721 | E12: 782070.4436 | F12: 5896.601256 | G12: 7673.932764 | H12: 18912.73984 | I12: 2823.974893 | J12: 110.3531359
A13: ='Connection Numbers Inputs'!A12 -> 2026-27 | B13: =B295*B373 -> 8656755.966 | C13: 61733.72315 | D13: 89063.26912 | E13: 778843.49 | F13: 6116.142485 | G13: 7799.65438 | H13: 18912.73984 | I13: 2787.828014 | J13: 109.0445264
A14: ='Connection Numbers Inputs'!A13 -> 2027-28 | B14: =B296*B374 -> 8455742.288 | C14: 59265.32304 | D14: 97606.76001 | E14: 775652.2705 | F14: 6343.857636 | G14: 7927.435687 | H14: 18912.73984 | I14: 2752.143816 | J14: 107.7526672
A16: Peak Price Band 2 | B16: =B$4 -> Residential (Metro) | C16: =C$4 -> Residential (YV) | D16: Residential (SG) | E16: Non res (Metro) | F16: Non res (YV) | G16: Non res (SG) | H16: Tariff L | I16: Tariff D (Metro) | J16: Tariff D (SG)
A17: =A5 -> 2018/19 | B17: =B365*B299 -> 6113092.269 | C17: =C365*C299 -> 46355.55111 | D17: 32165.49881 | E17: 1217202.515 | F17: 5628.401067 | G17: 12234.02834 | H17: 55929.86189 | I17: 477.1953069 | J17: 68.45555529
A18: 2019/20 | B18: =B366*B300 -> 6342331.899 | C18: 49317.36834 | D18: 36136.29561 | E18: 1245032.637 | F18: 5299.477638 | G18: 12958.41809 | H18: 52692.57012 | I18: 474.3926201 | J18: 63.6260982
A19: 2020/21 | B19: =B367*B301 -> 6190502.625 | C19: 49878.28819 | D19: 37319.89042 | E19: 1128510.961 | F19: 4899.599112 | G19: 12890.62203 | H19: 37176.58149 | I19: 437.1637848 | J19: 61.26748479
A20: 2021-22 | B20: =B368*B302 -> 6130466.932 | C20: 47824.66965 | D20: 38413.86645 | E20: 1209951.088 | F20: 6377.548897 | G20: 13237.6873 | H20: 42878.18722 | I20: 442.0373108 | J20: 67.70050929
A21: 2022-23 | B21: =B369*B303 -> 6128878.009 | C21: 46184.86879 | D21: 39054.28858 | E21: 1236699.951 | F21: 6943.344231 | G21: 14208.44934 | H21: 46994.96289 | I21: 471.9946259 | J21: 70.020764
A22: 2023-24 | B22: =B370*B304 -> 5953811.765 | C22: 44460.12727 | D22: 39683.41968 | E22: 1235790.782 | F22: 7127.663678 | G22: 14162.3835 | H22: 49443.64234 | I22: 465.9530947 | J22: 69.55322972
A23: 2024-25 | B23: =B371*B305 -> 5816637.825 | C23: 42888.47833 | D23: 40547.95463 | E23: 1199139.505 | F23: 7356.150059 | G23: 14258.5503 | H23: 49443.64234 | I23: 459.9888951 | J23: 69.13455303
A24: 2025-26 | B24: =B372*B306 -> 5685708.939 | C24: 41439.15056 | D24: 44426.22719 | E24: 1197945.665 | F24: 7630.032955 | G24: 14492.14734 | H24: 49443.64234 | I24: 454.1010372 | J24: 68.76839587
A25: 2026-27 | B25: =B373*B307 -> 5535997.925 | C25: 39917.56303 | D25: 48681.85318 | E25: 1193002.74 | F25: 7914.113012 | G25: 14729.57139 | H25: 49443.64234 | I25: 448.2885439 | J25: 67.95291406
A26: 2027-28 | B26: =B374*B308 -> 5407449.621 | C26: 38321.47403 | D26: 53351.71286 | E26: 1188114.552 | F26: 8208.769888 | G26: 14970.88514 | H26: 49443.64234 | I26: 442.5504506 | J26: 67.14787042
A28: Peak Price Band 3 | B28: =B$4 -> Residential (Metro) | C28: =C$4 -> Residential (YV) | D28: Residential (SG) | E28: Non res (Metro) | F28: Non res (YV) | G28: Non res (SG) | H28: Tariff L | I28: Tariff D (Metro) | J28: Tariff D (SG)
A29: =A17 -> 2018/19 | B29: =B311*B365 -> 4414349.971 | C29: 34087.72412 | D29: 21654.30992 | E29: 466744.7002 | F29: 1407.614036 | G29: 5630.789624 | H29: 0 | I29: 0 | J29: 0
A30: 2019/20 | B30: =B312*B366 -> 4599905.427 | C30: 36586.17239 | D30: 24390.36462 | E30: 470848.681 | F30: 1174.158357 | G30: 5788.552932 | H30: 0 | I30: 0 | J30: 0
A31: 2020/21 | B31: =B313*B367 -> 4495867.254 | C31: 37029.77023 | D31: 25304.23397 | E31: 419548.9533 | F31: 1216.528546 | G31: 5526.977211 | H31: 0 | I31: 0 | J31: 0
A32: 2021-22 | B32: =B314*B368 -> 4442061.963 | C32: 35390.33565 | D32: 25950.47005 | E32: 457304.8773 | F32: 1532.288459 | G32: 5892.162438 | H32: 0 | I32: 0 | J32: 0
A33: 2022-23 | B33: =B315*B369 -> 4440910.648 | C33: 34176.88027 | D33: 26383.10692 | E33: 467414.6956 | F33: 1668.228093 | G33: 6324.253594 | H33: 0 | I33: 0 | J33: 0
A34: 2023-24 | B34: =B316*B370 -> 4314059.772 | C34: 32900.56865 | D34: 26808.11615 | E34: 467071.0725 | F34: 1712.51322 | G34: 6303.749452 | H34: 0 | I34: 0 | J34: 0
A35: 2024-25 | B35: =B317*B371 -> 4214665.199 | C35: 31737.5458 | D35: 27392.15235 | E35: 453218.6049 | F35: 1767.410023 | G35: 6346.553788 | H35: 0 | I35: 0 | J35: 0
A36: 2025-26 | B36: =B318*B372 -> 4119795.717 | C36: 30665.04082 | D36: 30012.11762 | E36: 452767.3893 | F36: 1833.213924 | G36: 6450.529028 | H36: 0 | I36: 0 | J36: 0
A37: 2026-27 | B37: =B319*B373 -> 4011316.932 | C37: 29539.0635 | D37: 32887.00382 | E37: 450899.1953 | F37: 1901.467826 | G37: 6556.207689 | H37: 0 | I37: 0 | J37: 0
A38: 2027-28 | B38: =B320*B374 -> 3918172.39 | C38: 28357.95497 | D38: 36041.72541 | E38: 449051.6889 | F38: 1972.262944 | G38: 6663.617677 | H38: 0 | I38: 0 | J38: 0
A40: Peak Price Band 4 | B40: =B$4 -> Residential (Metro) | C40: =C$4 -> Residential (YV) | D40: Residential (SG) | E40: Non res (Metro) | F40: Non res (YV) | G40: Non res (SG) | H40: Tariff L | I40: Tariff D (Metro) | J40: Tariff D (SG)
A41: =A29 -> 2018/19 | B41: =B323*B365 -> 6230206.512 | C41: 47446.072 | D41: 25261.11604 | E41: 1477753.975 | F41: 4664.123627 | G41: 21123.38437 | H41: 0 | I41: 0 | J41: 0
A42: 2019/20 | B42: =B324*B366 -> 6478957.184 | C42: 50469.99239 | D42: 28561.38714 | E42: 1511894.156 | F42: 4256.230811 | G42: 22477.09242 | H42: 0 | I42: 0 | J42: 0
A43: 2020/21 | B43: =B325*B367 -> 6352616.681 | C43: 50675.87675 | D43: 29886.78035 | E43: 1358728.116 | F43: 3801.023865 | G43: 22248.31353 | H43: 0 | I43: 0 | J43: 0
A44: 2021-22 | B44: =B326*B368 -> 6267534.862 | C44: 48820.64836 | D44: 30448.96469 | E44: 1465157.943 | F44: 5125.80796 | G44: 22888.00011 | H44: 0 | I44: 0 | J44: 0
A45: 2022-23 | B45: =B327*B369 -> 6265910.413 | C45: 47146.69763 | D45: 30956.59884 | E45: 1497548.764 | F45: 5580.552922 | G45: 24566.45051 | H45: 0 | I45: 0 | J45: 0
A46: 2023-24 | B46: =B328*B370 -> 6086929.954 | C46: 45386.03728 | D46: 31455.28311 | E46: 1496447.831 | F46: 5728.69543 | G46: 24486.80254 | H46: 0 | I46: 0 | J46: 0
A47: 2024-25 | B47: =B329*B371 -> 5946689.013 | C47: 43781.65777 | D47: 32140.56154 | E47: 1452065.945 | F47: 5912.336093 | G47: 24653.07522 | H47: 0 | I47: 0 | J47: 0
A48: 2025-26 | B48: =B330*B372 -> 5812832.756 | C48: 42302.14683 | D48: 35214.69583 | E48: 1450620.297 | F48: 6132.463159 | G48: 25056.96519 | H48: 0 | I48: 0 | J48: 0
A49: 2026-27 | B49: =B331*B373 -> 5659774.431 | C49: 40748.8713 | D49: 38587.94142 | E49: 1444634.794 | F49: 6360.785958 | G49: 25467.47207 | H49: 0 | I49: 0 | J49: 0
A50: 2027-28 | B50: =B332*B374 -> 5528351.982 | C50: 39119.54273 | D50: 42289.53164 | E50: 1438715.573 | F50: 6597.609632 | G50: 25884.70425 | H50: 0 | I50: 0 | J50: 0
A52: Peak Price Band 5 | B52: =B$4 -> Residential (Metro) | C52: =C$4 -> Residential (YV) | D52: Residential (SG) | E52: Non res (Metro) | F52: Non res (YV) | G52: Non res (SG) | H52: Tariff L | I52: Tariff D (Metro) | J52: Tariff D (SG)
A53: =A41 -> 2018/19 | B53: =B365*B336 -> 10856797.99 | C53: =C365*C336 -> 77070.25375 | D53: 27706.66902 | E53: 1584330.036 | F53: 10141.24386 | G53: 27412.21474 | H53: 0 | I53: 0 | J53: 0
A54: 2019/20 | B54: =B366*B337 -> 10899040.55 | C54: 75416.71033 | D54: 26879.98936 | E54: 1622765.365 | F54: 8506.266319 | G54: 29181.21004 | H54: 0 | I54: 0 | J54: 0
A55: 2020/21 | B55: =B367*B338 -> 10613072.07 | C55: 73854.56905 | D55: 25570.62932 | E55: 1402388.084 | F55: 7129.286616 | G55: 28684.83782 | H55: 0 | I55: 0 | J55: 0
A56: 2021-22 | B56: =B368*B339 -> 10640201.4 | C56: 74324.64768 | D56: 29110.21181 | E56: 1552716.824 | F56: 10387.37365 | G56: 29641.16279 | H56: 0 | I56: 0 | J56: 0
A57: 2022-23 | B57: =B369*B340 -> 10637443.62 | C57: 71776.2219 | D57: 29595.52676 | E57: 1587043.344 | F57: 11308.90756 | G57: 31814.84425 | H57: 0 | I57: 0 | J57: 0
A58: 2023-24 | B58: =B370*B341 -> 10333594 | C58: 69095.78925 | D58: 30072.28532 | E58: 1585876.618 | F58: 11609.11615 | G58: 31711.69594 | H58: 0 | I58: 0 | J58: 0
A59: 2024-25 | B59: =B371*B342 -> 10095511.26 | C59: 66653.27884 | D59: 30727.43405 | E59: 1538842.439 | F59: 11981.26122 | G59: 31927.0278 | H59: 0 | I59: 0 | J59: 0
A60: 2025-26 | B60: =B372*B343 -> 9868267.603 | C60: 64400.86858 | D60: 33666.40754 | E60: 1537310.397 | F60: 12427.34545 | G60: 32450.08653 | H60: 0 | I60: 0 | J60: 0
A61: 2026-27 | B61: =B373*B344 -> 9608425.187 | C61: 62036.15896 | D61: 36891.34129 | E61: 1530967.197 | F61: 12890.03821 | G61: 32981.7145 | H61: 0 | I61: 0 | J61: 0
A62: 2027-28 | B62: =B374*B345 -> 9385313.332 | C62: 59555.66607 | D62: 40430.18329 | E62: 1524694.24 | F62: 13369.95786 | G62: 33522.05211 | H62: 0 | I62: 0 | J62: 0
A64: Peak Price Band 6 | B64: =B$4 -> Residential (Metro) | C64: =C$4 -> Residential (YV) | D64: Residential (SG) | E64: Non res (Metro) | F64: Non res (YV) | G64: Non res (SG) | H64: Tariff L | I64: Tariff D (Metro) | J64: Tariff D (SG)
A65: =A53 -> 2018/19
A66: 2019/20
A67: 2020/21
A68: 2021-22
A69: 2022-23
A70: 2023-24
A71: 2024-25
A72: 2025-26
A73: 2026-27
A74: 2027-28
A76: Peak Price Band 7 | B76: =B$4 -> Residential (Metro) | C76: =C$4 -> Residential (YV) | D76: Residential (SG) | E76: Non res (Metro) | F76: Non res (YV) | G76: Non res (SG) | H76: Tariff L | I76: Tariff D (Metro) | J76: Tariff D (SG)
A77: =A65 -> 2018/19
A78: 2019/20
A79: 2020/21
A80: 2021-22
A81: 2022-23
A82: 2023-24
A83: 2024-25
A84: 2025-26
A85: 2026-27
A86: 2027-28
A88: Off Peak Price Band 1 | B88: ='Connection Numbers Inputs'!B87 -> Residential (Metro) | C88: ='Connection Numbers Inputs'!C87 -> Residential (YV) | D88: ='Connection Numbers Inputs'!D87 -> Residential (SG) | E88: ='Connection Numbers Inputs'!E87 -> Non res (Metro) | F88: ='Connection Numbers Inputs'!F87 -> Non res (YV) | G88: ='Connection Numbers Inputs'!G87 -> Non res (SG) | H88: ='Connection Numbers Inputs'!H87 -> Tarif L | I88: ='Connection Numbers Inputs'!I87 -> Tariff D (Metro) | J88: ='Connection Numbers Inputs'!J87 -> Tariff D (SG)
A89: ='Connection Numbers Inputs'!A88 -> 2008
A90: ='Connection Numbers Inputs'!A89 -> 2009
A91: ='Connection Numbers Inputs'!A90 -> 2010
A92: ='Connection Numbers Inputs'!A91 -> 2011
A93: ='Connection Numbers Inputs'!A92 -> 2012
A94: ='Connection Numbers Inputs'!A93 -> 2013
A95: ='Connection Numbers Inputs'!A94 -> 2014
A96: ='Connection Numbers Inputs'!A95 -> 2015
A97: ='Connection Numbers Inputs'!A96 -> 2016
A98: ='Connection Numbers Inputs'!A97 -> 2017
A100: Off Peak Price Band 2 | B100: =B$4 -> Residential (Metro) | C100: =C$4 -> Residential (YV) | D100: Residential (SG) | E100: Non res (Metro) | F100: Non res (YV) | G100: Non res (SG) | H100: Tariff L | I100: Tariff D (Metro) | J100: Tariff D (SG)
A101: =A89 -> 2008
A102: 2009
A103: 2010
A104: 2011
A105: 2012
A106: 2013
A107: 2014
A108: 2015
A109: 2016
A110: 2017
A112: Off Peak Price Band 3 | B112: =B$4 -> Residential (Metro) | C112: =C$4 -> Residential (YV) | D112: Residential (SG) | E112: Non res (Metro) | F112: Non res (YV) | G112: Non res (SG) | H112: Tariff L | I112: Tariff D (Metro) | J112: Tariff D (SG)
A113: =A101 -> 2008
A114: 2009
A115: 2010
A116: 2011
A117: 2012
A118: 2013
A119: 2014
A120: 2015
A121: 2016
A122: 2017
A124: Off Peak Price Band 4 | B124: =B$4 -> Residential (Metro) | C124: =C$4 -> Residential (YV) | D124: Residential (SG) | E124: Non res (Metro) | F124: Non res (YV) | G124: Non res (SG) | H124: Tariff L | I124: Tariff D (Metro) | J124: Tariff D (SG)
A125: =A113 -> 2008
A126: 2009
A127: 2010
A128: 2011
A129: 2012
A130: 2013
A131: 2014
A132: 2015
A133: 2016
A134: 2017
A136: Off Peak Price Band 5 | B136: =B$4 -> Residential (Metro) | C136: =C$4 -> Residential (YV) | D136: Residential (SG) | E136: Non res (Metro) | F136: Non res (YV) | G136: Non res (SG) | H136: Tariff L | I136: Tariff D (Metro) | J136: Tariff D (SG)
A137: =A125 -> 2008
A138: 2009
A139: 2010
A140: 2011
A141: 2012
A142: 2013
A143: 2014
A144: 2015
A145: 2016
A146: 2017
A148: Off Peak Price Band 6 | B148: =B$4 -> Residential (Metro) | C148: =C$4 -> Residential (YV) | D148: Residential (SG) | E148: Non res (Metro) | F148: Non res (YV) | G148: Non res (SG) | H148: Tariff L | I148: Tariff D (Metro) | J148: Tariff D (SG)
A149: =A137 -> 2008
A150: 2009
A151: 2010
A152: 2011
A153: 2012
A154: 2013
A155: 2014
A156: 2015
A157: 2016
A158: 2017
A160: Off Peak Price Band 7 | B160: =B$4 -> Residential (Metro) | C160: =C$4 -> Residential (YV) | D160: Residential (SG) | E160: Non res (Metro) | F160: Non res (YV) | G160: Non res (SG) | H160: Tariff L | I160: Tariff D (Metro) | J160: Tariff D (SG)
A161: =A149 -> 2008
A162: 2009
A163: 2010
A164: 2011
A165: 2012
A166: 2013
A167: 2014
A168: 2015
A169: 2016
A170: 2017
A172: Summary | B172: =B$4 -> Residential (Metro) | C172: =C$4 -> Residential (YV) | D172: Residential (SG) | E172: Non res (Metro) | F172: Non res (YV) | G172: Non res (SG) | H172: Tariff L | I172: Tariff D (Metro) | J172: Tariff D (SG)
A173: =A53 -> 2018/19 | B173: =SUMIF($A$5:$A$170,$A173,B$5:B$170) -> 37362992.97 | C173: =SUMIF($A$5:$A$170,$A173,C$5:C$170) -> 278192.1554 | D173: 166189.891 | E173: 5524911.004 | F173: 25886.66068 | G173: =SUMIF($A$5:$A$170,$A173,G$5:G$170) -> 72826.13275 | H173: 74226.17 | I173: =SUMIF($A$5:$A$170,$A173,I$5:I$170) -> 3508.13 | J173: 174.72
A174: 2019/20 | B174: =SUMIF($A$5:$A$170,$A174,B$5:B$170) -> 38184213.69 | C174: 287976.8156 | D174: 181580.48 | E174: 5666477.011 | F174: 23462.3998 | G174: 77296.75469 | H174: 73596.86 | I174: 3325.57 | J174: 161.86
A175: 2020/21 | B175: 37202713.16 | C175: 287172.8573 | D175: 186306.2999 | E175: 5058768.887 | F175: 21011.56427 | G175: 76201.8465 | H175: 53588.08 | I175: 3190.99 | J175: 167.34
A176: 2021-22 | B176: 37066604.77 | C176: 280322.6049 | D176: 194201.5386 | E176: 5475038.832 | F176: 28351.68219 | G176: 78668.67931 | H176: 59279.56789 | I176: 3190.99 | J176: 176.34
A177: 2022-23 | B177: =SUMIF($A$5:$A$170,$A177,B$5:B$170) -> 37056997.67 | C177: 270710.9704 | D177: 197439.1966 | E177: 5596077.662 | F177: 30866.95095 | G177: 84437.7057 | H177: 64971.05577 | I177: 3407.246616 | J177: 182.383584
A178: 2023-24 | B178: 35998495.71 | C178: 260601.4591 | D178: 200619.7728 | E178: 5591963.668 | F178: 31686.35139 | G178: 84163.94648 | H178: 68356.38218 | I178: 3363.633859 | J178: 181.1657941
A179: 2024-25 | B179: 35169101.75 | C179: 251389.2946 | D179: 204990.4346 | E179: 5426116.327 | F179: 32702.09793 | G179: 84735.44474 | H179: 68356.38218 | I179: 3320.579346 | J179: 180.075264
A180: 2025-26 | B180: =SUMIF($A$5:$A$170,$A180,B$5:B$170) -> 34377467.23 | C180: 242894.1112 | D180: 224597.0654 | E180: 5420714.192 | F180: 33919.65674 | G180: 86123.66085 | H180: 68356.38218 | I180: 3278.07593 | J180: 179.1215318
A181: 2026-27 | B181: 33472270.44 | C181: 233975.3799 | D181: 246111.4088 | E181: 5398347.417 | F181: 35182.54749 | G181: 87534.62003 | H181: 68356.38218 | I181: 3236.116558 | J181: 176.9974405
A182: 2027-28 | B182: =SUMIF($A$5:$A$170,$A182,B$5:B$170) -> 32695029.61 | C182: 224619.9608 | D182: 269719.9132 | E182: 5376228.324 | F182: 36492.45796 | G182: 88968.69487 | H182: 68356.38218 | I182: 3194.694266 | J182: 174.9005376
A184: Ancillary Reference Services
A185: Volumes | B185: Turn On / Reconnections | C185: Meter Investigations | D185: Disconnections | E185: Special meter reading | F185: Meter Removals
A186: =A178 -> 2023-24 | B186: 5444.333333 | C186: 154.3333333 | D186: 4772.666667 | E186: 214282.6667 | F186: 4037
A187: =A179 -> 2024-25 | B187: 5447.505323 | C187: 154.4232514 | D187: 4775.447328 | E187: 214407.5125 | F187: 4039.352046
A188: 2025-26 | B188: 5465.622278 | C188: 154.9368221 | D188: 4791.329197 | E188: 215120.5749 | F188: 4052.785857
A189: 2026-27 | B189: 5482.658963 | C189: 155.4197698 | D189: 4806.264069 | E189: 215791.1192 | F189: 4065.418644
A190: 2027-28 | B190: 5499.734972 | C190: 155.9038323 | D190: 4821.233413 | E190: 216463.2111 | F190: 4078.080588
A192: Prices | B192: Turn On / Reconnections | C192: Meter Investigations | D192: Disconnections | E192: Special meter reading | F192: Meter Removals
A193: 2023-24 | B193: 52.87 | C193: 179.03 | D193: 62.72 | E193: 8.04 | F193: 72.15
A194: 2024-25 | B194: 54.48 | C194: 184.49 | D194: 64.63 | E194: 8.29 | F194: 74.35
A195: 2025-26 | B195: 56.14 | C195: 190.11 | D195: 66.6 | E195: 8.54 | F195: 76.62
A196: 2026-27 | B196: 57.85 | C196: 195.9 | D196: 68.63 | E196: 8.8 | F196: 78.96
A197: 2027-28 | B197: 59.61 | C197: 201.87 | D197: 70.72 | E197: 9.07 | F197: 81.37
A199: Revenues | B199: Turn On / Reconnections | C199: Meter Investigations | D199: Disconnections | E199: Special meter reading | F199: Meter Removals
A200: 2023-24 | B200: =B186*B193 -> 287841.9033 | C200: =C186*C193 -> 27630.29667 | D200: 299341.6533 | E200: 1722832.64 | F200: =F186*F193 -> 291269.55
A201: 2024-25 | B201: =B187*B194 -> 296780.09 | C201: 28489.54564 | D201: 308637.1608 | E201: 1777438.279 | F201: 300325.8246
A202: 2025-26 | B202: =B188*B195 -> 306840.0347 | C202: 29455.03924 | D202: 319102.5245 | E202: 1837129.71 | F202: 310524.4524
A203: 2026-27 | B203: =B189*B196 -> 317171.821 | C203: 30446.7329 | D203: 329853.903 | E203: 1898961.849 | F203: 321005.4561
A204: 2027-28 | B204: =B190*B197 -> 327839.2017 | C204: 31472.30662 | D204: 340957.627 | E204: 1963321.325 | F204: 331833.4175 | G204: =SUM(B200:F204) -> 14036502.34
B208: GJ/day | J208: MHQ(GJ)
A209: Peak Price Band 1 | B209: =B$4 -> Residential (Metro) | C209: =C$4 -> Residential (YV) | D209: Residential (SG) | E209: Non res (Metro) | F209: Non res (YV) | G209: Non res (SG) | H209: Tariff L | I209: Tariff D (Metro) | J209: Tariff D (SG)
A210: 2018/19 | B210: 9925634.153 | C210: 75207.8292 | D210: 60774.69443 | E210: 802577.1544 | F210: 4087.209619 | G210: 6690.633585 | H210: 18076.29 | I210: 3161.235 | J210: 100
A211: 2019/20 | B211: 10099859.08 | C211: 78106.10038 | D211: 67512.05389 | E211: 787620.8498 | F211: 4084.848515 | G211: 6761.529501 | H211: 18062.665 | I211: 2965.505 | J211: 100
A212: 2020/21 | B212: 10163206.8 | C212: 80783.2936 | D212: 72731.17328 | E212: 771334.4696 | F212: 4022.095001 | G212: 6935.721967 | H212: 18075.67 | I212: 2887.82 | J212: 100
A213: 2021-22 | B213: 10062900.01 | C213: 78032.40773 | D213: 67005.97386 | E213: 787177.4912 | F213: 4064.717712 | G213: 6795.961684 | H213: 18071.54167 | I213: 3004.853333 | J213: 100
A214: 2022-23 | B214: 10062900.01 | C214: 78032.40773 | D214: 67005.97386 | E214: 787177.4912 | F214: 4064.717712 | G214: 6795.961684 | H214: 18071.54167 | I214: 3004.853333 | J214: 100
A215: 2023-24 | B215: 10062900.01 | C215: 78032.40773 | D215: 67005.97386 | E215: 787177.4912 | F215: 4064.717712 | G215: 6795.961684 | H215: 18071.54167 | I215: 3004.853333 | J215: 100
A216: 2024-25 | B216: 10062900.01 | C216: 78032.40773 | D216: 67005.97386 | E216: 787177.4912 | F216: 4064.717712 | G216: 6795.961684 | H216: 18071.54167 | I216: 3004.853333 | J216: 100
A217: 2025-26 | B217: 10062900.01 | C217: 78032.40773 | D217: 67005.97386 | E217: 787177.4912 | F217: 4064.717712 | G217: 6795.961684 | H217: 18071.54167 | I217: 3004.853333 | J217: 100
A218: 2026-27 | B218: 10062900.01 | C218: 78032.40773 | D218: 67005.97386 | E218: 787177.4912 | F218: 4064.717712 | G218: 6795.961684 | H218: 18071.54167 | I218: 3004.853333 | J218: 100
A219: 2027-28 | B219: 10062900.01 | C219: 78032.40773 | D219: 67005.97386 | E219: 787177.4912 | F219: 4064.717712 | G219: 6795.961684 | H219: 18071.54167 | I219: 3004.853333 | J219: 100
A221: Peak Price Band 2 | B221: =B$4 -> Residential (Metro) | C221: =C$4 -> Residential (YV) | D221: Residential (SG) | E221: Non res (Metro) | F221: Non res (YV) | G221: Non res (SG) | H221: Tariff L | I221: Tariff D (Metro) | J221: Tariff D (SG)
A222: 2018/19 | B222: 6224140.093 | C222: 47605.88235 | D222: 32908.63236 | E222: 1254235.839 | F222: 5686.742528 | G222: 12738.41002 | H222: 55257.29 | I222: 497.71 | J222: 64.42
... 148 more rows

Sheet RAB Calculations (hidden)
B1: ="ENVESTRA - Cost allocation model for "&'General Inputs'!#REF!&" ("&'General Inputs'!#REF!&")" -> 
B2: Regulatory Asset Base Calculations
B7: Period Ending 30 June | J7: 2005 | K7: =J7+1 -> 2006 | L7: 2007 | M7: 2008 | N7: 2009 | O7: 2010 | P7: 2011
B11: Summary of Regulatory Asset Base Calculations (in $million)
C12: Depreciation | I12: 5-year NPV
E13: Mains and Inlets | I13: =NPV(realpretaxwacc,L13:P13) -> 44.64544304 | K13: =K82 ->  | L13: 8.229431322 | M13: 8.78436781 | N13: 9.515194969 | O13: 10.16377271 | P13: 10.82815563
E14: Meters | I14: 19.11587349 | K14: =K183 ->  | L14: 3.243611481 | M14: 3.611067427 | N14: 4.062632668 | O14: 4.501658544 | P14: 4.958169578
E15: Telemetry | I15: 0.3856836801 | K15: =+K278 ->  | L15: 0.0330111862 | M15: 0.06029364986 | N15: 0.08374465191 | O15: 0.1062534621 | P15: 0.1309245159
E16: IT Systems | I16: 11.80402684 | K16: =+K383 ->  | L16: 0.9268954705 | M16: 1.76269944 | N16: 3.015914533 | O16: 3.46894675 | P16: 3.492349319
E17: Other Distribution Equipment | I17: 32.31744025 | K17: =+K483 ->  | L17: 6.367853716 | M17: 6.551339947 | N17: 6.851877563 | O17: 7.128210712 | P17: 7.459560126
E18: Other Assets | I18: 4.996950388 | K18: =+K583 ->  | L18: 0.8634685565 | M18: 0.9572901887 | N18: 1.073771653 | O18: 1.166238008 | P18: 1.263487708
D19: Total | I19: =SUM(I13:I18) -> 113.2654177 | K19: =SUM(K13:K18) ->  | L19: 19.66427173 | M19: 21.72705846 | N19: 24.60313604 | O19: 26.53508018 | P19: 28.13264688
C22: Asset return
E23: =E13 -> Mains and Inlets | I23: =NPV(NompretaxWACC,L23:P23) -> 171.8268905 | K23: =K115 ->  | L23: 34.74441109 | M23: 37.37545493 | N23: 40.33128804 | O23: 42.7832982 | P23: 45.24680553
E24: Meters | I24: 21.89683797 | K24: =K216 ->  | L24: 4.177223692 | M24: 4.642658937 | N24: 5.147506284 | O24: 5.600869307 | P24: 6.046685691
E25: Telemetry | I25: 1.016684281 | K25: =K316 ->  | L25: 0.09569911621 | M25: 0.1788543451 | N25: 0.2475225934 | O25: 0.3113030984 | P25: 0.3801311603
E26: IT Systems | I26: 1.957050544 | K26: =K416 ->  | L26: 0.1789110276 | M26: 0.3561481222 | N26: 0.591988572 | O26: 0.6408343434 | P26: 0.5530043123
E27: Other Distribution Equipment | I27: 56.98457898 | K27: =K516 ->  | L27: 12.83080704 | M27: 13.00539173 | N27: 13.23487476 | O27: 13.39594608 | P27: 13.68721066
E28: Other Assets | I28: 1.183608152 | K28: =K616 ->  | L28: 0.292352449 | M28: 0.2915760343 | N28: 0.2874172275 | O28: 0.2620369925 | P28: 0.2309973587
D29: =D19 -> Total | I29: =SUM(I23:I28) -> 254.8656504 | K29: =SUM(K23:K28) ->  | L29: 52.31940442 | M29: 55.8500841 | N29: 59.84059748 | O29: 62.99428802 | P29: 66.14483471
C32: Closing written down value
E33: =E23 -> Mains and Inlets | K33: =K147 -> 
E34: =E24 -> Meters | K34: =K247 -> 
E35: Telemetry | K35: =K347 -> 
E36: IT Systems | K36: =K447 -> 
E37: Other Distribution Equipment | K37: =K547 -> 
E38: Other Assets | K38: =K647 -> 
D39: Total | I39: =SUM(I33:I38) -> 0 | K39: =SUM(K34:K38) ->  | L39: =SUM(L33:L38) ->  | M39: =SUM(M33:M38) ->  | N39: =SUM(N33:N38) ->  | O39: =SUM(O33:O38) ->  | P39: =SUM(P33:P38) -> 
C46: Index
D47: For initial capital base and 2005/06 capex | J47: 1 | K47: =J47*(1+'General Inputs'!$B$4) -> 1.030481278 | L47: =K47*(1+'General Inputs'!$B$4) -> 1.061891664 | M47: =L47*(1+'General Inputs'!$B$4) -> 1.094259479 | N47: =M47*(1+'General Inputs'!$B$4) -> 1.127613907 | O47: =N47*(1+'General Inputs'!$B$4) -> 1.16198502 | P47: =O47*(1+'General Inputs'!$B$4) -> 1.197403808
D48: For capex from | G48: 2005/06 | K48: 1 | L48: =K48*(1+'General Inputs'!$B$4) -> 1.030481278 | M48: =L48*(1+'General Inputs'!$B$4) -> 1.061891664 | N48: =M48*(1+'General Inputs'!$B$4) -> 1.094259479 | O48: =N48*(1+'General Inputs'!$B$4) -> 1.127613907 | P48: =O48*(1+'General Inputs'!$B$4) -> 1.16198502
G49: 2006/07 | L49: 1 | M49: =L49*(1+'General Inputs'!$B$4) -> 1.030481278 | N49: =M49*(1+'General Inputs'!$B$4) -> 1.061891664 | O49: =N49*(1+'General Inputs'!$B$4) -> 1.094259479 | P49: =O49*(1+'General Inputs'!$B$4) -> 1.127613907
G50: 2007/08 | M50: 1 | N50: =M50*(1+'General Inputs'!$B$4) -> 1.030481278 | O50: =N50*(1+'General Inputs'!$B$4) -> 1.061891664 | P50: =O50*(1+'General Inputs'!$B$4) -> 1.094259479
G51: 2008/09 | N51: 1 | O51: =N51*(1+'General Inputs'!$B$4) -> 1.030481278 | P51: =O51*(1+'General Inputs'!$B$4) -> 1.061891664
G52: 2009/10 | O52: 1 | P52: =O52*(1+'General Inputs'!$B$4) -> 1.030481278
G53: 2010/11 | P53: 1
B60: RAB Calculations
C61: ="Asset Class 1 - "&E13 -> Asset Class 1 - Mains and Inlets
C63: Real calculations
D65: Real asset value
E67: Opening balance | K67: =#REF! ->  | L67: =K75 ->  | M67: =L75 ->  | N67: =M75 ->  | O67: =N75 ->  | P67: =O75 -> 
E69: Capex
F70: First 50% | K70: =#REF!/2 ->  | L70: =#REF!/2 ->  | M70: =#REF!/2 ->  | N70: =#REF!/2 ->  | O70: =#REF!/2 ->  | P70: =#REF!/2 -> 
F71: Remainder | K71: =K70 -> 
E73: Depreciation | K73: =K77 -> 
E75: Closing balance | K75: =-K73+K71+K70+K67 -> 
E77: Depreciation | J77: ='General Inputs'!#REF! ->  | K77: ='General Inputs'!#REF! ->  | L77: ='General Inputs'!#REF! ->  | M77: ='General Inputs'!#REF! ->  | N77: ='General Inputs'!#REF! ->  | O77: ='General Inputs'!#REF! ->  | P77: ='General Inputs'!#REF! -> 
C80: Depreciation
D82: Total depreciation | J82: =J77 -> 
C85: Asset Returns
D87: Initial assets
E88: Regulatory value of initial assets | K88: =IF($K82=0,0,$K67*'RAB Calculations'!K$47*('RAB Calculations'!K82/'RAB Calculations'!$K82)) ->  | L88: =IF($K82=0,0,$K67*'RAB Calculations'!L$47*('RAB Calculations'!L82/'RAB Calculations'!$K82)) ->  | M88: =IF($K82=0,0,$K67*'RAB Calculations'!M$47*('RAB Calculations'!M82/'RAB Calculations'!$K82)) ->  | N88: =IF($K82=0,0,$K67*'RAB Calculations'!N$47*('RAB Calculations'!N82/'RAB Calculations'!$K82)) ->  | O88: =IF($K82=0,0,$K67*'RAB Calculations'!O$47*('RAB Calculations'!O82/'RAB Calculations'!$K82)) ->  | P88: =IF($K82=0,0,$K67*'RAB Calculations'!P$47*('RAB Calculations'!P82/'RAB Calculations'!$K82)) -> 
D91: Capex
E92: Regulatory value of remainder of year1 capex | K92: =$K70*'RAB Calculations'!K$47 ->  | L92: =$K70*'RAB Calculations'!L$47 ->  | M92: =$K70*'RAB Calculations'!M$47 ->  | N92: =$K70*'RAB Calculations'!N$47 ->  | O92: =$K70*'RAB Calculations'!O$47 ->  | P92: =$K70*'RAB Calculations'!P$47 -> 
E93: cost base of 50% of capex
F94: Year 1 capex | K94: =$K70*'RAB Calculations'!K$47 ->  | L94: =$K70*'RAB Calculations'!L$47 ->  | M94: =$K70*'RAB Calculations'!M$47 ->  | N94: =$K70*'RAB Calculations'!N$47 ->  | O94: =$K70*'RAB Calculations'!O$47 ->  | P94: =$K70*'RAB Calculations'!P$47 -> 
F95: Year 2 capex | L95: =$L70*'RAB Calculations'!L$48 ->  | M95: =$L70*'RAB Calculations'!M$48 ->  | N95: =$L70*'RAB Calculations'!N$48 ->  | O95: =$L70*'RAB Calculations'!O$48 ->  | P95: =$L70*'RAB Calculations'!P$48 -> 
F96: Year 3 capex | M96: =$M70*'RAB Calculations'!M$49 ->  | N96: =$M70*'RAB Calculations'!N$49 ->  | O96: =$M70*'RAB Calculations'!O$49 ->  | P96: =$M70*'RAB Calculations'!P$49 -> 
F97: Year 4 capex | N97: =$N70*'RAB Calculations'!N$50 ->  | O97: =$N70*'RAB Calculations'!O$50 ->  | P97: =$N70*'RAB Calculations'!P$50 -> 
F98: Year 5 capex | O98: =$O70*'RAB Calculations'!O$51 ->  | P98: =$O70*'RAB Calculations'!P$51 -> 
F99: Year 6 capex | P99: =$P70*'RAB Calculations'!P$52 -> 
D100: Total | K100: =SUM(K94:K99) -> 
D103: Asset returns
E104: Regulatory value of initial assets for return purposes
F105: cost base | K105: =$K67*'RAB Calculations'!K$47 ->  | L105: =$K67*'RAB Calculations'!L$47 ->  | M105: =$K67*'RAB Calculations'!M$47 ->  | N105: =$K67*'RAB Calculations'!N$47 ->  | O105: =$K67*'RAB Calculations'!O$47 ->  | P105: =$K67*'RAB Calculations'!P$47 -> 
E106: Value of Year 1 remainder assets for return purposes
F107: cost base | K107: =$K92/'RAB Calculations'!$K$48*'RAB Calculations'!K$48 ->  | L107: =$K92/'RAB Calculations'!$K$48*'RAB Calculations'!L$48 ->  | M107: =$K92/'RAB Calculations'!$K$48*'RAB Calculations'!M$48 ->  | N107: =$K92/'RAB Calculations'!$K$48*'RAB Calculations'!N$48 ->  | O107: =$K92/'RAB Calculations'!$K$48*'RAB Calculations'!O$48 ->  | P107: =$K92/'RAB Calculations'!$K$48*'RAB Calculations'!P$48 -> 
E108: WDV of 50% of capex
F109: cost base | K109: =K94 ->  | L109: =K109*(1+'General Inputs'!$B$4)+'RAB Calculations'!L95 ->  | M109: =L109*(1+'General Inputs'!$B$4)+'RAB Calculations'!M96 ->  | N109: =M109*(1+'General Inputs'!$B$4)+'RAB Calculations'!N97 ->  | O109: =N109*(1+'General Inputs'!$B$4)+'RAB Calculations'!O98 ->  | P109: =O109*(1+'General Inputs'!$B$4)+'RAB Calculations'!P99 -> 
F111: accumulated depreciation (to start of year) | K111: =J82*'RAB Calculations'!K$47 ->  | L111: =(K111+K82)*(1+'General Inputs'!$B$4) ->  | M111: =(L111+L82)*(1+'General Inputs'!$B$4) ->  | N111: =(M111+M82)*(1+'General Inputs'!$B$4) ->  | O111: =(N111+N82)*(1+'General Inputs'!$B$4) ->  | P111: =(O111+O82)*(1+'General Inputs'!$B$4) -> 
E113: Total WDV of 50% of capex | K113: =K105-K111+K109+(K109+((J109-(J109/'RAB Calculations'!$J$47*'RAB Calculations'!I47)))+K70) ->  | L113: =L105-L111+L109+(L109+((K109-(K109/'RAB Calculations'!$J$47*'RAB Calculations'!J$47)))+L70) ->  | M113: =M105-M111+M109+(M109+((L109-(L109/'RAB Calculations'!$J$47*'RAB Calculations'!K$47)))+M70) ->  | N113: =N105-N111+N109+(N109+((M109-(M109/'RAB Calculations'!$J$47*'RAB Calculations'!L$47)))+N70) ->  | O113: =O105-O111+O109+(O109+((N109-(N109/'RAB Calculations'!$J$47*'RAB Calculations'!M$47)))+O70) ->  | P113: =P105-P111+P109+(P109+((O109-(O109/'RAB Calculations'!$J$47*'RAB Calculations'!N$47)))+P70) -> 
D115: Total asset returns | K115: =(K105+K109-K111)*'General Inputs'!$B$5 ->  | L115: =(L105+L109-L111)*'General Inputs'!$B$5+((K109-($K109/'RAB Calculations'!$K$47*'RAB Calculations'!K$47)))*'General Inputs'!$B$5+L107*'General Inputs'!$B$5 ->  | M115: =(M105+M109-M111)*'General Inputs'!$B$5+((L109-($K109/'RAB Calculations'!$K$47*'RAB Calculations'!L$47)))*'General Inputs'!$B$5+M107*'General Inputs'!$B$5 ->  | N115: =(N105+N109-N111)*'General Inputs'!$B$5+((M109-($K109/'RAB Calculations'!$K$47*'RAB Calculations'!M$47)))*'General Inputs'!$B$5+N107*'General Inputs'!$B$5 ->  | O115: =(O105+O109-O111)*'General Inputs'!$B$5+((N109-($K109/'RAB Calculations'!$K$47*'RAB Calculations'!N$47)))*'General Inputs'!$B$5+O107*'General Inputs'!$B$5 ->  | P115: =(P105+P109-P111)*'General Inputs'!$B$5+((O109-($K109/'RAB Calculations'!$K$47*'RAB Calculations'!O$47)))*'General Inputs'!$B$5+P107*'General Inputs'!$B$5 -> 
C119: Proof of Calculations
D121: Initial assets
E122: Opening balance | L122: =K88-K82-K111 -> 
D124: First 50% of capex
E125: Spend | K125: =K70 -> 
E126: Carried forward balance | L126: =K94 -> 
E127: NPV at nominal WACC of | I127: ='General Inputs'!B6 -> 0.05131434446 | L127: =L126+L125+NPV(I127,M125:P125) -> 
D129: Remainder of capex
E130: Spend | K130: =K71 -> 
E131: Carried forward balance | L131: =K92 -> 
E132: NPV at nominal WACC of | I132: =I127 -> 0.05131434446 | L132: =L131+NPV(I132,L130:P130) -> 
L133: =L135-L127-L132 -> 
D135: Total opening balance | L135: =L122+L127+L132 -> 
E136: Revenue stream
F137: depreciation | L137: =L82 ->  | M137: =M82 ->  | N137: =N82 ->  | O137: =O82 ->  | P137: =P82 -> 
F138: Return on assets | L138: =L115 ->  | M138: =M115 ->  | N138: =N115 ->  | O138: =O115 ->  | P138: =P115 -> 
F139: Residual value
F140: residual value of initial assets | P140: =(P105-P111-P137+P109+P107+P130)+(O109-(K109/'RAB Calculations'!K47*'RAB Calculations'!O47)) -> 
F141: residual value of remainder of capex
E142: Total | L142: =L137+L138+L140 ->  | M142: =M137+M138+M140 ->  | N142: =N137+N138+N140 ->  | O142: =O137+O138+O140 ->  | P142: =P137+P138+P140 -> 
E144: NPV at nominal WACC of | I144: =I132 -> 0.05131434446 | L144: =NPV(I144,L142:P142) ->  | M144: =L135-L144 -> 
F145: Check | L145: =IF(ROUND(L135-L144,5)=0,"ok","problem") -> 
D147: Closing written down value | K147: =K105-K111-K82+K100+K109 -> 
B161: RAB Calculations
C162: ="Asset Class 2 - "&E14 -> Asset Class 2 - Meters
C164: Real calculations
D166: Real asset value
E168: Opening balance | K168: =#REF! ->  | L168: =K176 ->  | M168: =L176 ->  | N168: =M176 ->  | O168: =N176 ->  | P168: =O176 -> 
E170: Capex
F171: First 50% | K171: =#REF!/2 ->  | L171: =#REF!/2 ->  | M171: =#REF!/2 ->  | N171: =#REF!/2 ->  | O171: =#REF!/2 ->  | P171: =#REF!/2 -> 
F172: Remainder | K172: =K171 -> 
E174: Depreciation | K174: =K178 -> 
E176: Closing balance | K176: =-K174+K172+K171+K168 -> 
E178: Depreciation | J178: ='General Inputs'!#REF! ->  | K178: ='General Inputs'!#REF! ->  | L178: ='General Inputs'!#REF! ->  | M178: ='General Inputs'!#REF! ->  | N178: ='General Inputs'!#REF! ->  | O178: ='General Inputs'!#REF! ->  | P178: ='General Inputs'!#REF! -> 
C181: Depreciation
D183: Total depreciation | J183: =J178 -> 
C186: Asset Returns
D188: Initial assets
E189: Regulatory value of initial assets | K189: =IF($K183=0,0,$K168*'RAB Calculations'!K$47*('RAB Calculations'!K183/'RAB Calculations'!$K183)) ->  | L189: =IF($K183=0,0,$K168*'RAB Calculations'!L$47*('RAB Calculations'!L183/'RAB Calculations'!$K183)) ->  | M189: =IF($K183=0,0,$K168*'RAB Calculations'!M$47*('RAB Calculations'!M183/'RAB Calculations'!$K183)) ->  | N189: =IF($K183=0,0,$K168*'RAB Calculations'!N$47*('RAB Calculations'!N183/'RAB Calculations'!$K183)) ->  | O189: =IF($K183=0,0,$K168*'RAB Calculations'!O$47*('RAB Calculations'!O183/'RAB Calculations'!$K183)) ->  | P189: =IF($K183=0,0,$K168*'RAB Calculations'!P$47*('RAB Calculations'!P183/'RAB Calculations'!$K183)) -> 
D192: Capex
E193: Regulatory value of remainder of year1 capex | K193: =$K171*'RAB Calculations'!K$47 ->  | L193: =$K171*'RAB Calculations'!L$47 ->  | M193: =$K171*'RAB Calculations'!M$47 ->  | N193: =$K171*'RAB Calculations'!N$47 ->  | O193: =$K171*'RAB Calculations'!O$47 ->  | P193: =$K171*'RAB Calculations'!P$47 -> 
E194: cost base of 50% of capex
F195: Year 1 capex | K195: =$K171*'RAB Calculations'!K$47 ->  | L195: =$K171*'RAB Calculations'!L$47 ->  | M195: =$K171*'RAB Calculations'!M$47 ->  | N195: =$K171*'RAB Calculations'!N$47 ->  | O195: =$K171*'RAB Calculations'!O$47 ->  | P195: =$K171*'RAB Calculations'!P$47 -> 
F196: Year 2 capex | L196: =$L171*'RAB Calculations'!L$48 ->  | M196: =$L171*'RAB Calculations'!M$48 ->  | N196: =$L171*'RAB Calculations'!N$48 ->  | O196: =$L171*'RAB Calculations'!O$48 ->  | P196: =$L171*'RAB Calculations'!P$48 -> 
F197: Year 3 capex | M197: =$M171*'RAB Calculations'!M$49 ->  | N197: =$M171*'RAB Calculations'!N$49 ->  | O197: =$M171*'RAB Calculations'!O$49 ->  | P197: =$M171*'RAB Calculations'!P$49 -> 
F198: Year 4 capex | N198: =$N171*'RAB Calculations'!N$50 ->  | O198: =$N171*'RAB Calculations'!O$50 ->  | P198: =$N171*'RAB Calculations'!P$50 -> 
F199: Year 5 capex | O199: =$O171*'RAB Calculations'!O$51 ->  | P199: =$O171*'RAB Calculations'!P$51 -> 
F200: Year 6 capex | P200: =$P171*'RAB Calculations'!P$52 -> 
D201: Total | K201: =SUM(K195:K200) -> 
D204: Asset returns
E205: Regulatory value of initial assets for return purposes
F206: cost base | K206: =$K168*'RAB Calculations'!K$47 ->  | L206: =$K168*'RAB Calculations'!L$47 ->  | M206: =$K168*'RAB Calculations'!M$47 ->  | N206: =$K168*'RAB Calculations'!N$47 ->  | O206: =$K168*'RAB Calculations'!O$47 ->  | P206: =$K168*'RAB Calculations'!P$47 -> 
E207: Value of Year 1 remainder assets for return purposes
F208: cost base | K208: =$K193/'RAB Calculations'!$K$48*'RAB Calculations'!K$48 ->  | L208: =$K193/'RAB Calculations'!$K$48*'RAB Calculations'!L$48 ->  | M208: =$K193/'RAB Calculations'!$K$48*'RAB Calculations'!M$48 ->  | N208: =$K193/'RAB Calculations'!$K$48*'RAB Calculations'!N$48 ->  | O208: =$K193/'RAB Calculations'!$K$48*'RAB Calculations'!O$48 ->  | P208: =$K193/'RAB Calculations'!$K$48*'RAB Calculations'!P$48 -> 
E209: WDV of 50% of capex
F210: cost base | K210: =K195 ->  | L210: =K210*(1+'General Inputs'!$B$4)+'RAB Calculations'!L196 ->  | M210: =L210*(1+'General Inputs'!$B$4)+'RAB Calculations'!M197 ->  | N210: =M210*(1+'General Inputs'!$B$4)+'RAB Calculations'!N198 ->  | O210: =N210*(1+'General Inputs'!$B$4)+'RAB Calculations'!O199 ->  | P210: =O210*(1+'General Inputs'!$B$4)+'RAB Calculations'!P200 -> 
F212: accumulated depreciation (to start of year) | K212: =J183*'RAB Calculations'!K$47 ->  | L212: =(K212+K183)*(1+'General Inputs'!$B$4) ->  | M212: =(L212+L183)*(1+'General Inputs'!$B$4) ->  | N212: =(M212+M183)*(1+'General Inputs'!$B$4) ->  | O212: =(N212+N183)*(1+'General Inputs'!$B$4) ->  | P212: =(O212+O183)*(1+'General Inputs'!$B$4) -> 
E214: Total WDV of 50% of capex | K214: =K206-K212+K210+(K210+((J210-(J210/'RAB Calculations'!$J$47*'RAB Calculations'!$I$47)))+K171) ->  | L214: =L206-L212+L210+(L210+((K210-(K210/'RAB Calculations'!$J$47*'RAB Calculations'!J$47)))+L171) ->  | M214: =M206-M212+M210+(M210+((L210-(L210/'RAB Calculations'!$J$47*'RAB Calculations'!K$47)))+M171) ->  | N214: =N206-N212+N210+(N210+((M210-(M210/'RAB Calculations'!$J$47*'RAB Calculations'!L$47)))+N171) ->  | O214: =O206-O212+O210+(O210+((N210-(N210/'RAB Calculations'!$J$47*'RAB Calculations'!M$47)))+O171) ->  | P214: =P206-P212+P210+(P210+((O210-(O210/'RAB Calculations'!$J$47*'RAB Calculations'!N$47)))+P171) -> 
D216: Total asset returns | K216: =(K206+K210-K212)*'General Inputs'!$B$5 ->  | L216: =(L206+L210-L212)*'General Inputs'!$B$5+((K210-($K210/'RAB Calculations'!$K$47*'RAB Calculations'!K$47)))*'General Inputs'!$B$5+L208*'General Inputs'!$B$5 ->  | M216: =(M206+M210-M212)*'General Inputs'!$B$5+((L210-($K210/'RAB Calculations'!$K$47*'RAB Calculations'!L$47)))*'General Inputs'!$B$5+M208*'General Inputs'!$B$5 ->  | N216: =(N206+N210-N212)*'General Inputs'!$B$5+((M210-($K210/'RAB Calculations'!$K$47*'RAB Calculations'!M$47)))*'General Inputs'!$B$5+N208*'General Inputs'!$B$5 ->  | O216: =(O206+O210-O212)*'General Inputs'!$B$5+((N210-($K210/'RAB Calculations'!$K$47*'RAB Calculations'!N$47)))*'General Inputs'!$B$5+O208*'General Inputs'!$B$5 ->  | P216: =(P206+P210-P212)*'General Inputs'!$B$5+((O210-($K210/'RAB Calculations'!$K$47*'RAB Calculations'!O$47)))*'General Inputs'!$B$5+P208*'General Inputs'!$B$5 -> 
C219: Proof of Calculations
D221: Initial assets
E222: Opening balance | L222: =K189-K183-K212 -> 
D224: First 50% of capex
E225: Spend | K225: =K171 -> 
E226: Carried forward balance | L226: =K195 -> 
E227: NPV at nominal WACC of | I227: =NompretaxWACC -> 0.05131434446 | L227: =L226+L225+NPV(I227,M225:P225) -> 
D229: Remainder of capex
E230: Spend | K230: =K172 -> 
E231: Carried forward balance | L231: =K193 -> 
E232: NPV at nominal WACC of | I232: =I227 -> 0.05131434446 | L232: =L231+NPV(I232,L230:P230) -> 
L233: =L235-L227-L232 -> 
D235: Total opening balance | L235: =L222+L227+L232 -> 
E236: Revenue stream
F237: depreciation | L237: =L183 ->  | M237: =M183 ->  | N237: =N183 ->  | O237: =O183 ->  | P237: =P183 -> 
F238: Return on assets | L238: =L216 ->  | M238: =M216 ->  | N238: =N216 ->  | O238: =O216 ->  | P238: =P216 -> 
F239: Residual value
F240: residual value of initial assets | P240: =(P206-P212-P237+P210)+P208+P230+(O210-(K210/'RAB Calculations'!K47*'RAB Calculations'!O47)) -> 
F241: residual value of remainder of capex
E242: Total | L242: =L237+L238+L240 ->  | M242: =M237+M238+M240 ->  | N242: =N237+N238+N240 ->  | O242: =O237+O238+O240 ->  | P242: =P237+P238+P240 -> 
E244: NPV at nominal WACC of | I244: =I232 -> 0.05131434446 | L244: =NPV(I244,L242:P242) ->  | M244: =L235-L244 -> 
F245: Check | L245: =IF(ROUND(L235-L244,5)=0,"ok","problem") -> 
D247: Closing written down value | K247: =K206-K212-K183+K201+K210 -> 
B261: RAB Calculations
C262: ="Asset Class 3 - "&E15 -> Asset Class 3 - Telemetry
C264: Real calculations
D266: Real asset value
E268: Opening balance | K268: =#REF! ->  | L268: =K276 ->  | M268: =L276 ->  | N268: =M276 ->  | O268: =N276 ->  | P268: =O276 -> 
E270: Capex
F271: First 50% | K271: =#REF!/2 ->  | L271: =#REF!/2 ->  | M271: =#REF!/2 ->  | N271: =#REF!/2 ->  | O271: =#REF!/2 ->  | P271: =#REF!/2 -> 
F272: Remainder | K272: =K271 -> 
E274: Depreciation | K274: =K278 -> 
E276: Closing balance | K276: =-K274+K272+K271+K268 -> 
E278: Depreciation | J278: ='General Inputs'!#REF! ->  | K278: ='General Inputs'!#REF! ->  | L278: ='General Inputs'!#REF! ->  | M278: ='General Inputs'!#REF! ->  | N278: ='General Inputs'!#REF! ->  | O278: ='General Inputs'!#REF! ->  | P278: ='General Inputs'!#REF! -> 
C281: Depreciation
D283: Total depreciation | J283: =J278 -> 
C286: Asset Returns
D288: Initial assets
E289: Regulatory value of initial assets | K289: =IF($K283=0,0,$K268*'RAB Calculations'!K$47*('RAB Calculations'!K283/'RAB Calculations'!$K283)) ->  | L289: =IF($K283=0,0,$K268*'RAB Calculations'!L$47*('RAB Calculations'!L283/'RAB Calculations'!$K283)) ->  | M289: =IF($K283=0,0,$K268*'RAB Calculations'!M$47*('RAB Calculations'!M283/'RAB Calculations'!$K283)) ->  | N289: =IF($K283=0,0,$K268*'RAB Calculations'!N$47*('RAB Calculations'!N283/'RAB Calculations'!$K283)) ->  | O289: =IF($K283=0,0,$K268*'RAB Calculations'!O$47*('RAB Calculations'!O283/'RAB Calculations'!$K283)) ->  | P289: =IF($K283=0,0,$K268*'RAB Calculations'!P$47*('RAB Calculations'!P283/'RAB Calculations'!$K283)) -> 
D292: Capex
E293: Regulatory value of remainder of year1 capex | K293: =$K271*'RAB Calculations'!K$47 ->  | L293: =$K271*'RAB Calculations'!L$47 ->  | M293: =$K271*'RAB Calculations'!M$47 ->  | N293: =$K271*'RAB Calculations'!N$47 ->  | O293: =$K271*'RAB Calculations'!O$47 ->  | P293: =$K271*'RAB Calculations'!P$47 -> 
E294: cost base of 50% of capex
F295: Year 1 capex | K295: =$K271*'RAB Calculations'!K$47 ->  | L295: =$K271*'RAB Calculations'!L$47 ->  | M295: =$K271*'RAB Calculations'!M$47 ->  | N295: =$K271*'RAB Calculations'!N$47 ->  | O295: =$K271*'RAB Calculations'!O$47 ->  | P295: =$K271*'RAB Calculations'!P$47 -> 
F296: Year 2 capex | L296: =$L271*'RAB Calculations'!L$48 ->  | M296: =$L271*'RAB Calculations'!M$48 ->  | N296: =$L271*'RAB Calculations'!N$48 ->  | O296: =$L271*'RAB Calculations'!O$48 ->  | P296: =$L271*'RAB Calculations'!P$48 -> 
F297: Year 3 capex | M297: =$M271*'RAB Calculations'!M$49 ->  | N297: =$M271*'RAB Calculations'!N$49 ->  | O297: =$M271*'RAB Calculations'!O$49 ->  | P297: =$M271*'RAB Calculations'!P$49 -> 
F298: Year 4 capex | N298: =$N271*'RAB Calculations'!N$50 ->  | O298: =$N271*'RAB Calculations'!O$50 ->  | P298: =$N271*'RAB Calculations'!P$50 -> 
F299: Year 5 capex | O299: =$O271*'RAB Calculations'!O$51 ->  | P299: =$O271*'RAB Calculations'!P$51 -> 
F300: Year 6 capex | P300: =$P271*'RAB Calculations'!P$52 -> 
D301: Total | K301: =SUM(K295:K300) -> 
D304: Asset returns
E305: Regulatory value of initial assets for return purposes
F306: cost base | K306: =$K268*'RAB Calculations'!K$47 ->  | L306: =$K268*'RAB Calculations'!L$47 ->  | M306: =$K268*'RAB Calculations'!M$47 ->  | N306: =$K268*'RAB Calculations'!N$47 ->  | O306: =$K268*'RAB Calculations'!O$47 ->  | P306: =$K268*'RAB Calculations'!P$47 -> 
E307: Value of Year 1 remainder assets for return purposes
F308: cost base | K308: =$K293/'RAB Calculations'!$K$48*'RAB Calculations'!K$48 ->  | L308: =$K293/'RAB Calculations'!$K$48*'RAB Calculations'!L$48 ->  | M308: =$K293/'RAB Calculations'!$K$48*'RAB Calculations'!M$48 ->  | N308: =$K293/'RAB Calculations'!$K$48*'RAB Calculations'!N$48 ->  | O308: =$K293/'RAB Calculations'!$K$48*'RAB Calculations'!O$48 ->  | P308: =$K293/'RAB Calculations'!$K$48*'RAB Calculations'!P$48 -> 
E309: WDV of 50% of capex
F310: cost base | K310: =K295 ->  | L310: =K310*(1+'General Inputs'!$B$4)+'RAB Calculations'!L296 ->  | M310: =L310*(1+'General Inputs'!$B$4)+'RAB Calculations'!M297 ->  | N310: =M310*(1+'General Inputs'!$B$4)+'RAB Calculations'!N298 ->  | O310: =N310*(1+'General Inputs'!$B$4)+'RAB Calculations'!O299 ->  | P310: =O310*(1+'General Inputs'!$B$4)+'RAB Calculations'!P300 -> 
F312: accumulated depreciation (to start of year) | K312: =J283*'RAB Calculations'!K$47 ->  | L312: =(K312+K283)*(1+'General Inputs'!$B$4) ->  | M312: =(L312+L283)*(1+'General Inputs'!$B$4) ->  | N312: =(M312+M283)*(1+'General Inputs'!$B$4) ->  | O312: =(N312+N283)*(1+'General Inputs'!$B$4) ->  | P312: =(O312+O283)*(1+'General Inputs'!$B$4) -> 
E314: Total WDV of 50% of capex | K314: =K306-K312+K310+(K310+((J310-(J310/'RAB Calculations'!$J$47*'RAB Calculations'!I$47)))+K271) ->  | L314: =L306-L312+L310+(L310+((K310-(K310/'RAB Calculations'!$J$47*'RAB Calculations'!J$47)))+L271) ->  | M314: =M306-M312+M310+(M310+((L310-(L310/'RAB Calculations'!$J$47*'RAB Calculations'!K$47)))+M271) ->  | N314: =N306-N312+N310+(N310+((M310-(M310/'RAB Calculations'!$J$47*'RAB Calculations'!L$47)))+N271) ->  | O314: =O306-O312+O310+(O310+((N310-(N310/'RAB Calculations'!$J$47*'RAB Calculations'!M$47)))+O271) ->  | P314: =P306-P312+P310+(P310+((O310-(O310/'RAB Calculations'!$J$47*'RAB Calculations'!N$47)))+P271) -> 
D316: Total asset returns | K316: =(K306+K310-K312)*'General Inputs'!$B$5 ->  | L316: =(L306+L310-L312)*'General Inputs'!$B$5+((K310-($K310/'RAB Calculations'!$K$47*'RAB Calculations'!K$47)))*'General Inputs'!$B$5+L308*'General Inputs'!$B$5 ->  | M316: =(M306+M310-M312)*'General Inputs'!$B$5+((L310-($K310/'RAB Calculations'!$K$47*'RAB Calculations'!L$47)))*'General Inputs'!$B$5+M308*'General Inputs'!$B$5 ->  | N316: =(N306+N310-N312)*'General Inputs'!$B$5+((M310-($K310/'RAB Calculations'!$K$47*'RAB Calculations'!M$47)))*'General Inputs'!$B$5+N308*'General Inputs'!$B$5 ->  | O316: =(O306+O310-O312)*'General Inputs'!$B$5+((N310-($K310/'RAB Calculations'!$K$47*'RAB Calculations'!N$47)))*'General Inputs'!$B$5+O308*'General Inputs'!$B$5 ->  | P316: =(P306+P310-P312)*'General Inputs'!$B$5+((O310-($K310/'RAB Calculations'!$K$47*'RAB Calculations'!O$47)))*'General Inputs'!$B$5+P308*'General Inputs'!$B$5 -> 
C319: Proof of Calculations
D321: Initial assets
E322: Opening balance | L322: =K289-K283-K312 -> 
D324: First 50% of capex
E325: Spend | K325: =K271 -> 
E326: Carried forward balance | L326: =K295 -> 
E327: NPV at nominal WACC of | I327: =NompretaxWACC -> 0.05131434446 | L327: =L326+L325+NPV(I327,M325:P325) -> 
D329: Remainder of capex
E330: Spend | K330: =K272 -> 
E331: Carried forward balance | L331: =K293 -> 
... 186 more rows

Sheet Tariff Inputs (hidden)
A1: Tariff Inputs
A4: ='General Inputs'!B18 -> Residential (Metro) | B4: =TRANSPOSE('Connection Numbers Inputs'!A4:A13) -> 2018/19 | C4: 2019/20 | D4: 2020/21 | E4: 2021-22 | F4: 2022-23 | G4: 2023-24 | H4: 2024-25 | I4: 2025-26 | J4: 2026-27 | K4: 2027-28
A5: ='General Inputs'!E18 -> Residential tariff
A6: Fixed ($/day) | B6: 0 | C6: 0 | D6: 0 | E6: 0 | F6: 0 | G6: 0 | H6: 0 | I6: 0 | J6: 0 | K6: 0
A7: Peak Band 1 ($/GJ) | B7: 0 | C7: 0 | D7: 0 | E7: 0 | F7: 0 | G7: 0 | H7: 0 | I7: 0 | J7: 0 | K7: 0
A8: Peak Band 2 ($/GJ) | B8: 0 | C8: 0 | D8: 0 | E8: 0 | F8: 0 | G8: 0 | H8: 0 | I8: 0 | J8: 0 | K8: 0
A9: Peak Band 3 ($/GJ) | B9: 0 | C9: 0 | D9: 0 | E9: 0 | F9: 0 | G9: 0 | H9: 0 | I9: 0 | J9: 0 | K9: 0
A10: Peak Band 4 ($/GJ) | B10: 0 | C10: 0 | D10: 0 | E10: 0 | F10: 0 | G10: 0 | H10: 0 | I10: 0 | J10: 0 | K10: 0
A11: Peak Band 5 ($/GJ) | B11: 0 | C11: 0 | D11: 0 | E11: 0 | F11: 0 | G11: 0 | H11: 0 | I11: 0 | J11: 0 | K11: 0
A12: Peak Band 6 ($/GJ) | B12: 0 | C12: 0 | D12: 0 | E12: 0 | F12: 0 | G12: 0 | H12: 0 | I12: 0 | J12: 0 | K12: 0
A13: Peak Band 7 ($/GJ) | B13: 0 | C13: 0 | D13: 0 | E13: 0 | F13: 0 | G13: 0 | H13: 0 | I13: 0 | J13: 0 | K13: 0
A14: Off Peak Band 1 ($/GJ) | B14: 0 | C14: 0 | D14: 0 | E14: 0 | F14: 0 | G14: 0 | H14: 0 | I14: 0 | J14: 0 | K14: 0
A15: Off Peak Band 2 ($/GJ) | B15: 0 | C15: 0 | D15: 0 | E15: 0 | F15: 0 | G15: 0 | H15: 0 | I15: 0 | J15: 0 | K15: 0
A16: Off Peak Band 3 ($/GJ) | B16: 0 | C16: 0 | D16: 0 | E16: 0 | F16: 0 | G16: 0 | H16: 0 | I16: 0 | J16: 0 | K16: 0
A17: Off Peak Band 4 ($/GJ) | B17: 0 | C17: 0 | D17: 0 | E17: 0 | F17: 0 | G17: 0 | H17: 0 | I17: 0 | J17: 0 | K17: 0
A18: Off Peak Band 5 ($/GJ) | B18: 0 | C18: 0 | D18: 0 | E18: 0 | F18: 0 | G18: 0 | H18: 0 | I18: 0 | J18: 0 | K18: 0
A19: Off Peak Band 6 ($/GJ) | B19: 0 | C19: 0 | D19: 0 | E19: 0 | F19: 0 | G19: 0 | H19: 0 | I19: 0 | J19: 0 | K19: 0
A20: Off Peak Band 7 ($/GJ) | B20: 0 | C20: 0 | D20: 0 | E20: 0 | F20: 0 | G20: 0 | H20: 0 | I20: 0 | J20: 0 | K20: 0
A22: ='General Inputs'!B19 -> Residential (YV) | B22: =B$4 -> 2018/19 | C22: 2019/20 | D22: 2020/21 | E22: 2021-22 | F22: 2022-23 | G22: 2023-24 | H22: 2024-25 | I22: 2025-26 | J22: 2026-27 | K22: 2027-28
A23: ='General Inputs'!E19 -> Residential tariff
A24: =A6 -> Fixed ($/day) | B24: 0 | C24: 0 | D24: 0 | E24: 0 | F24: 0 | G24: 0 | H24: 0 | I24: 0 | J24: 0 | K24: 0
A25: =A$7 -> Peak Band 1 ($/GJ) | B25: 0 | C25: 0 | D25: 0 | E25: 0 | F25: 0 | G25: 0 | H25: 0 | I25: 0 | J25: 0 | K25: 0
A26: =A$8 -> Peak Band 2 ($/GJ) | B26: 0 | C26: 0 | D26: 0 | E26: 0 | F26: 0 | G26: 0 | H26: 0 | I26: 0 | J26: 0 | K26: 0
A27: =A$9 -> Peak Band 3 ($/GJ) | B27: 0 | C27: 0 | D27: 0 | E27: 0 | F27: 0 | G27: 0 | H27: 0 | I27: 0 | J27: 0 | K27: 0
A28: =A$10 -> Peak Band 4 ($/GJ) | B28: 0 | C28: 0 | D28: 0 | E28: 0 | F28: 0 | G28: 0 | H28: 0 | I28: 0 | J28: 0 | K28: 0
A29: =A$11 -> Peak Band 5 ($/GJ) | B29: 0 | C29: 0 | D29: 0 | E29: 0 | F29: 0 | G29: 0 | H29: 0 | I29: 0 | J29: 0 | K29: 0
A30: =A$12 -> Peak Band 6 ($/GJ) | B30: 0 | C30: 0 | D30: 0 | E30: 0 | F30: 0 | G30: 0 | H30: 0 | I30: 0 | J30: 0 | K30: 0
A31: =A$13 -> Peak Band 7 ($/GJ) | B31: 0 | C31: 0 | D31: 0 | E31: 0 | F31: 0 | G31: 0 | H31: 0 | I31: 0 | J31: 0 | K31: 0
A32: =A$14 -> Off Peak Band 1 ($/GJ) | B32: 0 | C32: 0 | D32: 0 | E32: 0 | F32: 0 | G32: 0 | H32: 0 | I32: 0 | J32: 0 | K32: 0
A33: =A$15 -> Off Peak Band 2 ($/GJ) | B33: 0 | C33: 0 | D33: 0 | E33: 0 | F33: 0 | G33: 0 | H33: 0 | I33: 0 | J33: 0 | K33: 0
A34: =A$16 -> Off Peak Band 3 ($/GJ) | B34: 0 | C34: 0 | D34: 0 | E34: 0 | F34: 0 | G34: 0 | H34: 0 | I34: 0 | J34: 0 | K34: 0
A35: =A$17 -> Off Peak Band 4 ($/GJ) | B35: 0 | C35: 0 | D35: 0 | E35: 0 | F35: 0 | G35: 0 | H35: 0 | I35: 0 | J35: 0 | K35: 0
A36: =A$18 -> Off Peak Band 5 ($/GJ) | B36: 0 | C36: 0 | D36: 0 | E36: 0 | F36: 0 | G36: 0 | H36: 0 | I36: 0 | J36: 0 | K36: 0
A37: =A$19 -> Off Peak Band 6 ($/GJ) | B37: 0 | C37: 0 | D37: 0 | E37: 0 | F37: 0 | G37: 0 | H37: 0 | I37: 0 | J37: 0 | K37: 0
A38: =A$20 -> Off Peak Band 7 ($/GJ) | B38: 0 | C38: 0 | D38: 0 | E38: 0 | F38: 0 | G38: 0 | H38: 0 | I38: 0 | J38: 0 | K38: 0
A40: ='General Inputs'!B20 -> Residential (SG) | B40: =B$4 -> 2018/19 | C40: 2019/20 | D40: 2020/21 | E40: 2021-22 | F40: 2022-23 | G40: 2023-24 | H40: 2024-25 | I40: 2025-26 | J40: 2026-27 | K40: 2027-28
A41: ='General Inputs'!E20 -> Residential tariff
A42: Fixed ($/day) | B42: 0 | C42: 0 | D42: 0 | E42: 0 | F42: 0 | G42: 0 | H42: 0 | I42: 0 | J42: 0 | K42: 0
A43: =A$7 -> Peak Band 1 ($/GJ) | B43: 0 | C43: 0 | D43: 0 | E43: 0 | F43: 0 | G43: 0 | H43: 0 | I43: 0 | J43: 0 | K43: 0
A44: =A$8 -> Peak Band 2 ($/GJ) | B44: 0 | C44: 0 | D44: 0 | E44: 0 | F44: 0 | G44: 0 | H44: 0 | I44: 0 | J44: 0 | K44: 0
A45: =A$9 -> Peak Band 3 ($/GJ) | B45: 0 | C45: 0 | D45: 0 | E45: 0 | F45: 0 | G45: 0 | H45: 0 | I45: 0 | J45: 0 | K45: 0
A46: =A$10 -> Peak Band 4 ($/GJ) | B46: 0 | C46: 0 | D46: 0 | E46: 0 | F46: 0 | G46: 0 | H46: 0 | I46: 0 | J46: 0 | K46: 0
A47: =A$11 -> Peak Band 5 ($/GJ) | B47: 0 | C47: 0 | D47: 0 | E47: 0 | F47: 0 | G47: 0 | H47: 0 | I47: 0 | J47: 0 | K47: 0
A48: =A$12 -> Peak Band 6 ($/GJ) | B48: 0 | C48: 0 | D48: 0 | E48: 0 | F48: 0 | G48: 0 | H48: 0 | I48: 0 | J48: 0 | K48: 0
A49: =A$13 -> Peak Band 7 ($/GJ) | B49: 0 | C49: 0 | D49: 0 | E49: 0 | F49: 0 | G49: 0 | H49: 0 | I49: 0 | J49: 0 | K49: 0
A50: =A$14 -> Off Peak Band 1 ($/GJ) | B50: 0 | C50: 0 | D50: 0 | E50: 0 | F50: 0 | G50: 0 | H50: 0 | I50: 0 | J50: 0 | K50: 0
A51: =A$15 -> Off Peak Band 2 ($/GJ) | B51: 0 | C51: 0 | D51: 0 | E51: 0 | F51: 0 | G51: 0 | H51: 0 | I51: 0 | J51: 0 | K51: 0
A52: =A$16 -> Off Peak Band 3 ($/GJ) | B52: 0 | C52: 0 | D52: 0 | E52: 0 | F52: 0 | G52: 0 | H52: 0 | I52: 0 | J52: 0 | K52: 0
A53: =A$17 -> Off Peak Band 4 ($/GJ) | B53: 0 | C53: 0 | D53: 0 | E53: 0 | F53: 0 | G53: 0 | H53: 0 | I53: 0 | J53: 0 | K53: 0
A54: =A$18 -> Off Peak Band 5 ($/GJ) | B54: 0 | C54: 0 | D54: 0 | E54: 0 | F54: 0 | G54: 0 | H54: 0 | I54: 0 | J54: 0 | K54: 0
A55: =A$19 -> Off Peak Band 6 ($/GJ) | B55: 0 | C55: 0 | D55: 0 | E55: 0 | F55: 0 | G55: 0 | H55: 0 | I55: 0 | J55: 0 | K55: 0
A56: =A$20 -> Off Peak Band 7 ($/GJ) | B56: 0 | C56: 0 | D56: 0 | E56: 0 | F56: 0 | G56: 0 | H56: 0 | I56: 0 | J56: 0 | K56: 0
A58: ='General Inputs'!#REF! ->  | B58: =B$4 -> 2018/19 | C58: 2019/20 | D58: 2020/21 | E58: 2021-22 | F58: 2022-23 | G58: 2023-24 | H58: 2024-25 | I58: 2025-26 | J58: 2026-27 | K58: 2027-28
A59: ='General Inputs'!#REF! -> 
A60: =A42 -> Fixed ($/day) | B60: 0 | C60: 0 | D60: 0 | E60: 0 | F60: 0 | G60: 0 | H60: 0 | I60: 0 | J60: 0 | K60: 0
A61: =A$7 -> Peak Band 1 ($/GJ) | B61: 0 | C61: 0 | D61: 0 | E61: 0 | F61: 0 | G61: 0 | H61: 0 | I61: 0 | J61: 0 | K61: 0
A62: =A$8 -> Peak Band 2 ($/GJ) | B62: 0 | C62: 0 | D62: 0 | E62: 0 | F62: 0 | G62: 0 | H62: 0 | I62: 0 | J62: 0 | K62: 0
A63: =A$9 -> Peak Band 3 ($/GJ) | B63: 0 | C63: 0 | D63: 0 | E63: 0 | F63: 0 | G63: 0 | H63: 0 | I63: 0 | J63: 0 | K63: 0
A64: =A$10 -> Peak Band 4 ($/GJ) | B64: 0 | C64: 0 | D64: 0 | E64: 0 | F64: 0 | G64: 0 | H64: 0 | I64: 0 | J64: 0 | K64: 0
A65: =A$11 -> Peak Band 5 ($/GJ) | B65: 0 | C65: 0 | D65: 0 | E65: 0 | F65: 0 | G65: 0 | H65: 0 | I65: 0 | J65: 0 | K65: 0
A66: =A$12 -> Peak Band 6 ($/GJ) | B66: 0 | C66: 0 | D66: 0 | E66: 0 | F66: 0 | G66: 0 | H66: 0 | I66: 0 | J66: 0 | K66: 0
A67: =A$13 -> Peak Band 7 ($/GJ) | B67: 0 | C67: 0 | D67: 0 | E67: 0 | F67: 0 | G67: 0 | H67: 0 | I67: 0 | J67: 0 | K67: 0
A68: =A$14 -> Off Peak Band 1 ($/GJ) | B68: 0 | C68: 0 | D68: 0 | E68: 0 | F68: 0 | G68: 0 | H68: 0 | I68: 0 | J68: 0 | K68: 0
A69: =A$15 -> Off Peak Band 2 ($/GJ) | B69: 0 | C69: 0 | D69: 0 | E69: 0 | F69: 0 | G69: 0 | H69: 0 | I69: 0 | J69: 0 | K69: 0
A70: =A$16 -> Off Peak Band 3 ($/GJ) | B70: 0 | C70: 0 | D70: 0 | E70: 0 | F70: 0 | G70: 0 | H70: 0 | I70: 0 | J70: 0 | K70: 0
A71: =A$17 -> Off Peak Band 4 ($/GJ) | B71: 0 | C71: 0 | D71: 0 | E71: 0 | F71: 0 | G71: 0 | H71: 0 | I71: 0 | J71: 0 | K71: 0
A72: =A$18 -> Off Peak Band 5 ($/GJ) | B72: 0 | C72: 0 | D72: 0 | E72: 0 | F72: 0 | G72: 0 | H72: 0 | I72: 0 | J72: 0 | K72: 0
A73: =A$19 -> Off Peak Band 6 ($/GJ) | B73: 0 | C73: 0 | D73: 0 | E73: 0 | F73: 0 | G73: 0 | H73: 0 | I73: 0 | J73: 0 | K73: 0
A74: =A$20 -> Off Peak Band 7 ($/GJ) | B74: 0 | C74: 0 | D74: 0 | E74: 0 | F74: 0 | G74: 0 | H74: 0 | I74: 0 | J74: 0 | K74: 0
A76: ='General Inputs'!#REF! ->  | B76: =B$4 -> 2018/19 | C76: 2019/20 | D76: 2020/21 | E76: 2021-22 | F76: 2022-23 | G76: 2023-24 | H76: 2024-25 | I76: 2025-26 | J76: 2026-27 | K76: 2027-28
A77: ='General Inputs'!E33 -> 0
A78: =A60 -> Fixed ($/day) | B78: 0 | C78: 0 | D78: 0 | E78: 0 | F78: 0 | G78: 0 | H78: 0 | I78: 0 | J78: 0 | K78: 0
A79: =A$7 -> Peak Band 1 ($/GJ) | B79: 0 | C79: 0 | D79: 0 | E79: 0 | F79: 0 | G79: 0 | H79: 0 | I79: 0 | J79: 0 | K79: 0
A80: =A$8 -> Peak Band 2 ($/GJ) | B80: 0 | C80: 0 | D80: 0 | E80: 0 | F80: 0 | G80: 0 | H80: 0 | I80: 0 | J80: 0 | K80: 0
A81: =A$9 -> Peak Band 3 ($/GJ) | B81: 0 | C81: 0 | D81: 0 | E81: 0 | F81: 0 | G81: 0 | H81: 0 | I81: 0 | J81: 0 | K81: 0
A82: =A$10 -> Peak Band 4 ($/GJ) | B82: 0 | C82: 0 | D82: 0 | E82: 0 | F82: 0 | G82: 0 | H82: 0 | I82: 0 | J82: 0 | K82: 0
A83: =A$11 -> Peak Band 5 ($/GJ) | B83: 0 | C83: 0 | D83: 0 | E83: 0 | F83: 0 | G83: 0 | H83: 0 | I83: 0 | J83: 0 | K83: 0
A84: =A$12 -> Peak Band 6 ($/GJ) | B84: 0 | C84: 0 | D84: 0 | E84: 0 | F84: 0 | G84: 0 | H84: 0 | I84: 0 | J84: 0 | K84: 0
A85: =A$13 -> Peak Band 7 ($/GJ) | B85: 0 | C85: 0 | D85: 0 | E85: 0 | F85: 0 | G85: 0 | H85: 0 | I85: 0 | J85: 0 | K85: 0
A86: =A$14 -> Off Peak Band 1 ($/GJ) | B86: 0 | C86: 0 | D86: 0 | E86: 0 | F86: 0 | G86: 0 | H86: 0 | I86: 0 | J86: 0 | K86: 0
A87: =A$15 -> Off Peak Band 2 ($/GJ) | B87: 0 | C87: 0 | D87: 0 | E87: 0 | F87: 0 | G87: 0 | H87: 0 | I87: 0 | J87: 0 | K87: 0
A88: =A$16 -> Off Peak Band 3 ($/GJ) | B88: 0 | C88: 0 | D88: 0 | E88: 0 | F88: 0 | G88: 0 | H88: 0 | I88: 0 | J88: 0 | K88: 0
A89: =A$17 -> Off Peak Band 4 ($/GJ) | B89: 0 | C89: 0 | D89: 0 | E89: 0 | F89: 0 | G89: 0 | H89: 0 | I89: 0 | J89: 0 | K89: 0
A90: =A$18 -> Off Peak Band 5 ($/GJ) | B90: 0 | C90: 0 | D90: 0 | E90: 0 | F90: 0 | G90: 0 | H90: 0 | I90: 0 | J90: 0 | K90: 0
A91: =A$19 -> Off Peak Band 6 ($/GJ) | B91: 0 | C91: 0 | D91: 0 | E91: 0 | F91: 0 | G91: 0 | H91: 0 | I91: 0 | J91: 0 | K91: 0
A92: =A$20 -> Off Peak Band 7 ($/GJ) | B92: 0 | C92: 0 | D92: 0 | E92: 0 | F92: 0 | G92: 0 | H92: 0 | I92: 0 | J92: 0 | K92: 0
A94: ='General Inputs'!B21 -> Non res (Metro) | B94: =B$4 -> 2018/19 | C94: 2019/20 | D94: 2020/21 | E94: 2021-22 | F94: 2022-23 | G94: 2023-24 | H94: 2024-25 | I94: 2025-26 | J94: 2026-27 | K94: 2027-28
A95: ='General Inputs'!E21 -> Non- Residential tariff
A96: Fixed ($/day) | B96: 0 | C96: 0 | D96: 0 | E96: 0 | F96: 0 | G96: 0 | H96: 0 | I96: 0 | J96: 0 | K96: 0
A97: Peak Band 1 ($/GJ) | B97: 0 | C97: 0 | D97: 0 | E97: 0 | F97: 0 | G97: 0 | H97: 0 | I97: 0 | J97: 0 | K97: 0
A98: Peak Band 2 ($/GJ) | B98: 0 | C98: 0 | D98: 0 | E98: 0 | F98: 0 | G98: 0 | H98: 0 | I98: 0 | J98: 0 | K98: 0
A99: Peak Band 3 ($/GJ) | B99: 0 | C99: 0 | D99: 0 | E99: 0 | F99: 0 | G99: 0 | H99: 0 | I99: 0 | J99: 0 | K99: 0
A100: Peak Band 4 ($/GJ) | B100: 0 | C100: 0 | D100: 0 | E100: 0 | F100: 0 | G100: 0 | H100: 0 | I100: 0 | J100: 0 | K100: 0
A101: Peak Band 5 ($/GJ) | B101: 0 | C101: 0 | D101: 0 | E101: 0 | F101: 0 | G101: 0 | H101: 0 | I101: 0 | J101: 0 | K101: 0
A102: Peak Band 6 ($/GJ) | B102: 0 | C102: 0 | D102: 0 | E102: 0 | F102: 0 | G102: 0 | H102: 0 | I102: 0 | J102: 0 | K102: 0
A103: Peak Band 7 ($/GJ) | B103: 0 | C103: 0 | D103: 0 | E103: 0 | F103: 0 | G103: 0 | H103: 0 | I103: 0 | J103: 0 | K103: 0
A104: Off Peak Band 1 ($/GJ) | B104: 0 | C104: 0 | D104: 0 | E104: 0 | F104: 0 | G104: 0 | H104: 0 | I104: 0 | J104: 0 | K104: 0
A105: Off Peak Band 2 ($/GJ) | B105: 0 | C105: 0 | D105: 0 | E105: 0 | F105: 0 | G105: 0 | H105: 0 | I105: 0 | J105: 0 | K105: 0
A106: Off Peak Band 3 ($/GJ) | B106: 0 | C106: 0 | D106: 0 | E106: 0 | F106: 0 | G106: 0 | H106: 0 | I106: 0 | J106: 0 | K106: 0
A107: Off Peak Band 4 ($/GJ) | B107: 0 | C107: 0 | D107: 0 | E107: 0 | F107: 0 | G107: 0 | H107: 0 | I107: 0 | J107: 0 | K107: 0
A108: Off Peak Band 5 ($/GJ) | B108: 0 | C108: 0 | D108: 0 | E108: 0 | F108: 0 | G108: 0 | H108: 0 | I108: 0 | J108: 0 | K108: 0
A109: Off Peak Band 6 ($/GJ) | B109: 0 | C109: 0 | D109: 0 | E109: 0 | F109: 0 | G109: 0 | H109: 0 | I109: 0 | J109: 0 | K109: 0
A110: Off Peak Band 7 ($/GJ) | B110: 0 | C110: 0 | D110: 0 | E110: 0 | F110: 0 | G110: 0 | H110: 0 | I110: 0 | J110: 0 | K110: 0
A112: ='General Inputs'!B22 -> Non res (YV) | B112: =B$4 -> 2018/19 | C112: 2019/20 | D112: 2020/21 | E112: 2021-22 | F112: 2022-23 | G112: 2023-24 | H112: 2024-25 | I112: 2025-26 | J112: 2026-27 | K112: 2027-28
A113: ='General Inputs'!E22 -> Non- Residential tariff
A114: =A96 -> Fixed ($/day) | B114: 0 | C114: 0 | D114: 0 | E114: 0 | F114: 0 | G114: 0 | H114: 0 | I114: 0 | J114: 0 | K114: 0
A115: =A$7 -> Peak Band 1 ($/GJ) | B115: 0 | C115: 0 | D115: 0 | E115: 0 | F115: 0 | G115: 0 | H115: 0 | I115: 0 | J115: 0 | K115: 0
A116: =A$8 -> Peak Band 2 ($/GJ) | B116: 0 | C116: 0 | D116: 0 | E116: 0 | F116: 0 | G116: 0 | H116: 0 | I116: 0 | J116: 0 | K116: 0
A117: =A$9 -> Peak Band 3 ($/GJ) | B117: 0 | C117: 0 | D117: 0 | E117: 0 | F117: 0 | G117: 0 | H117: 0 | I117: 0 | J117: 0 | K117: 0
A118: =A$10 -> Peak Band 4 ($/GJ) | B118: 0 | C118: 0 | D118: 0 | E118: 0 | F118: 0 | G118: 0 | H118: 0 | I118: 0 | J118: 0 | K118: 0
A119: =A$11 -> Peak Band 5 ($/GJ) | B119: 0 | C119: 0 | D119: 0 | E119: 0 | F119: 0 | G119: 0 | H119: 0 | I119: 0 | J119: 0 | K119: 0
A120: =A$12 -> Peak Band 6 ($/GJ) | B120: 0 | C120: 0 | D120: 0 | E120: 0 | F120: 0 | G120: 0 | H120: 0 | I120: 0 | J120: 0 | K120: 0
A121: =A$13 -> Peak Band 7 ($/GJ) | B121: 0 | C121: 0 | D121: 0 | E121: 0 | F121: 0 | G121: 0 | H121: 0 | I121: 0 | J121: 0 | K121: 0
A122: =A$14 -> Off Peak Band 1 ($/GJ) | B122: 0 | C122: 0 | D122: 0 | E122: 0 | F122: 0 | G122: 0 | H122: 0 | I122: 0 | J122: 0 | K122: 0
A123: =A$15 -> Off Peak Band 2 ($/GJ) | B123: 0 | C123: 0 | D123: 0 | E123: 0 | F123: 0 | G123: 0 | H123: 0 | I123: 0 | J123: 0 | K123: 0
A124: =A$16 -> Off Peak Band 3 ($/GJ) | B124: 0 | C124: 0 | D124: 0 | E124: 0 | F124: 0 | G124: 0 | H124: 0 | I124: 0 | J124: 0 | K124: 0
A125: =A$17 -> Off Peak Band 4 ($/GJ) | B125: 0 | C125: 0 | D125: 0 | E125: 0 | F125: 0 | G125: 0 | H125: 0 | I125: 0 | J125: 0 | K125: 0
A126: =A$18 -> Off Peak Band 5 ($/GJ) | B126: 0 | C126: 0 | D126: 0 | E126: 0 | F126: 0 | G126: 0 | H126: 0 | I126: 0 | J126: 0 | K126: 0
A127: =A$19 -> Off Peak Band 6 ($/GJ) | B127: 0 | C127: 0 | D127: 0 | E127: 0 | F127: 0 | G127: 0 | H127: 0 | I127: 0 | J127: 0 | K127: 0
A128: =A$20 -> Off Peak Band 7 ($/GJ) | B128: 0 | C128: 0 | D128: 0 | E128: 0 | F128: 0 | G128: 0 | H128: 0 | I128: 0 | J128: 0 | K128: 0
A130: ='General Inputs'!B23 -> Non res (SG) | B130: =B$4 -> 2018/19 | C130: 2019/20 | D130: 2020/21 | E130: 2021-22 | F130: 2022-23 | G130: 2023-24 | H130: 2024-25 | I130: 2025-26 | J130: 2026-27 | K130: 2027-28
A131: ='General Inputs'!E23 -> Non- Residential tariff
A132: Fixed ($/day) | B132: 0 | C132: 0 | D132: 0 | E132: 0 | F132: 0 | G132: 0 | H132: 0 | I132: 0 | J132: 0 | K132: 0
A133: =A$7 -> Peak Band 1 ($/GJ) | B133: 0 | C133: 0 | D133: 0 | E133: 0 | F133: 0 | G133: 0 | H133: 0 | I133: 0 | J133: 0 | K133: 0
A134: =A$8 -> Peak Band 2 ($/GJ) | B134: 0 | C134: 0 | D134: 0 | E134: 0 | F134: 0 | G134: 0 | H134: 0 | I134: 0 | J134: 0 | K134: 0
A135: =A$9 -> Peak Band 3 ($/GJ) | B135: 0 | C135: 0 | D135: 0 | E135: 0 | F135: 0 | G135: 0 | H135: 0 | I135: 0 | J135: 0 | K135: 0
A136: =A$10 -> Peak Band 4 ($/GJ) | B136: 0 | C136: 0 | D136: 0 | E136: 0 | F136: 0 | G136: 0 | H136: 0 | I136: 0 | J136: 0 | K136: 0
A137: =A$11 -> Peak Band 5 ($/GJ) | B137: 0 | C137: 0 | D137: 0 | E137: 0 | F137: 0 | G137: 0 | H137: 0 | I137: 0 | J137: 0 | K137: 0
A138: =A$12 -> Peak Band 6 ($/GJ) | B138: 0 | C138: 0 | D138: 0 | E138: 0 | F138: 0 | G138: 0 | H138: 0 | I138: 0 | J138: 0 | K138: 0
A139: =A$13 -> Peak Band 7 ($/GJ) | B139: 0 | C139: 0 | D139: 0 | E139: 0 | F139: 0 | G139: 0 | H139: 0 | I139: 0 | J139: 0 | K139: 0
A140: =A$14 -> Off Peak Band 1 ($/GJ) | B140: 0 | C140: 0 | D140: 0 | E140: 0 | F140: 0 | G140: 0 | H140: 0 | I140: 0 | J140: 0 | K140: 0
A141: =A$15 -> Off Peak Band 2 ($/GJ) | B141: 0 | C141: 0 | D141: 0 | E141: 0 | F141: 0 | G141: 0 | H141: 0 | I141: 0 | J141: 0 | K141: 0
A142: =A$16 -> Off Peak Band 3 ($/GJ) | B142: 0 | C142: 0 | D142: 0 | E142: 0 | F142: 0 | G142: 0 | H142: 0 | I142: 0 | J142: 0 | K142: 0
A143: =A$17 -> Off Peak Band 4 ($/GJ) | B143: 0 | C143: 0 | D143: 0 | E143: 0 | F143: 0 | G143: 0 | H143: 0 | I143: 0 | J143: 0 | K143: 0
A144: =A$18 -> Off Peak Band 5 ($/GJ) | B144: 0 | C144: 0 | D144: 0 | E144: 0 | F144: 0 | G144: 0 | H144: 0 | I144: 0 | J144: 0 | K144: 0
A145: =A$19 -> Off Peak Band 6 ($/GJ) | B145: 0 | C145: 0 | D145: 0 | E145: 0 | F145: 0 | G145: 0 | H145: 0 | I145: 0 | J145: 0 | K145: 0
A146: =A$20 -> Off Peak Band 7 ($/GJ) | B146: 0 | C146: 0 | D146: 0 | E146: 0 | F146: 0 | G146: 0 | H146: 0 | I146: 0 | J146: 0 | K146: 0
A148: ='General Inputs'!B24 -> Tariff L | B148: =B$4 -> 2018/19 | C148: 2019/20 | D148: 2020/21 | E148: 2021-22 | F148: 2022-23 | G148: 2023-24 | H148: 2024-25 | I148: 2025-26 | J148: 2026-27 | K148: 2027-28
A149: ='General Inputs'!E24 -> Non- Residential tariff
A150: =A132 -> Fixed ($/day) | B150: 0 | C150: 0 | D150: 0 | E150: 0 | F150: 0 | G150: 0 | H150: 0 | I150: 0 | J150: 0 | K150: 0
A151: =A$7 -> Peak Band 1 ($/GJ) | B151: 0 | C151: 0 | D151: 0 | E151: 0 | F151: 0 | G151: 0 | H151: 0 | I151: 0 | J151: 0 | K151: 0
A152: =A$8 -> Peak Band 2 ($/GJ) | B152: 0 | C152: 0 | D152: 0 | E152: 0 | F152: 0 | G152: 0 | H152: 0 | I152: 0 | J152: 0 | K152: 0
A153: =A$9 -> Peak Band 3 ($/GJ) | B153: 0 | C153: 0 | D153: 0 | E153: 0 | F153: 0 | G153: 0 | H153: 0 | I153: 0 | J153: 0 | K153: 0
A154: =A$10 -> Peak Band 4 ($/GJ) | B154: 0 | C154: 0 | D154: 0 | E154: 0 | F154: 0 | G154: 0 | H154: 0 | I154: 0 | J154: 0 | K154: 0
A155: =A$11 -> Peak Band 5 ($/GJ) | B155: 0 | C155: 0 | D155: 0 | E155: 0 | F155: 0 | G155: 0 | H155: 0 | I155: 0 | J155: 0 | K155: 0
A156: =A$12 -> Peak Band 6 ($/GJ) | B156: 0 | C156: 0 | D156: 0 | E156: 0 | F156: 0 | G156: 0 | H156: 0 | I156: 0 | J156: 0 | K156: 0
A157: =A$13 -> Peak Band 7 ($/GJ) | B157: 0 | C157: 0 | D157: 0 | E157: 0 | F157: 0 | G157: 0 | H157: 0 | I157: 0 | J157: 0 | K157: 0
A158: =A$14 -> Off Peak Band 1 ($/GJ) | B158: 0 | C158: 0 | D158: 0 | E158: 0 | F158: 0 | G158: 0 | H158: 0 | I158: 0 | J158: 0 | K158: 0
A159: =A$15 -> Off Peak Band 2 ($/GJ) | B159: 0 | C159: 0 | D159: 0 | E159: 0 | F159: 0 | G159: 0 | H159: 0 | I159: 0 | J159: 0 | K159: 0
A160: =A$16 -> Off Peak Band 3 ($/GJ) | B160: 0 | C160: 0 | D160: 0 | E160: 0 | F160: 0 | G160: 0 | H160: 0 | I160: 0 | J160: 0 | K160: 0
A161: =A$17 -> Off Peak Band 4 ($/GJ) | B161: 0 | C161: 0 | D161: 0 | E161: 0 | F161: 0 | G161: 0 | H161: 0 | I161: 0 | J161: 0 | K161: 0
A162: =A$18 -> Off Peak Band 5 ($/GJ) | B162: 0 | C162: 0 | D162: 0 | E162: 0 | F162: 0 | G162: 0 | H162: 0 | I162: 0 | J162: 0 | K162: 0
A163: =A$19 -> Off Peak Band 6 ($/GJ) | B163: 0 | C163: 0 | D163: 0 | E163: 0 | F163: 0 | G163: 0 | H163: 0 | I163: 0 | J163: 0 | K163: 0
A164: =A$20 -> Off Peak Band 7 ($/GJ) | B164: 0 | C164: 0 | D164: 0 | E164: 0 | F164: 0 | G164: 0 | H164: 0 | I164: 0 | J164: 0 | K164: 0
A166: ='General Inputs'!B25 -> Tariff D (Metro) | B166: =B$4 -> 2018/19 | C166: 2019/20 | D166: 2020/21 | E166: 2021-22 | F166: 2022-23 | G166: 2023-24 | H166: 2024-25 | I166: 2025-26 | J166: 2026-27 | K166: 2027-28
A167: ='General Inputs'!E38 -> 0
A168: =A150 -> Fixed ($/day) | B168: 0 | C168: 0 | D168: 0 | E168: 0 | F168: 0 | G168: 0 | H168: 0 | I168: 0 | J168: 0 | K168: 0
A169: =A$7 -> Peak Band 1 ($/GJ) | B169: 0 | C169: 0 | D169: 0 | E169: 0 | F169: 0 | G169: 0 | H169: 0 | I169: 0 | J169: 0 | K169: 0
A170: =A$8 -> Peak Band 2 ($/GJ) | B170: 0 | C170: 0 | D170: 0 | E170: 0 | F170: 0 | G170: 0 | H170: 0 | I170: 0 | J170: 0 | K170: 0
A171: =A$9 -> Peak Band 3 ($/GJ) | B171: 0 | C171: 0 | D171: 0 | E171: 0 | F171: 0 | G171: 0 | H171: 0 | I171: 0 | J171: 0 | K171: 0
A172: =A$10 -> Peak Band 4 ($/GJ) | B172: 0 | C172: 0 | D172: 0 | E172: 0 | F172: 0 | G172: 0 | H172: 0 | I172: 0 | J172: 0 | K172: 0
A173: =A$11 -> Peak Band 5 ($/GJ) | B173: 0 | C173: 0 | D173: 0 | E173: 0 | F173: 0 | G173: 0 | H173: 0 | I173: 0 | J173: 0 | K173: 0
A174: =A$12 -> Peak Band 6 ($/GJ) | B174: 0 | C174: 0 | D174: 0 | E174: 0 | F174: 0 | G174: 0 | H174: 0 | I174: 0 | J174: 0 | K174: 0
A175: =A$13 -> Peak Band 7 ($/GJ) | B175: 0 | C175: 0 | D175: 0 | E175: 0 | F175: 0 | G175: 0 | H175: 0 | I175: 0 | J175: 0 | K175: 0
A176: =A$14 -> Off Peak Band 1 ($/GJ) | B176: 0 | C176: 0 | D176: 0 | E176: 0 | F176: 0 | G176: 0 | H176: 0 | I176: 0 | J176: 0 | K176: 0
A177: =A$15 -> Off Peak Band 2 ($/GJ) | B177: 0 | C177: 0 | D177: 0 | E177: 0 | F177: 0 | G177: 0 | H177: 0 | I177: 0 | J177: 0 | K177: 0
A178: =A$16 -> Off Peak Band 3 ($/GJ) | B178: 0 | C178: 0 | D178: 0 | E178: 0 | F178: 0 | G178: 0 | H178: 0 | I178: 0 | J178: 0 | K178: 0
A179: =A$17 -> Off Peak Band 4 ($/GJ) | B179: 0 | C179: 0 | D179: 0 | E179: 0 | F179: 0 | G179: 0 | H179: 0 | I179: 0 | J179: 0 | K179: 0
A180: =A$18 -> Off Peak Band 5 ($/GJ) | B180: 0 | C180: 0 | D180: 0 | E180: 0 | F180: 0 | G180: 0 | H180: 0 | I180: 0 | J180: 0 | K180: 0
A181: =A$19 -> Off Peak Band 6 ($/GJ) | B181: 0 | C181: 0 | D181: 0 | E181: 0 | F181: 0 | G181: 0 | H181: 0 | I181: 0 | J181: 0 | K181: 0
A182: =A$20 -> Off Peak Band 7 ($/GJ) | B182: 0 | C182: 0 | D182: 0 | E182: 0 | F182: 0 | G182: 0 | H182: 0 | I182: 0 | J182: 0 | K182: 0
A184: ='General Inputs'!B26 -> Tariff D (SG) | B184: =B$4 -> 2018/19 | C184: 2019/20 | D184: 2020/21 | E184: 2021-22 | F184: 2022-23 | G184: 2023-24 | H184: 2024-25 | I184: 2025-26 | J184: 2026-27 | K184: 2027-28
A185: ='General Inputs'!E26 -> Demand customers in region 3
A186: Band 1 ($/GJ) | B186: 0 | C186: 0 | D186: 0 | E186: 0 | F186: 0 | G186: 0 | H186: 0 | I186: 0 | J186: 0 | K186: 0
A187: Band 2 ($/GJ) | B187: 0 | C187: 0 | D187: 0 | E187: 0 | F187: 0 | G187: 0 | H187: 0 | I187: 0 | J187: 0 | K187: 0
A188: Band 3 ($/GJ) | B188: 0 | C188: 0 | D188: 0 | E188: 0 | F188: 0 | G188: 0 | H188: 0 | I188: 0 | J188: 0 | K188: 0
A189: Band 4 ($/GJ) | B189: 0 | C189: 0 | D189: 0 | E189: 0 | F189: 0 | G189: 0 | H189: 0 | I189: 0 | J189: 0 | K189: 0
A190: Band 5 ($/GJ) | B190: 0 | C190: 0 | D190: 0 | E190: 0 | F190: 0 | G190: 0 | H190: 0 | I190: 0 | J190: 0 | K190: 0
A191: Band 6 ($/GJ) | B191: 0 | C191: 0 | D191: 0 | E191: 0 | F191: 0 | G191: 0 | H191: 0 | I191: 0 | J191: 0 | K191: 0
A192: Band 7 ($/GJ) | B192: 0 | C192: 0 | D192: 0 | E192: 0 | F192: 0 | G192: 0 | H192: 0 | I192: 0 | J192: 0 | K192: 0
A194: ='General Inputs'!#REF! ->  | B194: =B$4 -> 2018/19 | C194: 2019/20 | D194: 2020/21 | E194: 2021-22 | F194: 2022-23 | G194: 2023-24 | H194: 2024-25 | I194: 2025-26 | J194: 2026-27 | K194: 2027-28
A195: ='General Inputs'!#REF! -> 
A196: =A158 -> Off Peak Band 1 ($/GJ) | B196: 0 | C196: 0 | D196: 0 | E196: 0 | F196: 0 | G196: 0 | H196: 0 | I196: 0 | J196: 0 | K196: 0
A197: Off Peak Band 2 ($/GJ) | B197: 0 | C197: 0 | D197: 0 | E197: 0 | F197: 0 | G197: 0 | H197: 0 | I197: 0 | J197: 0 | K197: 0
A198: Off Peak Band 3 ($/GJ) | B198: 0 | C198: 0 | D198: 0 | E198: 0 | F198: 0 | G198: 0 | H198: 0 | I198: 0 | J198: 0 | K198: 0
A199: Off Peak Band 4 ($/GJ) | B199: 0 | C199: 0 | D199: 0 | E199: 0 | F199: 0 | G199: 0 | H199: 0 | I199: 0 | J199: 0 | K199: 0
A200: Off Peak Band 5 ($/GJ) | B200: 0 | C200: 0 | D200: 0 | E200: 0 | F200: 0 | G200: 0 | H200: 0 | I200: 0 | J200: 0 | K200: 0
A201: Off Peak Band 6 ($/GJ) | B201: 0 | C201: 0 | D201: 0 | E201: 0 | F201: 0 | G201: 0 | H201: 0 | I201: 0 | J201: 0 | K201: 0
A202: Band 7 ($/GJ) | B202: 0 | C202: 0 | D202: 0 | E202: 0 | F202: 0 | G202: 0 | H202: 0 | I202: 0 | J202: 0 | K202: 0
A204: ='General Inputs'!#REF! ->  | B204: =B$4 -> 2018/19 | C204: 2019/20 | D204: 2020/21 | E204: 2021-22 | F204: 2022-23 | G204: 2023-24 | H204: 2024-25 | I204: 2025-26 | J204: 2026-27 | K204: 2027-28
A205: ='General Inputs'!#REF! -> 
A206: =A186 -> Band 1 ($/GJ) | B206: 0 | C206: 0 | D206: 0 | E206: 0 | F206: 0 | G206: 0 | H206: 0 | I206: 0 | J206: 0 | K206: 0
A207: Band 2 ($/GJ) | B207: 0 | C207: 0 | D207: 0 | E207: 0 | F207: 0 | G207: 0 | H207: 0 | I207: 0 | J207: 0 | K207: 0
A208: Band 3 ($/GJ) | B208: 0 | C208: 0 | D208: 0 | E208: 0 | F208: 0 | G208: 0 | H208: 0 | I208: 0 | J208: 0 | K208: 0
A209: Band 4 ($/GJ) | B209: 0 | C209: 0 | D209: 0 | E209: 0 | F209: 0 | G209: 0 | H209: 0 | I209: 0 | J209: 0 | K209: 0
A210: Band 5 ($/GJ) | B210: 0 | C210: 0 | D210: 0 | E210: 0 | F210: 0 | G210: 0 | H210: 0 | I210: 0 | J210: 0 | K210: 0
A211: Band 6 ($/GJ) | B211: 0 | C211: 0 | D211: 0 | E211: 0 | F211: 0 | G211: 0 | H211: 0 | I211: 0 | J211: 0 | K211: 0
A212: Band 7 ($/GJ) | B212: 0 | C212: 0 | D212: 0 | E212: 0 | F212: 0 | G212: 0 | H212: 0 | I212: 0 | J212: 0 | K212: 0
A214: ='General Inputs'!#REF! ->  | B214: =B$4 -> 2018/19 | C214: 2019/20 | D214: 2020/21 | E214: 2021-22 | F214: 2022-23 | G214: 2023-24 | H214: 2024-25 | I214: 2025-26 | J214: 2026-27 | K214: 2027-28
A215: ='General Inputs'!#REF! -> 
... 16 more rows

Sheet Cost allocators
A1: Cost Allocators
A3: Service Cost Allocator
A4: Reference Services (%) | B4: =100%-SUM(B5:B5) -> 0.9874662639
A5: Ancillary Reference Services (%) | B5: ='Volume Inputs'!G204/('PTRM Inputs'!G11*1000000) -> 0.01253373612
A6: Return on Capital Component | B6: 0
A7: Return of Capital Component | B7: 0
A8: Opex Component | B8: 1
A10: Tariff D Zonal Allocator Selection
A11: ='FDC Calculations'!A12 -> Return on capital | B11: Assets
A12: ='FDC Calculations'!A13 -> Return of capital | B12: Assets
A13: ='FDC Calculations'!A14 -> O&M | B13: Volume and Customer No
A14: ='FDC Calculations'!A15 -> Carry-over amounts | B14: Volume and Customer No
A15: ='FDC Calculations'!A16 -> Benchmark Tax liability | B15: Assets
A17: Tariff R+C Allocator Selection | C17: Residential (Metro) | D17: Residential (YV) | E17: Residential (SG) | F17: Non res (Metro) | G17: Non res (YV) | H17: Non res (SG) | I17: Tariff L | J17: Tariff D (Metro) | K17: Tariff D (SG) | L17: Total
A18: =A11 -> Return on capital | B18: Volume and Customer No | C18: =IF($B18=$A$26,C$26/SUM($C$26:$K$26),IF($B18=$A$27,C$27/SUM($C$27:$K$27),C$28/SUM($C$28:$K$28))) -> 0.9353471057 | D18: 0.007555561733 | E18: 0.007632630355 | F18: 0.04797108568 | G18: 0.0002269639939 | H18: 0.0005740549716 | I18: 0.0003868900782 | J18: 0.0003015700507 | K18: 4.137419361e-06 | L18: =SUM(C18:K18) -> 1
A19: =A12 -> Return of capital | B19: Volume and Customer No | C19: 0.9353471057 | D19: 0.007555561733 | E19: 0.007632630355 | F19: 0.04797108568 | G19: 0.0002269639939 | H19: 0.0005740549716 | I19: 0.0003868900782 | J19: 0.0003015700507 | K19: 4.137419361e-06 | L19: =SUM(C19:K19) -> 1
A20: =A13 -> O&M | B20: Volume and Customer No | C20: 0.9353471057 | D20: 0.007555561733 | E20: 0.007632630355 | F20: 0.04797108568 | G20: 0.0002269639939 | H20: 0.0005740549716 | I20: 0.0003868900782 | J20: 0.0003015700507 | K20: 4.137419361e-06 | L20: 1
A21: =A14 -> Carry-over amounts | B21: Volume and Customer No | C21: 0.9353471057 | D21: 0.007555561733 | E21: 0.007632630355 | F21: 0.04797108568 | G21: 0.0002269639939 | H21: 0.0005740549716 | I21: 0.0003868900782 | J21: 0.0003015700507 | K21: 4.137419361e-06 | L21: 1
A22: =A15 -> Benchmark Tax liability | B22: Volume and Customer No | C22: 0.9353471057 | D22: 0.007555561733 | E22: 0.007632630355 | F22: 0.04797108568 | G22: 0.0002269639939 | H22: 0.0005740549716 | I22: 0.0003868900782 | J22: 0.0003015700507 | K22: 4.137419361e-06 | L22: 1
A24: Allocators (Percentages) | B24: Total | C24: =C$17 -> Residential (Metro) | D24: =D$17 -> Residential (YV) | E24: Residential (SG) | F24: Non res (Metro) | G24: Non res (YV) | H24: Non res (SG) | I24: Tariff L | J24: Tariff D (Metro) | K24: Tariff D (SG) | L24: Total
A25: Assets | B25: =SUM(C25:K25) -> 0.008879145094 | J25: ='DORC Calculations'!B11/'DORC Calculations'!J5 -> 0.008492065799 | K25: ='DORC Calculations'!B12/'DORC Calculations'!J5 -> 0.0003870792952 | L25: =SUM(C25:K25) -> 0.008879145094
A26: Customer Number | B26: =SUM(C26:K26) -> 1 | C26: =C40/SUM($C$40:$K$40) -> 0.9605844607 | D26: 0.007920664511 | E26: 0.008757379313 | F26: 0.02206800777 | G26: =G40/SUM($C$40:$K$40) -> 0.0001039265712 | H26: 0.0001682672164 | I26: 1.649566476e-05 | J26: =J40/SUM($C$40:$K$40) -> 0.0003766044142 | K26: 4.193813076e-06 | L26: =SUM(C26:K26) -> 1
A27: Volume - Total | B27: =SUM(C27:K27) -> 1 | C27: =C41/SUM($C$41:$K$41) -> 0.8596350407 | D27: 0.006460253398 | E27: 0.004258383481 | F27: 0.1256803194 | G27: 0.0005960762621 | H27: 0.001791418237 | I27: 0.001498073319 | J27: =J41/SUM($C$41:$K$41) -> 7.646696025e-05 | K27: 3.968238215e-06 | L27: 1
A28: Volume and Customer No | B28: =SUM(C28:K28) -> 1 | C28: =$B$29*C26+$B$30*C27 -> 0.9353471057 | D28: =$B$29*D26+$B$30*D27 -> 0.007555561733 | E28: 0.007632630355 | F28: 0.04797108568 | G28: 0.0002269639939 | H28: 0.0005740549716 | I28: =$B$29*I26+$B$30*I27 -> 0.0003868900782 | J28: =$B$29*J26+$B$30*J27 -> 0.0003015700507 | K28: 4.137419361e-06 | L28: 1
A29: % Customer | B29: 0.75
A30: % Volume | B30: =1-B29 -> 0.25
A31: Ancillary Reference Services
A32: Turn On / Reconnections | B32: 0.1094626719
A33: Meter Investigations | B33: 0.01050788277
A34: Disconnections | B34: 0.1138383929
A35: Special meter reading | B35: 0.6554114107
A36: Meter Removals | B36: 0.1107796417
A38: Allocators (Amounts) | C38: =C$24 -> Residential (Metro) | D38: =D$24 -> Residential (YV) | E38: Residential (SG) | F38: Non res (Metro) | G38: Non res (YV) | H38: Non res (SG) | I38: Tariff L | J38: Tariff D (Metro) | K38: Tariff D (SG)
A39: Assets | C39: 0 | F39: 0
A40: Customer Number | C40: =AVERAGE('Connection Numbers Inputs'!B$4:B$8) -> 687143.9738 | D40: =AVERAGE('Connection Numbers Inputs'!C$4:C$8) -> 5665.96391 | E40: =AVERAGE('Connection Numbers Inputs'!D$4:D$8) -> 6264.499028 | F40: =AVERAGE('Connection Numbers Inputs'!E$4:E$8) -> 15786.11686 | G40: =AVERAGE('Connection Numbers Inputs'!F$4:F$8) -> 74.34277779 | H40: =AVERAGE('Connection Numbers Inputs'!G$4:G$8) -> 120.3681805 | I40: =AVERAGE('Connection Numbers Inputs'!H$4:H$8) -> 11.8 | J40: =AVERAGE('Connection Numbers Inputs'!I$4:I$8) -> 269.4 | K40: =AVERAGE('Connection Numbers Inputs'!J$4:J$8) -> 3
A41: Volume - Total | C41: =AVERAGE('Volume Inputs'!B$173:B$177) -> 37374704.45 | D41: =AVERAGE('Volume Inputs'!C$173:C$177) -> 280875.0807 | E41: =AVERAGE('Volume Inputs'!D$173:D$177) -> 185143.4812 | F41: =AVERAGE('Volume Inputs'!E$173:E$177) -> 5464254.679 | G41: =AVERAGE('Volume Inputs'!F$173:F$177) -> 25915.85158 | H41: =AVERAGE('Volume Inputs'!G$173:G$177) -> 77886.22379 | I41: =AVERAGE('Volume Inputs'!H$173:H$177) -> 65132.34673 | J41: =AVERAGE('Volume Inputs'!I$173:I$177) -> 3324.585323 | K41: =AVERAGE('Volume Inputs'!J$173:J$177) -> 172.5287168
A43: Calculation of Consumption (GJ)
A44: Total MDQ | C44: =C$24 -> Residential (Metro) | D44: =D$24 -> Residential (YV) | E44: Residential (SG) | F44: Non res (Metro) | G44: Non res (YV) | H44: Non res (SG) | I44: Tariff L | J44: Tariff D (Metro) | K44: Tariff D (SG)
A45: Demand Tariff | C45: Non-demand | D45: Non-demand | E45: Non-demand | F45: Non-demand | G45: Non-demand | H45: Non-demand | I45: Non-demand | J45: Demand | K45: Demand
A46: ='Connection Numbers Inputs'!A4 -> 2018/19 | J46: =IF($J$45="Demand",'Volume Inputs'!I173,0) -> 3508.13 | K46: =IF($K$45="Demand",'Volume Inputs'!J173,0) -> 174.72
A47: ='Connection Numbers Inputs'!A5 -> 2019/20 | J47: =IF($J$45="Demand",'Volume Inputs'!I174,0) -> 3325.57 | K47: =IF($K$45="Demand",'Volume Inputs'!J174,0) -> 161.86
A48: ='Connection Numbers Inputs'!A6 -> 2020/21 | J48: =IF($J$45="Demand",'Volume Inputs'!I175,0) -> 3190.99 | K48: =IF($K$45="Demand",'Volume Inputs'!J175,0) -> 167.34
A49: ='Connection Numbers Inputs'!A7 -> 2021-22 | J49: =IF($J$45="Demand",'Volume Inputs'!I176,0) -> 3190.99 | K49: =IF($K$45="Demand",'Volume Inputs'!J176,0) -> 176.34
A50: ='Connection Numbers Inputs'!A8 -> 2022-23 | J50: =IF($J$45="Demand",'Volume Inputs'!I177,0) -> 3407.246616 | K50: =IF($K$45="Demand",'Volume Inputs'!J177,0) -> 182.383584
A51: ='Connection Numbers Inputs'!A9 -> 2023-24 | J51: =IF($J$45="Demand",'Volume Inputs'!I178,0) -> 3363.633859 | K51: =IF($K$45="Demand",'Volume Inputs'!J178,0) -> 181.1657941
A52: ='Connection Numbers Inputs'!A10 -> 2024-25 | J52: =IF($J$45="Demand",'Volume Inputs'!I179,0) -> 3320.579346 | K52: =IF($K$45="Demand",'Volume Inputs'!J179,0) -> 180.075264
A53: ='Connection Numbers Inputs'!A11 -> 2025-26 | J53: =IF($J$45="Demand",'Volume Inputs'!I180,0) -> 3278.07593 | K53: =IF($K$45="Demand",'Volume Inputs'!J180,0) -> 179.1215318
A54: ='Connection Numbers Inputs'!A12 -> 2026-27 | J54: =IF($J$45="Demand",'Volume Inputs'!I181,0) -> 3236.116558 | K54: =IF($K$45="Demand",'Volume Inputs'!J181,0) -> 176.9974405
A55: ='Connection Numbers Inputs'!A13 -> 2027-28 | J55: =IF($J$45="Demand",'Volume Inputs'!I182,0) -> 3194.694266 | K55: =IF($K$45="Demand",'Volume Inputs'!J182,0) -> 174.9005376
A57: Calculated Consumption | C57: =C$24 -> Residential (Metro) | D57: =D$24 -> Residential (YV) | E57: Residential (SG) | F57: Non res (Metro) | G57: Non res (YV) | H57: Non res (SG) | I57: Tariff L | J57: Tariff D (Metro) | K57: Tariff D (SG)
A58: =A46 -> 2018/19 | J58: =J46/$B$71*$B$72 -> 12629268 | K58: 628992
A59: =A47 -> 2019/20 | J59: 11972052 | K59: 582696
A60: 2020/21 | J60: 11487564 | K60: 602424
A61: 2021-22 | J61: 11487564 | K61: 634824
A62: 2022-23 | J62: 12266087.82 | K62: 656580.9024
A63: 2023-24 | J63: 12109081.89 | K63: 652196.8588
A64: 2024-25 | J64: 11954085.65 | K64: 648270.9503
A65: 2025-26 | J65: 11801073.35 | K65: 644837.5144
A66: 2026-27 | J66: 11650019.61 | K66: 637190.7858
A67: 2027-28 | J67: 11500899.36 | K67: 629641.9353
A68: Average
A70: Other Calculation of Consumption Inputs
A71: Load factor | B71: 1.3
A72: Days x Hours | B72: =B73*B74 -> 4680
A73: Days | B73: 260
A74: Hours | B74: 18

Sheet PTRM Inputs
A1: PTRM Inputs
A3: Building block components ($M NOMINAL) | B3: ='Tariff Inputs'!G4 -> 2023-24 | C3: ='Tariff Inputs'!H4 -> 2024-25 | D3: ='Tariff Inputs'!I4 -> 2025-26 | E3: ='Tariff Inputs'!J4 -> 2026-27 | F3: ='Tariff Inputs'!K4 -> 2027-28 | G3: TOTAL
A5: Return on Capital | B5: 71.44750187 | C5: 76.6138652 | D5: 83.44145574 | E5: 88.67644773 | F5: 94.17062043 | G5: =SUM(B5:F5) -> 414.349891
A6: Return of Capital (regulatory depreciation) | B6: 53.81808934 | C6: 48.732419 | D6: 49.215939 | E6: 52.57286882 | F6: 53.80127489 | G6: =SUM(B6:F6) -> 258.140591
A7: Operating Expenditure | B7: 85.17177097 | C7: 87.2056575 | D7: 89.71405427 | E7: 91.73402021 | F7: 95.8674149 | G7: =SUM(B7:F7) -> 449.6929179
A8: Revenue Adjustments | B8: 2.740105275 | C8: -2.653566977 | D8: -1.600964543 | E8: -1.768263043 | F8: -3.417068039 | G8: -6.699757325
A9: Net Tax Allowance | B9: 8.369342383 | C9: 4.514734584 | D9: 1.988574693 | E9: 2.712476368 | F9: 2.44277232 | G9: 20.02790035
A10: TOTAL REVENUE | B10: 221.5468098 | C10: 214.4131093 | D10: 222.7590592 | E10: 233.9275501 | F10: 242.8650145 | G10: =SUM(B10:F10) -> 1135.511543
A11: TOTAL REVENUE (SMOOTHED) | B11: 217.9955762 | C11: 220.6576313 | D11: 224.0464385 | E11: 226.8814199 | F11: 230.3166412 | G11: =SUM(B11:F11) -> 1119.897707
A14: PTRM Opening RAB 2023/24
A15: Asset Class Name (Victoria and Albury combined) | B15: Opening Asset Value
A16: Transmission and distribution | B16: 688.7857374
A17: Pipeworks Mains (New) | B17: -4.534150833e-16
A18: LP Mains - Residual (New) | B18: 28.96734994
A19: Services | B19: 441.4011142
A20: LP Services - Residual (New) | B20: 33.98678935
A21: Cathodic Protection | B21: 2.600485416
A22: Supply Regs/Valve stations | B22: 27.02074897
A23: Meters to 2017 | B23: 8.896180576
A24: Meters from 2018 (New) | B24: 26.82858997
A25: IT | B25: 32.79409026
A26: SCADA | B26: 5.191441457
A27: Other | B27: -3.763936508
A28: Buildings | B28: 1.65375326
A29: Future of Gas | B29: 108.6

Sheet FDC Calculations
A1: Fully Distributed Cost Calculations
A3: Building Block Components - Total ($M NOMINAL) | B3: ='Tariff Inputs'!G4 -> 2023-24 | C3: ='Tariff Inputs'!H4 -> 2024-25 | D3: ='Tariff Inputs'!I4 -> 2025-26 | E3: ='Tariff Inputs'!J4 -> 2026-27 | F3: ='Tariff Inputs'!K4 -> 2027-28 | G3: TOTAL
A4: Return on capital | B4: ='PTRM Inputs'!B5 -> 71.44750187 | C4: ='PTRM Inputs'!C5 -> 76.6138652 | D4: ='PTRM Inputs'!D5 -> 83.44145574 | E4: ='PTRM Inputs'!E5 -> 88.67644773 | F4: ='PTRM Inputs'!F5 -> 94.17062043 | G4: ='PTRM Inputs'!G5 -> 414.349891
A5: Return of capital | B5: ='PTRM Inputs'!B6 -> 53.81808934 | C5: ='PTRM Inputs'!C6 -> 48.732419 | D5: ='PTRM Inputs'!D6 -> 49.215939 | E5: ='PTRM Inputs'!E6 -> 52.57286882 | F5: ='PTRM Inputs'!F6 -> 53.80127489 | G5: ='PTRM Inputs'!G6 -> 258.140591
A6: O&M | B6: ='PTRM Inputs'!B7 -> 85.17177097 | C6: ='PTRM Inputs'!C7 -> 87.2056575 | D6: ='PTRM Inputs'!D7 -> 89.71405427 | E6: ='PTRM Inputs'!E7 -> 91.73402021 | F6: ='PTRM Inputs'!F7 -> 95.8674149 | G6: ='PTRM Inputs'!G7 -> 449.6929179
A7: Carry-over amounts | B7: ='PTRM Inputs'!B8 -> 2.740105275 | C7: ='PTRM Inputs'!C8 -> -2.653566977 | D7: ='PTRM Inputs'!D8 -> -1.600964543 | E7: ='PTRM Inputs'!E8 -> -1.768263043 | F7: ='PTRM Inputs'!F8 -> -3.417068039 | G7: ='PTRM Inputs'!G8 -> -6.699757325
A8: Benchmark Tax liability | B8: ='PTRM Inputs'!B9 -> 8.369342383 | C8: ='PTRM Inputs'!C9 -> 4.514734584 | D8: ='PTRM Inputs'!D9 -> 1.988574693 | E8: ='PTRM Inputs'!E9 -> 2.712476368 | F8: ='PTRM Inputs'!F9 -> 2.44277232 | G8: ='PTRM Inputs'!G9 -> 20.02790035
A9: Total Revenue | B9: =SUM(B4:B8) -> 221.5468098 | C9: =SUM(C4:C8) -> 214.4131093 | D9: =SUM(D4:D8) -> 222.7590592 | E9: =SUM(E4:E8) -> 233.9275501 | F9: =SUM(F4:F8) -> 242.8650145 | G9: =SUM(B9:F9) -> 1135.511543
A11: Building Block Components - Total for Reference Services ($M NOMINAL) | B11: =B$3 -> 2023-24 | C11: =C$3 -> 2024-25 | D11: 2025-26 | E11: 2026-27 | F11: 2027-28 | G11: TOTAL
A12: Return on capital | B12: ='PTRM Inputs'!B5-('Cost allocators'!$B$5*B$9*'Cost allocators'!$B6) -> 71.44750187 | C12: ='PTRM Inputs'!C5-('Cost allocators'!$B$5*C$9*'Cost allocators'!$B6) -> 76.6138652 | D12: ='PTRM Inputs'!D5-('Cost allocators'!$B$5*D$9*'Cost allocators'!$B6) -> 83.44145574 | E12: ='PTRM Inputs'!E5-('Cost allocators'!$B$5*E$9*'Cost allocators'!$B6) -> 88.67644773 | F12: ='PTRM Inputs'!F5-('Cost allocators'!$B$5*F$9*'Cost allocators'!$B6) -> 94.17062043 | G12: =SUM(B12:F12) -> 414.349891
A13: Return of capital | B13: ='PTRM Inputs'!B6-('Cost allocators'!$B$5*B$9*'Cost allocators'!$B7) -> 53.81808934 | C13: ='PTRM Inputs'!C6-('Cost allocators'!$B$5*C$9*'Cost allocators'!$B7) -> 48.732419 | D13: ='PTRM Inputs'!D6-('Cost allocators'!$B$5*D$9*'Cost allocators'!$B7) -> 49.215939 | E13: ='PTRM Inputs'!E6-('Cost allocators'!$B$5*E$9*'Cost allocators'!$B7) -> 52.57286882 | F13: ='PTRM Inputs'!F6-('Cost allocators'!$B$5*F$9*'Cost allocators'!$B7) -> 53.80127489 | G13: =SUM(B13:F13) -> 258.140591
A14: O&M | B14: ='PTRM Inputs'!B7-('Cost allocators'!$B$5*B$9*'Cost allocators'!$B8) -> 82.39496172 | C14: ='PTRM Inputs'!C7-('Cost allocators'!$B$5*C$9*'Cost allocators'!$B8) -> 84.51826017 | D14: ='PTRM Inputs'!D7-('Cost allocators'!$B$5*D$9*'Cost allocators'!$B8) -> 86.92205101 | E14: ='PTRM Inputs'!E7-('Cost allocators'!$B$5*E$9*'Cost allocators'!$B8) -> 88.80203402 | F14: ='PTRM Inputs'!F7-('Cost allocators'!$B$5*F$9*'Cost allocators'!$B8) -> 92.8234089 | G14: 435.4607158
A15: Carry-over amounts | B15: ='PTRM Inputs'!B8 -> 2.740105275 | C15: ='PTRM Inputs'!C8 -> -2.653566977 | D15: ='PTRM Inputs'!D8 -> -1.600964543 | E15: ='PTRM Inputs'!E8 -> -1.768263043 | F15: ='PTRM Inputs'!F8 -> -3.417068039 | G15: -6.699757325
A16: Benchmark Tax liability | B16: ='PTRM Inputs'!B9 -> 8.369342383 | C16: ='PTRM Inputs'!C9 -> 4.514734584 | D16: ='PTRM Inputs'!D9 -> 1.988574693 | E16: ='PTRM Inputs'!E9 -> 2.712476368 | F16: ='PTRM Inputs'!F9 -> 2.44277232 | G16: 20.02790035
A17: Total Revenue | B17: =SUM(B12:B16) -> 218.7700006 | C17: =SUM(C12:C16) -> 211.725712 | D17: =SUM(D12:D16) -> 219.9670559 | E17: =SUM(E12:E16) -> 230.9955639 | F17: =SUM(F12:F16) -> 239.8210085 | G17: 1121.279341
A19: Building Block Components - Total for Ancillary Reference Services ($M NOMINAL) | B19: =B$3 -> 2023-24 | C19: =C$3 -> 2024-25 | D19: 2025-26 | E19: 2026-27 | F19: 2027-28 | G19: TOTAL
A20: Return on capital | B20: =('Cost allocators'!$B$5*B$9*'Cost allocators'!$B6) -> 0 | C20: =('Cost allocators'!$B$5*C$9*'Cost allocators'!$B6) -> 0 | D20: =('Cost allocators'!$B$5*D$9*'Cost allocators'!$B6) -> 0 | E20: =('Cost allocators'!$B$5*E$9*'Cost allocators'!$B6) -> 0 | F20: =('Cost allocators'!$B$5*F$9*'Cost allocators'!$B6) -> 0 | G20: =SUM(B20:F20) -> 0
A21: Return of capital | B21: =('Cost allocators'!$B$5*B$9*'Cost allocators'!$B7) -> 0 | C21: =('Cost allocators'!$B$5*C$9*'Cost allocators'!$B7) -> 0 | D21: =('Cost allocators'!$B$5*D$9*'Cost allocators'!$B7) -> 0 | E21: =('Cost allocators'!$B$5*E$9*'Cost allocators'!$B7) -> 0 | F21: =('Cost allocators'!$B$5*F$9*'Cost allocators'!$B7) -> 0 | G21: =SUM(B21:F21) -> 0
A22: O&M | B22: =('Cost allocators'!$B$5*B$9*'Cost allocators'!$B8) -> 2.776809253 | C22: =('Cost allocators'!$B$5*C$9*'Cost allocators'!$B8) -> 2.687397333 | D22: =('Cost allocators'!$B$5*D$9*'Cost allocators'!$B8) -> 2.792003267 | E22: =('Cost allocators'!$B$5*E$9*'Cost allocators'!$B8) -> 2.931986184 | F22: =('Cost allocators'!$B$5*F$9*'Cost allocators'!$B8) -> 3.044006005 | G22: 14.23220204
A23: Carry-over amounts | B23: =('Cost allocators'!$B$5*B$9*'Cost allocators'!$B9) -> 0 | C23: =('Cost allocators'!$B$5*C$9*'Cost allocators'!$B9) -> 0 | D23: =('Cost allocators'!$B$5*D$9*'Cost allocators'!$B9) -> 0 | E23: =('Cost allocators'!$B$5*E$9*'Cost allocators'!$B9) -> 0 | F23: =('Cost allocators'!$B$5*F$9*'Cost allocators'!$B9) -> 0 | G23: 0
A24: Benchmark Tax liability | B24: =('Cost allocators'!$B$5*B$9*'Cost allocators'!$B10) -> 0 | C24: =('Cost allocators'!$B$5*C$9*'Cost allocators'!$B10) -> 0 | D24: =('Cost allocators'!$B$5*D$9*'Cost allocators'!$B10) -> 0 | E24: =('Cost allocators'!$B$5*E$9*'Cost allocators'!$B10) -> 0 | F24: =('Cost allocators'!$B$5*F$9*'Cost allocators'!$B10) -> 0 | G24: 0
A25: Total Revenue | B25: =SUM(B20:B24) -> 2.776809253 | C25: =SUM(C20:C24) -> 2.687397333 | D25: =SUM(D20:D24) -> 2.792003267 | E25: =SUM(E20:E24) -> 2.931986184 | F25: =SUM(F20:F24) -> 3.044006005 | G25: =SUM(B25:F25) -> 14.23220204
A27: Building Block Components Tariff V (Total) ($M NOMINAL) | B27: =B$3 -> 2023-24 | C27: =C$3 -> 2024-25 | D27: 2025-26 | E27: 2026-27 | F27: 2027-28 | G27: TOTAL
A28: =A12 -> Return on capital | B28: =B12-B116 -> 71.44750187 | C28: 76.6138652 | D28: 83.44145574 | E28: 88.67644773 | F28: 94.17062043 | G28: =SUM(B28:F28) -> 414.349891
A29: =A13 -> Return of capital | B29: 53.81808934 | C29: 48.732419 | D29: 49.215939 | E29: 52.57286882 | F29: 53.80127489 | G29: 258.140591
A30: =A14 -> O&M | B30: 82.39496172 | C30: 84.51826017 | D30: 86.92205101 | E30: 88.80203402 | F30: 92.8234089 | G30: 435.4607158
A31: =A15 -> Carry-over amounts | B31: 2.740105275 | C31: -2.653566977 | D31: -1.600964543 | E31: -1.768263043 | F31: -3.417068039 | G31: -6.699757325
A32: =A16 -> Benchmark Tax liability | B32: 8.369342383 | C32: 4.514734584 | D32: 1.988574693 | E32: 2.712476368 | F32: 2.44277232 | G32: 20.02790035
A33: Total Revenue | B33: =SUM(B28:B32) -> 218.7700006 | C33: =SUM(C28:C32) -> 211.725712 | D33: =SUM(D28:D32) -> 219.9670559 | E33: =SUM(E28:E32) -> 230.9955639 | F33: =SUM(F28:F32) -> 239.8210085 | G33: 1121.279341
A35: Building Block Components Tariff V: Residential (Metro) ($M NOMINAL) | B35: =B$3 -> 2023-24 | C35: =C$3 -> 2024-25 | D35: 2025-26 | E35: 2026-27 | F35: 2027-28 | G35: TOTAL
A36: =A28 -> Return on capital | B36: ='Cost allocators'!$C$18*B$28 -> 66.82821409 | C36: ='Cost allocators'!$C$18*C$28 -> 71.66055707 | D36: ='Cost allocators'!$C$18*D$28 -> 78.04672413 | E36: ='Cost allocators'!$C$18*E$28 -> 82.94325873 | F36: ='Cost allocators'!$C$18*F$28 -> 88.08221727 | G36: =SUM(B36:F36) -> 387.5609713
A37: =A29 -> Return of capital | B37: ='Cost allocators'!$C$19*B$29 -> 50.3385941 | C37: ='Cost allocators'!$C$19*C$29 -> 45.58172707 | D37: ='Cost allocators'!$C$19*D$29 -> 46.0339861 | E37: ='Cost allocators'!$C$19*E$29 -> 49.17388069 | F37: ='Cost allocators'!$C$19*F$29 -> 50.32286675 | G37: 241.4510547
A38: =A30 -> O&M | B38: ='Cost allocators'!$C$20*B$30 -> 77.06788897 | C38: ='Cost allocators'!$C$20*C$30 -> 79.05391003 | D38: ='Cost allocators'!$C$20*D$30 -> 81.30228883 | E38: ='Cost allocators'!$C$20*E$30 -> 83.06072551 | F38: ='Cost allocators'!$C$20*F$30 -> 86.82210685 | G38: 407.3069202
A39: =A31 -> Carry-over amounts | B39: ='Cost allocators'!$C$21*B$31 -> 2.562949539 | C39: ='Cost allocators'!$C$21*C$31 -> -2.482006192 | D39: ='Cost allocators'!$C$21*D$31 -> -1.497457551 | E39: ='Cost allocators'!$C$21*E$31 -> -1.653939719 | F39: ='Cost allocators'!$C$21*F$31 -> -3.1961447 | G39: -6.266598623
A40: =A32 -> Benchmark Tax liability | B40: ='Cost allocators'!$C$22*B$32 -> 7.828240175 | C40: ='Cost allocators'!$C$22*C$32 -> 4.222843926 | D40: ='Cost allocators'!$C$22*D$32 -> 1.860007583 | E40: ='Cost allocators'!$C$22*E$32 -> 2.53710692 | F40: ='Cost allocators'!$C$22*F$32 -> 2.28484002 | G40: 18.73303862
A41: Total Revenue | B41: =SUM(B36:B40) -> 204.6258869 | C41: =SUM(C36:C40) -> 198.0370319 | D41: =SUM(D36:D40) -> 205.7455491 | E41: =SUM(E36:E40) -> 216.0610321 | F41: =SUM(F36:F40) -> 224.3158862 | G41: 1048.785386
A43: Building Block Components Tariff V: Residential (YV) ($M NOMINAL) | B43: =B$3 -> 2023-24 | C43: =C$3 -> 2024-25 | D43: 2025-26 | E43: 2026-27 | F43: 2027-28 | G43: TOTAL
A44: =A20 -> Return on capital | B44: ='Cost allocators'!$D$18*B$28 -> 0.5398260111 | C44: ='Cost allocators'!$D$18*C$28 -> 0.5788607881 | D44: ='Cost allocators'!$D$18*D$28 -> 0.63044707 | E44: ='Cost allocators'!$D$18*E$28 -> 0.6700003751 | F44: ='Cost allocators'!$D$18*F$28 -> 0.7115119361 | G44: =SUM(B44:F44) -> 3.13064618
A45: =A21 -> Return of capital | B45: ='Cost allocators'!$D$19*B$29 -> 0.4066258964 | C45: ='Cost allocators'!$D$19*C$29 -> 0.3682008002 | D45: ='Cost allocators'!$D$19*D$29 -> 0.3718540654 | E45: ='Cost allocators'!$D$19*E$29 -> 0.3972175558 | F45: ='Cost allocators'!$D$19*F$29 -> 0.4064988537 | G45: 1.950397172
A46: =A22 -> O&M | B46: ='Cost allocators'!$D$20*B$30 -> 0.6225402198 | C46: ='Cost allocators'!$D$20*C$30 -> 0.6385829323 | D46: ='Cost allocators'!$D$20*D$30 -> 0.6567449224 | E46: ='Cost allocators'!$D$20*E$30 -> 0.6709492501 | F46: ='Cost allocators'!$D$20*F$30 -> 0.7013329962 | G46: 3.290150321
A47: =A23 -> Carry-over amounts | B47: ='Cost allocators'!$D$21*B$31 -> 0.02070303456 | C47: ='Cost allocators'!$D$21*C$31 -> -0.02004918911 | D47: ='Cost allocators'!$D$21*D$31 -> -0.01209618643 | E47: ='Cost allocators'!$D$21*E$31 -> -0.01336022058 | F47: ='Cost allocators'!$D$21*F$31 -> -0.02581786851 | G47: -0.05062043007
A48: =A24 -> Benchmark Tax liability | B48: ='Cost allocators'!$D$22*B$32 -> 0.06323508304 | C48: ='Cost allocators'!$D$22*C$32 -> 0.03411135586 | D48: ='Cost allocators'!$D$22*D$32 -> 0.01502479885 | E48: ='Cost allocators'!$D$22*E$32 -> 0.02049428265 | F48: ='Cost allocators'!$D$22*F$32 -> 0.01845651707 | G48: 0.1513220375
A49: Total Revenue | B49: =SUM(B44:B48) -> 1.652930245 | C49: =SUM(C44:C48) -> 1.599706687 | D49: =SUM(D44:D48) -> 1.66197467 | E49: =SUM(E44:E48) -> 1.745301243 | F49: =SUM(F44:F48) -> 1.811982435 | G49: 8.47189528
A51: Building Block Components Tariff V: Residential (SG) ($M NOMINAL) | B51: =B$3 -> 2023-24 | C51: =C$3 -> 2024-25 | D51: 2025-26 | E51: 2026-27 | F51: 2027-28 | G51: TOTAL
A52: =A28 -> Return on capital | B52: ='Cost allocators'!$E$18*B$28 -> 0.5453323715 | C52: ='Cost allocators'!$E$18*C$28 -> 0.5847653131 | D52: ='Cost allocators'!$E$18*D$28 -> 0.636877788 | E52: ='Cost allocators'!$E$18*E$28 -> 0.6768345467 | F52: ='Cost allocators'!$E$18*F$28 -> 0.718769536 | G52: =SUM(B52:F52) -> 3.162579555
A53: =A29 -> Return of capital | B53: ='Cost allocators'!$E$19*B$29 -> 0.4107735823 | C53: ='Cost allocators'!$E$19*C$29 -> 0.3719565406 | D53: ='Cost allocators'!$E$19*D$29 -> 0.3756470699 | E53: ='Cost allocators'!$E$19*E$29 -> 0.4012692744 | F53: ='Cost allocators'!$E$19*F$29 -> 0.4106452438 | G53: 1.970291711
A54: =A30 -> O&M | B54: ='Cost allocators'!$E$20*B$30 -> 0.6288902859 | C54: ='Cost allocators'!$E$20*C$30 -> 0.6450966381 | D54: ='Cost allocators'!$E$20*D$30 -> 0.663443885 | E54: ='Cost allocators'!$E$20*E$30 -> 0.6777931005 | F54: ='Cost allocators'!$E$20*F$30 -> 0.7084867684 | G54: 3.323710678
A55: =A31 -> Carry-over amounts | B55: ='Cost allocators'!$E$21*B$31 -> 0.0209142107 | C55: ='Cost allocators'!$E$21*C$31 -> -0.02025369586 | D55: ='Cost allocators'!$E$21*D$31 -> -0.01221957057 | E55: ='Cost allocators'!$E$21*E$31 -> -0.01349649818 | F55: ='Cost allocators'!$E$21*F$31 -> -0.02608121724 | G55: -0.05113677113
A56: =A32 -> Benchmark Tax liability | B56: ='Cost allocators'!$E$22*B$32 -> 0.06388009673 | C56: ='Cost allocators'!$E$22*C$32 -> 0.03445930023 | D56: ='Cost allocators'!$E$22*D$32 -> 0.01517805556 | E56: ='Cost allocators'!$E$22*E$32 -> 0.02070332946 | F56: ='Cost allocators'!$E$22*F$32 -> 0.01864477816 | G56: 0.1528655601
A57: Total Revenue | B57: =SUM(B52:B56) -> 1.669790547 | C57: =SUM(C52:C56) -> 1.616024096 | D57: =SUM(D52:D56) -> 1.678927228 | E57: =SUM(E52:E56) -> 1.763103753 | F57: =SUM(F52:F56) -> 1.830465109 | G57: 8.558310733
A59: Building Block Components Tariff V: Non res (Metro) ($M NOMINAL) | B59: =B$3 -> 2023-24 | C59: =C$3 -> 2024-25 | D59: 2025-26 | E59: 2026-27 | F59: 2027-28 | G59: TOTAL
A60: =A36 -> Return on capital | B60: ='Cost allocators'!$F$18*B$28 -> 3.427414234 | C60: ='Cost allocators'!$F$18*C$28 -> 3.675250292 | D60: ='Cost allocators'!$F$18*D$28 -> 4.002777223 | E60: ='Cost allocators'!$F$18*E$28 -> 4.253905472 | F60: ='Cost allocators'!$F$18*F$28 -> 4.517466901 | G60: =SUM(B60:F60) -> 19.87681412
A61: =A37 -> Return of capital | B61: ='Cost allocators'!$F$19*B$29 -> 2.581712175 | C61: ='Cost allocators'!$F$19*C$29 -> 2.337747047 | D61: ='Cost allocators'!$F$19*D$29 -> 2.360942026 | E61: ='Cost allocators'!$F$19*E$29 -> 2.521977594 | F61: ='Cost allocators'!$F$19*F$29 -> 2.580905567 | G61: 12.38328441
A62: =A38 -> O&M | B62: ='Cost allocators'!$F$20*B$30 -> 3.952575768 | C62: ='Cost allocators'!$F$20*C$30 -> 4.0544327 | D62: ='Cost allocators'!$F$20*D$30 -> 4.169745156 | E62: ='Cost allocators'!$F$20*E$30 -> 4.259929982 | F62: ='Cost allocators'!$F$20*F$30 -> 4.452839701 | G62: 20.88952331
A63: =A39 -> Carry-over amounts | B63: ='Cost allocators'!$F$21*B$31 -> 0.1314458249 | C63: ='Cost allocators'!$F$21*C$31 -> -0.1272944888 | D63: ='Cost allocators'!$F$21*D$31 -> -0.07680000724 | E63: ='Cost allocators'!$F$21*E$31 -> -0.08482549793 | F63: ='Cost allocators'!$F$21*F$31 -> -0.1639204636 | G63: -0.3213946327
A64: =A40 -> Benchmark Tax liability | B64: ='Cost allocators'!$F$22*B$32 -> 0.4014864405 | C64: ='Cost allocators'!$F$22*C$32 -> 0.2165767195 | D64: ='Cost allocators'!$F$22*D$32 -> 0.09539408696 | E64: ='Cost allocators'!$F$22*E$32 -> 0.1301204362 | F64: ='Cost allocators'!$F$22*F$32 -> 0.1171824403 | G64: 0.9607601235
A65: Total Revenue | B65: =SUM(B60:B64) -> 10.49463444 | C65: =SUM(C60:C64) -> 10.15671227 | D65: =SUM(D60:D64) -> 10.55205848 | E65: =SUM(E60:E64) -> 11.08110799 | F65: =SUM(F60:F64) -> 11.50447415 | G65: 53.78898733
A67: Building Block Components Tariff V: Non res (YV) ($M NOMINAL) | B67: =B$3 -> 2023-24 | C67: =C$3 -> 2024-25 | D67: 2025-26 | E67: 2026-27 | F67: 2027-28 | G67: TOTAL
A68: =A44 -> Return on capital | B68: ='Cost allocators'!$G$18*B$28 -> 0.01621601038 | C68: ='Cost allocators'!$G$18*C$28 -> 0.01738858884 | D68: ='Cost allocators'!$G$18*D$28 -> 0.01893820605 | E68: ='Cost allocators'!$G$18*E$28 -> 0.02012636074 | F68: ='Cost allocators'!$G$18*F$28 -> 0.02137334012 | G68: =SUM(B68:F68) -> 0.09404250614
A69: =A45 -> Return of capital | B69: ='Cost allocators'!$G$19*B$29 -> 0.0122147685 | C69: ='Cost allocators'!$G$19*C$29 -> 0.01106050445 | D69: ='Cost allocators'!$G$19*D$29 -> 0.01117024608 | E69: ='Cost allocators'!$G$19*E$29 -> 0.01193214828 | F69: ='Cost allocators'!$G$19*F$29 -> 0.01221095223 | G69: 0.05858861954
A70: =A46 -> O&M | B70: ='Cost allocators'!$G$20*B$30 -> 0.01870068959 | C70: ='Cost allocators'!$G$20*C$30 -> 0.01918260189 | D70: ='Cost allocators'!$G$20*D$30 -> 0.01972817586 | E70: ='Cost allocators'!$G$20*E$30 -> 0.02015486431 | F70: ='Cost allocators'!$G$20*F$30 -> 0.02106757161 | G70: 0.09883390326
A71: =A47 -> Carry-over amounts | B71: ='Cost allocators'!$G$21*B$31 -> 0.0006219052371 | C71: ='Cost allocators'!$G$21*C$31 -> -0.0006022641592 | D71: ='Cost allocators'!$G$21*D$31 -> -0.0003633613067 | E71: ='Cost allocators'!$G$21*E$31 -> -0.0004013320425 | F71: ='Cost allocators'!$G$21*F$31 -> -0.0007755514095 | G71: -0.001520603681
A72: =A48 -> Benchmark Tax liability | B72: ='Cost allocators'!$G$22*B$32 -> 0.001899539374 | C72: ='Cost allocators'!$G$22*C$32 -> 0.001024682193 | D72: ='Cost allocators'!$G$22*D$32 -> 0.0004513348545 | E72: ='Cost allocators'!$G$22*E$32 -> 0.0006156344699 | F72: ='Cost allocators'!$G$22*F$32 -> 0.0005544213621 | G72: 0.004545612253
A73: Total Revenue | B73: =SUM(B68:B72) -> 0.04965291308 | C73: =SUM(C68:C72) -> 0.04805411321 | D73: =SUM(D68:D72) -> 0.04992460154 | E73: =SUM(E68:E72) -> 0.05242767576 | F73: =SUM(F68:F72) -> 0.05443073392 | G73: 0.2544900375
A75: Building Block Components Tariff V: Non res (SG) ($M NOMINAL) | B75: =B$3 -> 2023-24 | C75: =C$3 -> 2024-25 | D75: 2025-26 | E75: 2026-27 | F75: 2027-28 | G75: TOTAL
A76: =A60 -> Return on capital | B76: ='Cost allocators'!$H$18*B$28 -> 0.04101479365 | C76: ='Cost allocators'!$H$18*C$28 -> 0.04398057021 | D76: ='Cost allocators'!$H$18*D$28 -> 0.04789998251 | E76: ='Cost allocators'!$H$18*E$28 -> 0.05090515568 | F76: ='Cost allocators'!$H$18*F$28 -> 0.05405911284 | G76: =SUM(B76:F76) -> 0.2378596149
A77: =A61 -> Return of capital | B77: ='Cost allocators'!$H$19*B$29 -> 0.03089454175 | C77: ='Cost allocators'!$H$19*C$29 -> 0.02797508741 | D77: ='Cost allocators'!$H$19*D$29 -> 0.02825265446 | E77: ='Cost allocators'!$H$19*E$29 -> 0.03017971671 | F77: ='Cost allocators'!$H$19*F$29 -> 0.03088488933 | G77: 0.1481868897
A78: =A62 -> O&M | B78: ='Cost allocators'!$H$20*B$30 -> 0.04729923741 | C78: ='Cost allocators'!$H$20*C$30 -> 0.04851812744 | D78: ='Cost allocators'!$H$20*D$30 -> 0.04989803552 | E78: ='Cost allocators'!$H$20*E$30 -> 0.05097724912 | F78: ='Cost allocators'!$H$20*F$30 -> 0.05328573936 | G78: 0.2499783888
A79: =A63 -> Carry-over amounts | B79: ='Cost allocators'!$H$21*B$31 -> 0.001572971056 | C79: ='Cost allocators'!$H$21*C$31 -> -0.001523293315 | D79: ='Cost allocators'!$H$21*D$31 -> -0.000919041655 | E79: ='Cost allocators'!$H$21*E$31 -> -0.001015080191 | F79: ='Cost allocators'!$H$21*F$31 -> -0.001961584896 | G79: -0.003846029001
A80: =A64 -> Benchmark Tax liability | B80: ='Cost allocators'!$H$22*B$32 -> 0.004804462604 | C80: ='Cost allocators'!$H$22*C$32 -> 0.002591705833 | D80: ='Cost allocators'!$H$22*D$32 -> 0.001141551189 | E80: ='Cost allocators'!$H$22*E$32 -> 0.001557110544 | F80: ='Cost allocators'!$H$22*F$32 -> 0.001402285595 | G80: 0.01149711577
A81: Total Revenue | B81: =SUM(B76:B80) -> 0.1255860065 | C81: =SUM(C76:C80) -> 0.1215421976 | D81: =SUM(D76:D80) -> 0.126273182 | E81: =SUM(E76:E80) -> 0.1326041519 | F81: =SUM(F76:F80) -> 0.1376704422 | G81: 0.6436759801
A83: Building Block Components Tariff V: Tariff L ($M NOMINAL) | B83: =B$3 -> 2023-24 | C83: =C$3 -> 2024-25 | D83: 2025-26 | E83: 2026-27 | F83: 2027-28 | G83: TOTAL
A84: =A52 -> Return on capital | B84: ='Cost allocators'!$I$18*B$28 -> 0.02764232959 | C84: ='Cost allocators'!$I$18*C$28 -> 0.0296411443 | D84: ='Cost allocators'!$I$18*D$28 -> 0.03228267134 | E84: ='Cost allocators'!$I$18*E$28 -> 0.0343080378 | F84: ='Cost allocators'!$I$18*F$28 -> 0.03643367871 | G84: =SUM(B84:F84) -> 0.1603078617
A85: =A53 -> Return of capital | B85: ='Cost allocators'!$I$19*B$29 -> 0.0208216848 | C85: ='Cost allocators'!$I$19*C$29 -> 0.0188540894 | D85: ='Cost allocators'!$I$19*D$29 -> 0.01904115849 | E85: ='Cost allocators'!$I$19*E$29 -> 0.02033992133 | F85: ='Cost allocators'!$I$19*F$29 -> 0.02081517945 | G85: 0.09987203347
A86: =A54 -> O&M | B86: ='Cost allocators'!$I$20*B$30 -> 0.03187779319 | C86: ='Cost allocators'!$I$20*C$30 -> 0.03269927629 | D86: ='Cost allocators'!$I$20*D$30 -> 0.03362927912 | E86: ='Cost allocators'!$I$20*E$30 -> 0.03435662589 | F86: ='Cost allocators'!$I$20*F$30 -> 0.03591245593 | G86: 0.1684754304
A87: =A55 -> Carry-over amounts | B87: ='Cost allocators'!$I$21*B$31 -> 0.001060119544 | C87: ='Cost allocators'!$I$21*C$31 -> -0.001026638735 | D87: ='Cost allocators'!$I$21*D$31 -> -0.0006193972972 | E87: ='Cost allocators'!$I$21*E$31 -> -0.000684123427 | F87: ='Cost allocators'!$I$21*F$31 -> -0.001322029721 | G87: -0.002592069636
A88: =A56 -> Benchmark Tax liability | B88: ='Cost allocators'!$I$22*B$32 -> 0.00323801553 | C88: ='Cost allocators'!$I$22*C$32 -> 0.001746706016 | D88: ='Cost allocators'!$I$22*D$32 -> 0.0007693598184 | E88: ='Cost allocators'!$I$22*E$32 -> 0.001049430194 | F88: ='Cost allocators'!$I$22*F$32 -> 0.0009450843742 | G88: 0.007748595933
A89: Total Revenue | B89: =SUM(B84:B88) -> 0.08463994265 | C89: =SUM(C84:C88) -> 0.08191457728 | D89: =SUM(D84:D88) -> 0.08510307147 | E89: =SUM(E84:E88) -> 0.08936989179 | F89: =SUM(F84:F88) -> 0.09278436874 | G89: 0.4338118519
A91: Building Block Components D ($M NOMINAL) | B91: =B$3 -> 2023-24 | C91: =C$3 -> 2024-25 | D91: 2025-26 | E91: 2026-27 | F91: 2027-28 | G91: TOTAL
A92: =A60 -> Return on capital | B92: =B127 -> 0.6428848015 | C92: =B137 -> 0.6802656254 | D92: =B147 -> 0.7408887925 | E92: =B157 -> 0.7873710458 | F92: =B167 -> 0.8361546025 | G92: =SUM(B92:F92) -> 3.687564868
A93: =A61 -> Return of capital | B93: =B128 -> 0.477858624 | C93: =B138 -> 0.4327022191 | D93: =B148 -> 0.4369954633 | E93: =B158 -> 0.4668021302 | F93: =B168 -> 0.477709326 | G93: 2.292067763
A94: =A62 -> O&M | B94: 0.02518875529 | C94: 0.02583786349 | D94: 0.02657272031 | E94: 0.02714744516 | F94: 0.0283768095 | G94: 0.1331235937
A95: =A63 -> Carry-over amounts | B95: 0.0008376706515 | C95: -0.0008112152472 | D95: -0.00048942682 | E95: -0.0005405712212 | F95: -0.001044623225 | G95: -0.002048165862
A96: =A64 -> Benchmark Tax liability | B96: 0.07431260537 | C96: 0.04008698343 | D96: 0.01765684323 | E96: 0.02408447124 | F96: 0.02168972987 | G96: 0.1778306331
A97: Total Revenue | B97: =SUM(B92:B96) -> 1.221082457 | C97: =SUM(C92:C96) -> 1.178081476 | D97: =SUM(D92:D96) -> 1.221624392 | E97: =SUM(E92:E96) -> 1.304864521 | F97: =SUM(F92:F96) -> 1.362885845 | G97: 6.288538691
B99: =B$3 -> 2023-24 | C99: =C$3 -> 2024-25 | D99: 2025-26 | E99: 2026-27 | F99: 2027-28 | G99: TOTAL
A100: =A92 -> Return on capital
A101: =A93 -> Return of capital
A102: =A94 -> O&M
A103: =A95 -> Carry-over amounts
A104: =A96 -> Benchmark Tax liability
A105: Total Revenue | B105: =SUM(B100:B104) -> 0 | C105: =SUM(C100:C104) -> 0 | D105: =SUM(D100:D104) -> 0 | E105: =SUM(E100:E104) -> 0 | F105: =SUM(F100:F104) -> 0 | G105: =SUM(B105:F105) -> 0
B107: =B$3 -> 2023-24 | C107: =C$3 -> 2024-25 | D107: 2025-26 | E107: 2026-27 | F107: 2027-28 | G107: TOTAL
A108: =A100 -> Return on capital
A109: =A101 -> Return of capital
A110: =A102 -> O&M
A111: =A103 -> Carry-over amounts
A112: =A104 -> Benchmark Tax liability
A113: Total Revenue | B113: =SUM(B108:B112) -> 0 | C113: =SUM(C108:C112) -> 0 | D113: =SUM(D108:D112) -> 0 | E113: =SUM(E108:E112) -> 0 | F113: =SUM(F108:F112) -> 0 | G113: =SUM(B113:F113) -> 0
B115: =B$3 -> 2023-24 | C115: =C$3 -> 2024-25 | D115: 2025-26 | E115: 2026-27 | F115: 2027-28 | G115: TOTAL
A116: =A28 -> Return on capital
A117: =A29 -> Return of capital
A118: =A30 -> O&M
A119: =A31 -> Carry-over amounts
A120: =A32 -> Benchmark Tax liability
A121: Total Revenue | B121: =SUM(B116:B120) -> 0 | C121: =SUM(C116:C120) -> 0 | D121: =SUM(D116:D120) -> 0 | E121: =SUM(E116:E120) -> 0 | F121: =SUM(F116:F120) -> 0 | G121: =SUM(B121:F121) -> 0
A123: Checks | B123: =B17-SUM(B41,B49,B57,B65,B81,B89,B97,B105,B121,B73,B113) -> -1.154202833 | C123: =C17-SUM(C41,C49,C57,C65,C81,C89,C97,C105,C121,C73,C113) -> -1.113355344 | D123: -1.15437882 | E123: -1.234247452 | F123: -1.289570771 | G123: -5.945755221
A125: Building Blocks by Zone for Tariff D
A126: 2023-24 | B126: Total | C126: Tariff D (Metro) | D126: Tariff D (SG)
A127: =A28 -> Return on capital | B127: =SUM(C127:G127) -> 0.6428848015 | C127: =$B12*HLOOKUP(C$126,'Cost allocators'!$J$24:$K$28,(MATCH('Cost allocators'!$B$11,'Cost allocators'!$A$25:$A$28)+1),FALSE) -> 0.6067368871 | D127: =$B12*HLOOKUP(D$126,'Cost allocators'!$J$24:$K$28,(MATCH('Cost allocators'!$B$11,'Cost allocators'!$A$25:$A$28)+1),FALSE) -> 0.02765584867 | F127: =HLOOKUP(C$126,'Cost allocators'!$J$24:$K$28,(MATCH('Cost allocators'!$B$11,'Cost allocators'!$A$25:$A$28)+1),FALSE) -> 0.008492065799
A128: =A29 -> Return of capital | B128: =SUM(C128:G128) -> 0.477858624 | C128: =$B13*HLOOKUP(C$126,'Cost allocators'!$J$24:$K$28,(MATCH('Cost allocators'!$B$12,'Cost allocators'!$A$25:$A$28)+1),FALSE) -> 0.4570267559 | D128: =$B13*HLOOKUP(D$126,'Cost allocators'!$J$24:$K$28,(MATCH('Cost allocators'!$B$12,'Cost allocators'!$A$25:$A$28)+1),FALSE) -> 0.02083186809
A129: =A30 -> O&M | B129: =SUM(C129:G129) -> 0.02518875529 | C129: =$B14*HLOOKUP(C$126,'Cost allocators'!$J$24:$K$28,(MATCH('Cost allocators'!$B$13,'Cost allocators'!$A$25:$A$28)+1),FALSE) -> 0.02484785278 | D129: =$B14*HLOOKUP(D$126,'Cost allocators'!$J$24:$K$28,(MATCH('Cost allocators'!$B$13,'Cost allocators'!$A$25:$A$28)+1),FALSE) -> 0.0003409025098
A130: =A31 -> Carry-over amounts | B130: =SUM(C130:G130) -> 0.0008376706515 | C130: =$B15*HLOOKUP(C$126,'Cost allocators'!$J$24:$K$28,(MATCH('Cost allocators'!$B$14,'Cost allocators'!$A$25:$A$28)+1),FALSE) -> 0.0008263336869 | D130: =$B15*HLOOKUP(D$126,'Cost allocators'!$J$24:$K$28,(MATCH('Cost allocators'!$B$14,'Cost allocators'!$A$25:$A$28)+1),FALSE) -> 1.133696462e-05
A131: =A32 -> Benchmark Tax liability | B131: 0.07431260537 | C131: =$B16*HLOOKUP(C$126,'Cost allocators'!$J$24:$K$28,(MATCH('Cost allocators'!$B$15,'Cost allocators'!$A$25:$A$28)+1),FALSE) -> 0.07107300622 | D131: =$B16*HLOOKUP(D$126,'Cost allocators'!$J$24:$K$28,(MATCH('Cost allocators'!$B$15,'Cost allocators'!$A$25:$A$28)+1),FALSE) -> 0.003239599151
A132: Total Revenue | B132: =SUM(B127:B131) -> 1.221082457 | C132: 1.160510836 | D132: 0.05207955539
A134: Checks | B134: =B132-B$121 -> 1.221082457
A136: 2024-25 | B136: Total | C136: =C126 -> Tariff D (Metro) | D136: =D126 -> Tariff D (SG)
A137: =A127 -> Return on capital | B137: =SUM(C137:G137) -> 0.6802656254 | C137: =$C12*HLOOKUP(C$126,'Cost allocators'!$J$24:$K$28,(MATCH('Cost allocators'!$B$11,'Cost allocators'!$A$25:$A$28)+1),FALSE) -> 0.6506099844 | D137: =$C12*HLOOKUP(D$126,'Cost allocators'!$J$24:$K$28,(MATCH('Cost allocators'!$B$11,'Cost allocators'!$A$25:$A$28)+1),FALSE) -> 0.02965564095
A138: =A128 -> Return of capital | B138: =SUM(C138:G138) -> 0.4327022191 | C138: =$C13*HLOOKUP(C$126,'Cost allocators'!$J$24:$K$28,(MATCH('Cost allocators'!$B$12,'Cost allocators'!$A$25:$A$28)+1),FALSE) -> 0.4138389087 | D138: =$C13*HLOOKUP(D$126,'Cost allocators'!$J$24:$K$28,(MATCH('Cost allocators'!$B$12,'Cost allocators'!$A$25:$A$28)+1),FALSE) -> 0.0188633104
A139: =A129 -> O&M | B139: =SUM(C139:G139) -> 0.02583786349 | C139: =$C14*HLOOKUP(C$126,'Cost allocators'!$J$24:$K$28,(MATCH('Cost allocators'!$B$13,'Cost allocators'!$A$25:$A$28)+1),FALSE) -> 0.02548817601 | D139: =$C14*HLOOKUP(D$126,'Cost allocators'!$J$24:$K$28,(MATCH('Cost allocators'!$B$13,'Cost allocators'!$A$25:$A$28)+1),FALSE) -> 0.000349687486
A140: =A130 -> Carry-over amounts | B140: =SUM(C140:G140) -> -0.0008112152472 | C140: =$C15*HLOOKUP(C$126,'Cost allocators'!$J$24:$K$28,(MATCH('Cost allocators'!$B$14,'Cost allocators'!$A$25:$A$28)+1),FALSE) -> -0.0008002363278 | D140: =$C15*HLOOKUP(D$126,'Cost allocators'!$J$24:$K$28,(MATCH('Cost allocators'!$B$14,'Cost allocators'!$A$25:$A$28)+1),FALSE) -> -1.097891938e-05
A141: =A131 -> Benchmark Tax liability | B141: 0.04008698343 | C141: =$C16*HLOOKUP(C$126,'Cost allocators'!$J$24:$K$28,(MATCH('Cost allocators'!$B$15,'Cost allocators'!$A$25:$A$28)+1),FALSE) -> 0.03833942315 | D141: =$C16*HLOOKUP(D$126,'Cost allocators'!$J$24:$K$28,(MATCH('Cost allocators'!$B$15,'Cost allocators'!$A$25:$A$28)+1),FALSE) -> 0.001747560281
A142: Total Revenue | B142: =SUM(B137:B141) -> 1.178081476 | C142: =SUM(C137:C141) -> 1.127476256 | D142: =SUM(D137:D141) -> 0.0506052202
A144: Checks | B144: =B142-C$121 -> 1.178081476
A146: 2025-26 | B146: Total | C146: =C136 -> Tariff D (Metro) | D146: =D136 -> Tariff D (SG)
A147: =A137 -> Return on capital | B147: =SUM(C147:G147) -> 0.7408887925 | C147: =$D12*HLOOKUP(C$126,'Cost allocators'!$J$24:$K$28,(MATCH('Cost allocators'!$B$11,'Cost allocators'!$A$25:$A$28)+1),FALSE) -> 0.7085903326 | D147: =$D12*HLOOKUP(D$126,'Cost allocators'!$J$24:$K$28,(MATCH('Cost allocators'!$B$11,'Cost allocators'!$A$25:$A$28)+1),FALSE) -> 0.03229845988
A148: =A138 -> Return of capital | B148: =SUM(C148:G148) -> 0.4369954633 | C148: =$D13*HLOOKUP(C$126,'Cost allocators'!$J$24:$K$28,(MATCH('Cost allocators'!$B$12,'Cost allocators'!$A$25:$A$28)+1),FALSE) -> 0.4179449923 | D148: =$D13*HLOOKUP(D$126,'Cost allocators'!$J$24:$K$28,(MATCH('Cost allocators'!$B$12,'Cost allocators'!$A$25:$A$28)+1),FALSE) -> 0.01905047098
A149: =A139 -> O&M | B149: =SUM(C149:G149) -> 0.02657272031 | C149: =$D14*HLOOKUP(C$126,'Cost allocators'!$J$24:$K$28,(MATCH('Cost allocators'!$B$13,'Cost allocators'!$A$25:$A$28)+1),FALSE) -> 0.02621308733 | D149: =$D14*HLOOKUP(D$126,'Cost allocators'!$J$24:$K$28,(MATCH('Cost allocators'!$B$13,'Cost allocators'!$A$25:$A$28)+1),FALSE) -> 0.0003596329767
A150: =A140 -> Carry-over amounts | B150: =SUM(C150:G150) -> -0.00048942682 | C150: =$D15*HLOOKUP(C$126,'Cost allocators'!$J$24:$K$28,(MATCH('Cost allocators'!$B$14,'Cost allocators'!$A$25:$A$28)+1),FALSE) -> -0.0004828029583 | D150: =$D15*HLOOKUP(D$126,'Cost allocators'!$J$24:$K$28,(MATCH('Cost allocators'!$B$14,'Cost allocators'!$A$25:$A$28)+1),FALSE) -> -6.623861694e-06
A151: =A141 -> Benchmark Tax liability | B151: 0.01765684323 | C151: =$D16*HLOOKUP(C$126,'Cost allocators'!$J$24:$K$28,(MATCH('Cost allocators'!$B$15,'Cost allocators'!$A$25:$A$28)+1),FALSE) -> 0.01688710714 | D151: =$D16*HLOOKUP(D$126,'Cost allocators'!$J$24:$K$28,(MATCH('Cost allocators'!$B$15,'Cost allocators'!$A$25:$A$28)+1),FALSE) -> 0.0007697360905
A152: Total Revenue | B152: =SUM(B147:B151) -> 1.221624392 | C152: =SUM(C147:C151) -> 1.169152716 | D152: =SUM(D147:D151) -> 0.05247167607
A154: Checks | B154: =B152-D$121 -> 1.221624392
A156: 2026-27 | B156: Total | C156: =C146 -> Tariff D (Metro) | D156: =D146 -> Tariff D (SG)
A157: =A147 -> Return on capital | B157: =SUM(C157:G157) -> 0.7873710458 | C157: =$E12*HLOOKUP(C$126,'Cost allocators'!$J$24:$K$28,(MATCH('Cost allocators'!$B$11,'Cost allocators'!$A$25:$A$28)+1),FALSE) -> 0.7530462289 | D157: =$E12*HLOOKUP(D$126,'Cost allocators'!$J$24:$K$28,(MATCH('Cost allocators'!$B$11,'Cost allocators'!$A$25:$A$28)+1),FALSE) -> 0.03432481689
A158: =A148 -> Return of capital | B158: =SUM(C158:G158) -> 0.4668021302 | C158: =$E13*HLOOKUP(C$126,'Cost allocators'!$J$24:$K$28,(MATCH('Cost allocators'!$B$12,'Cost allocators'!$A$25:$A$28)+1),FALSE) -> 0.4464522612 | D158: =$E13*HLOOKUP(D$126,'Cost allocators'!$J$24:$K$28,(MATCH('Cost allocators'!$B$12,'Cost allocators'!$A$25:$A$28)+1),FALSE) -> 0.02034986901
A159: =A149 -> O&M | B159: 0.02714744516 | C159: =$E14*HLOOKUP(C$126,'Cost allocators'!$J$24:$K$28,(MATCH('Cost allocators'!$B$13,'Cost allocators'!$A$25:$A$28)+1),FALSE) -> 0.0267800339 | D159: =$E14*HLOOKUP(D$126,'Cost allocators'!$J$24:$K$28,(MATCH('Cost allocators'!$B$13,'Cost allocators'!$A$25:$A$28)+1),FALSE) -> 0.0003674112548
A160: =A150 -> Carry-over amounts | B160: -0.0005405712212 | C160: =$E15*HLOOKUP(C$126,'Cost allocators'!$J$24:$K$28,(MATCH('Cost allocators'!$B$14,'Cost allocators'!$A$25:$A$28)+1),FALSE) -> -0.0005332551755 | D160: =$E15*HLOOKUP(D$126,'Cost allocators'!$J$24:$K$28,(MATCH('Cost allocators'!$B$14,'Cost allocators'!$A$25:$A$28)+1),FALSE) -> -7.316045748e-06
A161: =A151 -> Benchmark Tax liability | B161: 0.02408447124 | C161: =$E16*HLOOKUP(C$126,'Cost allocators'!$J$24:$K$28,(MATCH('Cost allocators'!$B$15,'Cost allocators'!$A$25:$A$28)+1),FALSE) -> 0.0230345278 | D161: =$E16*HLOOKUP(D$126,'Cost allocators'!$J$24:$K$28,(MATCH('Cost allocators'!$B$15,'Cost allocators'!$A$25:$A$28)+1),FALSE) -> 0.001049943441
A162: Total Revenue | B162: =SUM(B157:B161) -> 1.304864521 | C162: =SUM(C157:C161) -> 1.248779797 | D162: =SUM(D157:D161) -> 0.05608472455
A164: Checks | B164: =B162-E$121 -> 1.304864521
A166: 2027-28 | B166: Total | C166: =C156 -> Tariff D (Metro) | D166: =D156 -> Tariff D (SG)
A167: =A157 -> Return on capital | B167: =SUM(C167:G167) -> 0.8361546025 | C167: =$F12*HLOOKUP(C$126,'Cost allocators'!$J$24:$K$28,(MATCH('Cost allocators'!$B$11,'Cost allocators'!$A$25:$A$28)+1),FALSE) -> 0.7997031051 | D167: =$F12*HLOOKUP(D$126,'Cost allocators'!$J$24:$K$28,(MATCH('Cost allocators'!$B$11,'Cost allocators'!$A$25:$A$28)+1),FALSE) -> 0.03645149739
A168: =A158 -> Return of capital | B168: =SUM(C168:G168) -> 0.477709326 | C168: =$F13*HLOOKUP(C$126,'Cost allocators'!$J$24:$K$28,(MATCH('Cost allocators'!$B$12,'Cost allocators'!$A$25:$A$28)+1),FALSE) -> 0.4568839664 | D168: =$F13*HLOOKUP(D$126,'Cost allocators'!$J$24:$K$28,(MATCH('Cost allocators'!$B$12,'Cost allocators'!$A$25:$A$28)+1),FALSE) -> 0.02082535956
A169: =A159 -> O&M | B169: 0.0283768095 | C169: =$F14*HLOOKUP(C$126,'Cost allocators'!$J$24:$K$28,(MATCH('Cost allocators'!$B$13,'Cost allocators'!$A$25:$A$28)+1),FALSE) -> 0.02799276013 | D169: =$F14*HLOOKUP(D$126,'Cost allocators'!$J$24:$K$28,(MATCH('Cost allocators'!$B$13,'Cost allocators'!$A$25:$A$28)+1),FALSE) -> 0.0003840493691
A170: =A160 -> Carry-over amounts | B170: -0.001044623225 | C170: =$F15*HLOOKUP(C$126,'Cost allocators'!$J$24:$K$28,(MATCH('Cost allocators'!$B$14,'Cost allocators'!$A$25:$A$28)+1),FALSE) -> -0.001030485382 | D170: =$F15*HLOOKUP(D$126,'Cost allocators'!$J$24:$K$28,(MATCH('Cost allocators'!$B$14,'Cost allocators'!$A$25:$A$28)+1),FALSE) -> -1.413784346e-05
A171: =A161 -> Benchmark Tax liability | B171: 0.02168972987 | C171: =$F16*HLOOKUP(C$126,'Cost allocators'!$J$24:$K$28,(MATCH('Cost allocators'!$B$15,'Cost allocators'!$A$25:$A$28)+1),FALSE) -> 0.02074418328 | D171: =$F16*HLOOKUP(D$126,'Cost allocators'!$J$24:$K$28,(MATCH('Cost allocators'!$B$15,'Cost allocators'!$A$25:$A$28)+1),FALSE) -> 0.0009455465882
A172: Total Revenue | B172: =SUM(B167:B171) -> 1.362885845 | C172: =SUM(C167:C171) -> 1.30429353 | D172: =SUM(D167:D171) -> 0.05859231507
A174: Checks | B174: =B172-F$121 -> 1.362885845
C175: ='Cost allocators'!B32 -> 0.1094626719 | D175: ='Cost allocators'!B33 -> 0.01050788277 | E175: ='Cost allocators'!B34 -> 0.1138383929 | F175: ='Cost allocators'!B35 -> 0.6554114107 | G175: ='Cost allocators'!B36 -> 0.1107796417 | H175: =SUM(C175:G175) -> 1
A177: Building Blocks by Ancillary Reference Service
A178: 2023-24 | B178: Total | C178: Turn On / Reconnections | D178: Meter Investigations | E178: Disconnections | F178: Special meter reading | G178: Meter Removals
A179: =A157 -> Return on capital | B179: =SUM(C179:G179) -> 0 | C179: =$B20*C$175 -> 0 | D179: =$B20*D$175 -> 0 | E179: 0 | F179: 0 | G179: 0
A180: =A158 -> Return of capital | B180: 0 | C180: =$B21*C$175 -> 0 | D180: 0 | E180: 0 | F180: 0 | G180: 0
A181: O&M | B181: =SUM(C181:G181) -> 2.776809253 | C181: 0.3039569603 | D181: 0.0291783861 | E181: 0.3161075028 | F181: 1.81995247 | G181: 0.3076139342
A182: Carry-over amounts | B182: =SUM(C182:G182) -> 0 | C182: 0 | D182: 0 | E182: 0 | F182: 0 | G182: 0
A183: Benchmark Tax liability | B183: 0 | C183: 0 | D183: 0 | E183: 0 | F183: 0 | G183: 0
A184: Total Revenue | B184: 2.776809253 | C184: =SUM(C179:C183) -> 0.3039569603 | D184: =SUM(D179:D183) -> 0.0291783861 | E184: =SUM(E179:E183) -> 0.3161075028 | F184: =SUM(F179:F183) -> 1.81995247 | G184: 0.3076139342
A186: Checks | B186: =B184-B$25 -> 0
A188: 2024-25 | B188: Total | C188: =C178 -> Turn On / Reconnections | D188: =D178 -> Meter Investigations | E188: =E178 -> Disconnections | F188: Special meter reading | G188: Meter Removals
A189: =A179 -> Return on capital | B189: =SUM(C189:G189) -> 0 | C189: =$C20*C$175 -> 0 | D189: =$C20*D$175 -> 0 | E189: 0 | F189: 0 | G189: 0
A190: =A180 -> Return of capital | B190: 0 | C190: =$C21*C$175 -> 0 | D190: 0 | E190: 0 | F190: 0 | G190: 0
A191: =A181 -> O&M | B191: =SUM(C191:G191) -> 2.687397333 | C191: =$C22*C$175 -> 0.2941696926 | D191: 0.02823885613 | E191: 0.3059289935 | F191: 1.761350877 | G191: 0.2977089137
A192: =A182 -> Carry-over amounts | B192: =SUM(C192:G192) -> 0 | C192: =$C23*C$175 -> 0 | D192: 0 | E192: 0 | F192: 0 | G192: 0
A193: =A183 -> Benchmark Tax liability | B193: 0 | C193: 0 | D193: 0 | E193: 0 | F193: 0 | G193: 0
A194: Total Revenue | B194: 2.687397333 | C194: =SUM(C189:C193) -> 0.2941696926 | D194: =SUM(D189:D193) -> 0.02823885613 | E194: =SUM(E189:E193) -> 0.3059289935 | F194: =SUM(F189:F193) -> 1.761350877 | G194: =SUM(G189:G193) -> 0.2977089137
A196: Checks | B196: =B194-C$25 -> 0
A198: 2025-26 | B198: Total | C198: =C188 -> Turn On / Reconnections | D198: =D188 -> Meter Investigations | E198: =E188 -> Disconnections | F198: Special meter reading | G198: Meter Removals
A199: =A189 -> Return on capital | B199: =SUM(C199:G199) -> 0 | C199: =$D20*C$175 -> 0 | D199: =$D20*D$175 -> 0 | E199: 0 | F199: 0 | G199: 0
A200: =A190 -> Return of capital | B200: 0 | C200: =$D21*C$175 -> 0 | D200: 0 | E200: 0 | F200: 0 | G200: 0
A201: =A191 -> O&M | B201: =SUM(C201:G201) -> 2.792003267 | C201: 0.3056201375 | D201: 0.02933804301 | E201: 0.3178371648 | F201: 1.8299108 | G201: 0.3092971215
A202: =A192 -> Carry-over amounts | B202: =SUM(C202:G202) -> 0 | C202: 0 | D202: 0 | E202: 0 | F202: 0 | G202: 0
A203: =A193 -> Benchmark Tax liability | B203: 0 | C203: 0 | D203: 0 | E203: 0 | F203: 0 | G203: 0
A204: Total Revenue | B204: 2.792003267 | C204: =SUM(C199:C203) -> 0.3056201375 | D204: =SUM(D199:D203) -> 0.02933804301 | E204: =SUM(E199:E203) -> 0.3178371648 | F204: =SUM(F199:F203) -> 1.8299108 | G204: =SUM(G199:G203) -> 0.3092971215
A206: Checks | B206: =B204-D$25 -> 0
A208: 2026-27 | B208: Total | C208: =C198 -> Turn On / Reconnections | D208: =D198 -> Meter Investigations | E208: =E198 -> Disconnections | F208: Special meter reading | G208: Meter Removals
A209: =A199 -> Return on capital | B209: =SUM(C209:G209) -> 0 | C209: =$E20*C$175 -> 0 | D209: =$E20*D$175 -> 0 | E209: 0 | F209: 0 | G209: 0
A210: =A200 -> Return of capital | B210: 0 | C210: =$E21*C$175 -> 0 | D210: 0 | E210: 0 | F210: 0 | G210: 0
A211: =A201 -> O&M | B211: =SUM(C211:G211) -> 2.931986184 | C211: 0.3209430418 | D211: 0.0308089671 | E211: 0.3337725952 | F211: 1.921657201 | G211: 0.324804379
A212: =A202 -> Carry-over amounts | B212: =SUM(C212:G212) -> 0 | C212: 0 | D212: 0 | E212: 0 | F212: 0 | G212: 0
A213: =A203 -> Benchmark Tax liability | B213: 0 | C213: 0 | D213: 0 | E213: 0 | F213: 0 | G213: 0
A214: Total Revenue | B214: 2.931986184 | C214: =SUM(C209:C213) -> 0.3209430418 | D214: =SUM(D209:D213) -> 0.0308089671 | E214: =SUM(E209:E213) -> 0.3337725952 | F214: =SUM(F209:F213) -> 1.921657201 | G214: =SUM(G209:G213) -> 0.324804379
A216: Checks | B216: =B214-E$25 -> 0
A218: 2027-28 | B218: Total | C218: =C208 -> Turn On / Reconnections | D218: =D208 -> Meter Investigations | E218: =E208 -> Disconnections | F218: Special meter reading | G218: Meter Removals
A219: =A209 -> Return on capital | B219: =SUM(C219:G219) -> 0 | C219: =$F20*C$175 -> 0 | D219: =$F20*D$175 -> 0 | E219: 0 | F219: 0 | G219: 0
A220: =A210 -> Return of capital | B220: 0 | C220: =$F21*C$175 -> 0 | D220: 0 | E220: 0 | F220: 0 | G220: 0
A221: =A211 -> O&M | B221: =SUM(C221:G221) -> 3.044006005 | C221: 0.3332050306 | D221: 0.03198605824 | E221: 0.3465247516 | F221: 1.99507627 | G221: 0.3372138946
A222: =A212 -> Carry-over amounts | B222: =SUM(C222:G222) -> 0 | C222: 0 | D222: 0 | E222: 0 | F222: 0 | G222: 0
A223: =A213 -> Benchmark Tax liability | B223: 0 | C223: 0 | D223: 0 | E223: 0 | F223: 0 | G223: 0
A224: Total Revenue | B224: 3.044006005 | C224: =SUM(C219:C223) -> 0.3332050306 | D224: =SUM(D219:D223) -> 0.03198605824 | E224: =SUM(E219:E223) -> 0.3465247516 | F224: =SUM(F219:F223) -> 1.99507627 | G224: =SUM(G219:G223) -> 0.3372138946
A226: Checks | B226: =B224-F$25 -> 0

Sheet DORC Calculations
A1: DORC Inputs and Calculations
A2: Tariff D DORC Calculations | K2: 358992314
A4: Tariff D Summary - 1 July 1999 DORC | B4: Total | C4: Mains | D4: Inlets | E4: Meters | F4: Telemetry | G4: Stations | H4: Regulators | J4: Total 2017 RAB | K4: Total 1 July 1999 RAB | N4: Forecast revenues (AA Period)
A5: ='General Inputs'!D25 -> Tariff D - MHQ (GJ/h) Tariff D Zone - (Metro) | B5: =SUM(C5:H5) -> 6285827.105 | C5: =O5*$K$5 -> 6285827.105 | D5: =R5*$K$5 -> 0 | J5: =SUM('PTRM Inputs'!B16:B22)*1000000 -> 1222762225 | K5: 740200000 | M5: Revenue D Metro | N5: 9510240.181 | O5: =N5/$N$7 -> 0.008492065799
A6: ='General Inputs'!D26 -> Tariff D - MHQ (GJ/h) Tariff D Zone - (SG) | B6: =SUM(C6:H6) -> 286516.0943 | C6: =O6*$K$5 -> 286516.0943 | D6: 0 | M6: Revenue D (SG) | N6: 433488.9947 | O6: =N6/$N$7 -> 0.0003870792952
A7: Total | B7: =SUM(B5:B6) -> 6572343.199 | M7: Total Revenue | N7: 1119897138
A10: Tariff D Summary - Closing 2017 RAB | B10: Total | C10: Mains | D10: Inlets | E10: Meters | F10: Telemetry | G10: Stations | H10: Regulators
A11: ='General Inputs'!D25 -> Tariff D - MHQ (GJ/h) Tariff D Zone - (Metro) | B11: =SUM(C11:H11) -> 10383777.27 | C11: =C5/$K$5*$J$5 -> 10383777.27 | D11: =D5/$K$5*$J$5 -> 0 | E11: 0 | F11: 0 | G11: 0 | H11: 0
A12: ='General Inputs'!D26 -> Tariff D - MHQ (GJ/h) Tariff D Zone - (SG) | B12: =SUM(C12:H12) -> 473305.9404 | C12: =C6/$K$5*$J$5 -> 473305.9404 | D12: =D6/$K$5*$J$5 -> 0
A13: Total | B13: =SUM(B11:B12) -> 10857083.21
A16: Dedicated Connection Asset Cost Calculations
A18: Tariff D - Summary by Region | B18: Meters and RDL by Region as a % of Total Tariff D RAB | C18: Meter Cost: Pro-Rata of 2011-12 Tariff D Revenue Requirement ($M) | D18: Meter Cost: Pro-Rata of 2011-12 Tariff V Residential (Metro) Revenue Requirement ($M) | F18: Meter Cost: Pro-Rata of 2011-12 Tariff V Residential (YV) Revenue Requirement ($M) | H18: Meter Cost: Pro-Rata of 2011-12 Tariff V Residential (SG) Revenue Requirement ($M) | J18: Meter Cost: Pro-Rata of 2011-12 Tariff V Non res (Metro) Revenue Requirement ($M) | L18: Meter Cost: Pro-Rata of 2011-12 Tariff V Non res (YV) Revenue Requirement ($M) | M18: Meter Cost: Pro-Rata of 2011-12 Tariff V Non res (SG) Revenue Requirement ($M) | N18: Meter Cost: Pro-Rata of 2011-12 Tariff V Tariff L Revenue Requirement ($M)
A19: =A5 -> Tariff D - MHQ (GJ/h) Tariff D Zone - (Metro) | C19: =B19*'FDC Calculations'!$B$121 -> 0 | D19: =B21*'FDC Calculations'!B41 -> 5.210555284 | F19: =B21*'FDC Calculations'!B49 -> 0.04208990638 | H19: =B21*'FDC Calculations'!F57 -> 0.04661062094 | J19: =B21*'FDC Calculations'!F65 -> 0.2929477764 | L19: =B21*'FDC Calculations'!F73 -> 0.001386014021 | M19: =C21*'FDC Calculations'!G81 -> 0 | N19: =B21*'FDC Calculations'!F89 -> 0.002362643799
A20: =A6 -> Tariff D - MHQ (GJ/h) Tariff D Zone - (SG) | C20: =B20*'FDC Calculations'!$B$121 -> 0
A21: All dedicated assets as a % of RAB (for tariffs V and D combined) | B21: =('PTRM Inputs'!B23+'PTRM Inputs'!B24)/SUM('PTRM Inputs'!B16:B29) -> 0.02546381283

Sheet StandAlone & Avoidable Tests
A1: Standalone and Avoidable Cost Tests
A3: Standalone and Avoidable Cost Tests
A4: Tariff | B4: FDC Cost | C4: Avoidable Cost | D4: Expected Revenue 2023/24 ($M) | E4: Standalone Cost | F4: All Tests Met? | G4: Avoidable Test Met? | H4: Standalone Test Met? | J4: Tariff | K4: =B4 -> FDC Cost | L4: =C4 -> Avoidable Cost | M4: Expected Revenue 2023/24 ($M) | N4: Standalone Cost | O4: =F4 -> All Tests Met? | P4: =G4 -> Avoidable Test Met? | Q4: =H4 -> Standalone Test Met?
A5: ='General Inputs'!B18 -> Residential (Metro) | B5: ='FDC Calculations'!B41 -> 204.6258869 | C5: ='DORC Calculations'!D19 -> 5.210555284 | D5: 200.9905919 | E5: =B5+'FDC Calculations'!$B$132 -> 205.8469693 | F5: =IF(AND(D5>=C5,D5<=E5),"Test Met","Test Failed") -> Test Met | G5: =IF(D5>=C5,"Test Met","Test Failed") -> Test Met | H5: =IF(D5<=E5,"Test Met","Test Failed") -> Test Met | J5: Tariff V: Metro | K5: =B5+B8 -> 215.1205213 | L5: =C5+C8 -> 5.50350306 | M5: 211.0624615 | N5: 217.5626862 | O5: =IF(AND(M5>=L5,M5<=N5),"Test Met","Test Failed") -> Test Met | P5: =IF(M5>=L5,"Test Met","Test Failed") -> Test Met | Q5: =IF(M5<=N5,"Test Met","Test Failed") -> Test Met
A6: ='General Inputs'!B19 -> Residential (YV) | B6: ='FDC Calculations'!B49 -> 1.652930245 | C6: ='DORC Calculations'!F19 -> 0.04208990638 | D6: 2.210422871 | E6: =B6+'FDC Calculations'!$B$132 -> 2.874012702 | F6: =IF(AND(D6>=C6,D6<=E6),"Test Met","Test Failed") -> Test Met | G6: Test Met | H6: =IF(D6<=E6,"Test Met","Test Failed") -> Test Met | J6: Tariff V: (YV) | K6: =B6+B9 -> 1.702583158 | L6: =C6+C9 -> 0.0434759204 | M6: 2.367028535 | N6: 4.144748072 | O6: =IF(AND(M6>=L6,M6<=N6),"Test Met","Test Failed") -> Test Met | P6: =IF(M6>=L6,"Test Met","Test Failed") -> Test Met | Q6: =IF(M6<=N6,"Test Met","Test Failed") -> Test Met
A7: ='General Inputs'!B20 -> Residential (SG) | B7: ='FDC Calculations'!B57 -> 1.669790547 | C7: ='DORC Calculations'!H19 -> 0.04661062094 | D7: 2.202843057 | E7: =B7+'FDC Calculations'!$B$132 -> 2.890873004 | F7: =IF(AND(D7>=C7,D7<=E7),"Test Met","Test Failed") -> Test Met | G7: =IF(D7>=C7,"Test Met","Test Failed") -> Test Met | H7: =IF(D7<=E7,"Test Met","Test Failed") -> Test Met | J7: Tariff V: (SG) | K7: =B7+B10 -> 1.795376554 | L7: =C7+C10 -> 0.04897326474 | M7: 2.628385022 | N7: 4.237541467 | O7: Test Met | P7: Test Met | Q7: Test Met
A8: ='General Inputs'!B21 -> Non res (Metro) | B8: ='FDC Calculations'!B65 -> 10.49463444 | C8: ='DORC Calculations'!J19 -> 0.2929477764 | D8: 10.07186961 | E8: =B8+'FDC Calculations'!$B$132 -> 11.7157169 | F8: =IF(AND(D8>=C8,D8<=E8),"Test Met","Test Failed") -> Test Met | G8: Test Met | H8: Test Met | J8: Tariff L | K8: =B11 -> 0.08463994265 | L8: =C11 -> 0 | M8: 0.01744749277 | N8: 1.305722399 | O8: Test Met | P8: Test Met | Q8: Test Met
A9: ='General Inputs'!B22 -> Non res (YV) | B9: ='FDC Calculations'!B73 -> 0.04965291308 | C9: ='DORC Calculations'!L19 -> 0.001386014021 | D9: 0.1566056642 | E9: =B9+'FDC Calculations'!$B$132 -> 1.27073537 | F9: =IF(AND(D9>=C9,D9<=E9),"Test Met","Test Failed") -> Test Met | G9: =IF(D9>=C9,"Test Met","Test Failed") -> Test Met | H9: =IF(D9<=E9,"Test Met","Test Failed") -> Test Met | J9: Tariff D (Metro) | K9: =B12 -> 1.221082457 | L9: 0 | M9: 1.837398458 | N9: 2.442164914 | O9: =IF(AND(M9>=L9,M9<=N9),"Test Met","Test Failed") -> Test Met | P9: =IF(M9>=L9,"Test Met","Test Failed") -> Test Met | Q9: =IF(M9<=N9,"Test Met","Test Failed") -> Test Met
A10: ='General Inputs'!B23 -> Non res (SG) | B10: ='FDC Calculations'!B81 -> 0.1255860065 | C10: ='DORC Calculations'!N19 -> 0.002362643799 | D10: 0.4255419646 | E10: =B10+'FDC Calculations'!$B$132 -> 1.346668463 | F10: =IF(AND(D10>=C10,D10<=E10),"Test Met","Test Failed") -> Test Met | G10: Test Met | H10: Test Met | J10: Tariff D (SG) | K10: 0 | L10: 0 | M10: 0.08285518309 | N10: 1.221082457 | O10: Test Met | P10: Test Met | Q10: Test Met
A11: ='General Inputs'!B24 -> Tariff L | B11: ='FDC Calculations'!B89 -> 0.08463994265 | C11: ='DORC Calculations'!P19 -> 0 | D11: 0.01744749277 | E11: =B11+'FDC Calculations'!$B$132 -> 1.305722399 | F11: Test Met | G11: Test Met | H11: Test Met
A12: ='General Inputs'!B25 -> Tariff D (Metro) | B12: ='FDC Calculations'!B97 -> 1.221082457 | C12: ='DORC Calculations'!R19 -> 0 | D12: 1.837398458 | E12: =B12+'FDC Calculations'!$B$132 -> 2.442164914 | F12: Test Met | G12: Test Met | H12: Test Met
A13: ='General Inputs'!B26 -> Tariff D (SG) | B13: ='FDC Calculations'!B105 -> 0 | C13: ='DORC Calculations'!T19 -> 0 | D13: 0.08285518309 | E13: =B13+'FDC Calculations'!$B$132 -> 1.221082457 | F13: Test Met | G13: Test Met | H13: Test Met
A14: Turn On / Reconnections | B14: 0.291499116 | C14: 0 | D14: 0.037236 | E14: =D14 -> 0.037236 | F14: Test Met | G14: Test Met | H14: Test Met
A15: Meter Investigations | B15: 0.02798249379 | C15: 0 | D15: 0.420529 | E15: =D15 -> 0.420529 | F15: =IF(AND(D15>=C15,D15<=E15),"Test Met","Test Failed") -> Test Met | G15: =IF(D15>=C15,"Test Met","Test Failed") -> Test Met | H15: =IF(D15<=E15,"Test Met","Test Failed") -> Test Met
A16: Disconnections | B16: 0.3031516618 | C16: 0 | D16: 0.6247523333 | E16: 0.6247523333 | F16: Test Met | G16: Test Met | H16: Test Met
A17: Special meter reading | B17: 1.745360711 | C17: 0 | D17: 0.248868 | E17: 0.248868 | F17: Test Met | G17: Test Met | H17: Test Met
A18: Meter Removals | B18: 0.2950062068 | C18: 0 | D18: 0.008184 | E18: 0.008184 | F18: Test Met | G18: Test Met | H18: Test Met
